Organisation Name,Effective Date,Purch Date,Service Area,Expense Area,Beneficiary,Net amount,    Tax,     Gross,G/L Acct Long Text,MCC Description
Buckinghamshire Council,30.11.2022,30.11.2022,Resources,AH&R - Res Dir,FACEBK HDYH8JK742,42.74,0,42.74,Permanent Recruitment Costs,Advertising services
Buckinghamshire Council,30.11.2022,30.11.2022,Children's Services,Education & Childrens Services - CS Dir,WWW.THEWORKS.CO.UK,-20,0,-20,Activities & General Recreation,Discount stores
Buckinghamshire Council,30.11.2022,30.11.2022,Children's Services,Education & Childrens Services - CS Dir,CURRYS ONLINE,413,0,413,Leaving Care - Grants for Care Leavers,Electronics shops
Buckinghamshire Council,30.11.2022,30.11.2022,Children's Services,Education & Childrens Services - CS Dir,ARGOS LTD,35,0,35,Leaving Care - Grants for Care Leavers,Discount stores
Buckinghamshire Council,30.11.2022,30.11.2022,Deputy Chief Executive,Communities - DCE,ARGOS LTD,248.95,0,248.95,Other Personal Needs,Discount stores
Buckinghamshire Council,30.11.2022,30.11.2022,Children's Services,Education & Childrens Services - CS Dir,PREMIER INN,51,0,51,Sec 20/31: Financial Assistance,Premier Inn
Buckinghamshire Council,30.11.2022,30.11.2022,Communities,Culture & Leisure - Communities Dir,AMZNMKTPLACE,21.63,4.34,25.97,Events Expenditure,Miscellaneous retail
Buckinghamshire Council,30.11.2022,30.11.2022,Resources,AH&R - Res Dir,TAXIPAY,15,0,15,Staff Travelling Expenses,Taxicabs & limousines
Buckinghamshire Council,30.11.2022,30.11.2022,Children's Services,Education & Childrens Services - CS Dir,trainline,72.3,0,72.3,Staff Travelling Expenses,Passenger railways
Buckinghamshire Council,30.11.2022,30.11.2022,Children's Services,Education & Childrens Services - CS Dir,PYN*BEDS CO UK,309,0,309,Leaving Care - Grants for Care Leavers,Furniture & home furnishing
Buckinghamshire Council,30.11.2022,30.11.2022,Children's Services,Education & Childrens Services - CS Dir,EBAY O*03-09411-53690,365,0,365,Leaving Care - Grants for Care Leavers,Department stores
Buckinghamshire Council,30.11.2022,30.11.2022,Children's Services,Education & Childrens Services - CS Dir,ARGOS LTD,492.95,0,492.95,Leaving Care - Grants for Care Leavers,Discount stores
Buckinghamshire Council,30.11.2022,30.11.2022,Children's Services,Education & Childrens Services - CS Dir,AMAZON.CO.UK,38.39,0,38.39,Other Personal Needs,Direct sales companies
Buckinghamshire Council,30.11.2022,30.11.2022,Children's Services,Education & Childrens Services - CS Dir,AMAZON.CO.UK,19.63,0,19.63,Other Personal Needs,Direct sales companies
Buckinghamshire Council,30.11.2022,30.11.2022,Children's Services,Education & Childrens Services - CS Dir,AMZNMKTPLACE,14.65,0,14.65,Other Equipment and Materials,Miscellaneous retail
Buckinghamshire Council,30.11.2022,30.11.2022,Children's Services,Education & Childrens Services - CS Dir,TRAVELODGE GB0766,13,0,13,Sec 17: Financial Assistance,Travelodge
Buckinghamshire Council,30.11.2022,30.11.2022,Children's Services,Education & Childrens Services - CS Dir,TRAVELODGE GB0766,13,0,13,Sec 17: Financial Assistance,Travelodge
Buckinghamshire Council,30.11.2022,30.11.2022,Children's Services,Education & Childrens Services - CS Dir,TRAVELODGE GB0766,13,0,13,Sec 17: Financial Assistance,Travelodge
Buckinghamshire Council,30.11.2022,30.11.2022,Children's Services,Education & Childrens Services - CS Dir,AMZNMktplace,11.48,0,11.48,Awaiting Coding,Miscellaneous retail
Buckinghamshire Council,30.11.2022,30.11.2022,"Planning, Growth & Sustainability",Planning & Regeneration - PGS,TRAINLINE,25.81,0,25.81,Staff Travelling Expenses,Passenger railways
Buckinghamshire Council,30.11.2022,30.11.2022,"Planning, Growth & Sustainability",Planning & Regeneration - PGS,WWW.CIOB.ORG.UK,305,0,305,Professional Subscriptions re Employees,Membership organisations
Buckinghamshire Council,30.11.2022,30.11.2022,Resources,AH&R - Res Dir,BUCKINGHAMSHIRE CNCL,11,0,11,Awaiting Coding,Government services
Buckinghamshire Council,30.11.2022,30.11.2022,Resources,AH&R - Res Dir,BUCKINGHAMSHIRE CNCL,44,0,44,Awaiting Coding,Government services
Buckinghamshire Council,30.11.2022,30.11.2022,Resources,AH&R - Res Dir,TAXIPAY,34,0,34,Staff Travelling Expenses,Taxicabs & limousines
Buckinghamshire Council,30.11.2022,30.11.2022,Resources,AH&R - Res Dir,BUCKINGHAMSHIRE CNCL,11,0,11,Awaiting Coding,Government services
Buckinghamshire Council,30.11.2022,30.11.2022,Resources,AH&R - Res Dir,BUCKINGHAMSHIRE CNCL,44,0,44,Awaiting Coding,Government services
Buckinghamshire Council,30.11.2022,30.11.2022,Deputy Chief Executive,Communities - DCE,AO RETAIL LIMITED,852,0,852,Other Personal Needs,Household appliance stores
Buckinghamshire Council,30.11.2022,30.11.2022,Deputy Chief Executive,Communities - DCE,AO RETAIL LIMITED,469,0,469,Other Personal Needs,Household appliance stores
Buckinghamshire Council,30.11.2022,30.11.2022,Deputy Chief Executive,Communities - DCE,AO RETAIL LIMITED,499,0,499,Other Personal Needs,Household appliance stores
Buckinghamshire Council,30.11.2022,30.11.2022,Deputy Chief Executive,Communities - DCE,AMAZON.CO.UK,126.72,0,126.72,Other Personal Needs,Direct sales companies
Buckinghamshire Council,30.11.2022,30.11.2022,Deputy Chief Executive,Communities - DCE,AO RETAIL LIMITED,219,0,219,Other Personal Needs,Household appliance stores
Buckinghamshire Council,30.11.2022,30.11.2022,Deputy Chief Executive,Communities - DCE,AO RETAIL LIMITED,274,0,274,Other Personal Needs,Household appliance stores
Buckinghamshire Council,30.11.2022,30.11.2022,Deputy Chief Executive,Communities - DCE,ARGOS LTD,53.95,0,53.95,Other Personal Needs,Discount stores
Buckinghamshire Council,30.11.2022,30.11.2022,Children's Services,Education & Childrens Services - CS Dir,JOHN LEWIS,30,0,30,Awaiting Coding,Department stores
Buckinghamshire Council,30.11.2022,30.11.2022,Children's Services,Education & Childrens Services - CS Dir,THE RANGE,237.69,0,237.69,Awaiting Coding,Misc. home furnishing
Buckinghamshire Council,30.11.2022,30.11.2022,Communities,Housing & Homelessness & Regulatory Comm,GRASSLANDS (NURSERIES) LI,147,0,147,Seeds & Plants,Lawn & garden supply/nursery
Buckinghamshire Council,30.11.2022,30.11.2022,Adults and Health,Health & Wellbeing - Adults & Health Dir,WM MORRISONS STORE,123.68,0,123.68,General Provisions (Food),Grocery stores
Buckinghamshire Council,30.11.2022,30.11.2022,Communities,Housing & Homelessness & Regulatory Comm,SCREWFIX WEST DRAYTON,-3,0,-3,General Repairs & Maintenance,Timber & building supplies
Buckinghamshire Council,30.11.2022,30.11.2022,Communities,Climate Change & Environment - Community,HELLOPRINT UNITED KINGDOM,50.28,0,50.28,Waste Prevention costs,Photocopy & reproduction services
Buckinghamshire Council,30.11.2022,30.11.2022,Adults and Health,Communities - Adults & Health,AMZNMKTPLACE,90,0,90,Security & Safety Supplies & Equipment,Miscellaneous retail
Buckinghamshire Council,30.11.2022,30.11.2022,Deputy Chief Executive,Communities - DCE,Amazon.co.uk,139.04,0,139.04,Stationery & Office Supplies,Direct sales companies
Buckinghamshire Council,30.11.2022,30.11.2022,Deputy Chief Executive,Communities - DCE,RINGGO PARKING,0.85,0,0.85,Staff Travelling Expenses,Car parking & garages
Buckinghamshire Council,30.11.2022,30.11.2022,Deputy Chief Executive,Communities - DCE,CHILTERN POOL,3.35,0,3.35,General Provisions (Food),"Member clubs, sport, recreation & golf"
Buckinghamshire Council,30.11.2022,30.11.2022,Children's Services,Education & Childrens Services - CS Dir,TORCH DIRECT LTD,30.9,0,30.9,Awaiting Coding,Misc. general merchandise
Buckinghamshire Council,30.11.2022,30.11.2022,Children's Services,Education & Childrens Services - CS Dir,CASTLE WATER,59.61,0,59.61,Awaiting Coding,Utilities
Buckinghamshire Council,30.11.2022,30.11.2022,Communities,Culture & Leisure - Communities Dir,QUICKSTEP BURNHAM,19.5,0,19.5,Administrative Equipment & Tools,Shoe repairs
Buckinghamshire Council,30.11.2022,30.11.2022,Communities,Culture & Leisure - Communities Dir,ROBERT DYAS AMERSHAM,9.58,0,9.58,Administrative Equipment & Tools,Hardware stores
Buckinghamshire Council,30.11.2022,30.11.2022,Children's Services,Education & Childrens Services - CS Dir,BUCKINGHAMSHIRE CNCL,33,0,33,Court Orders Sec 31: Miscellaneous,Government services
Buckinghamshire Council,30.11.2022,30.11.2022,Communities,Climate Change & Environment - Community,AMZNMKTPLACE,84.4,0,84.4,Stationery & Office Supplies,Miscellaneous retail
Buckinghamshire Council,30.11.2022,30.11.2022,Children's Services,Education & Childrens Services - CS Dir,DUNELM SOFTFURNISHINGS,94,0,94,Sec 20/31: Supp for Contact,Furniture & home furnishing
Buckinghamshire Council,30.11.2022,30.11.2022,Deputy Chief Executive,AH&R- DCE Dir,TAXIPAY,120,0,120,Staff Travelling Expenses,Taxicabs & limousines
Buckinghamshire Council,30.11.2022,30.11.2022,Deputy Chief Executive,AH&R- DCE Dir,TAXIPAY,120,0,120,Staff Travelling Expenses,Taxicabs & limousines
Buckinghamshire Council,30.11.2022,30.11.2022,Deputy Chief Executive,AH&R- DCE Dir,TAXIPAY,120,0,120,Staff Travelling Expenses,Taxicabs & limousines
Buckinghamshire Council,30.11.2022,30.11.2022,Communities,Transport - Communities Dir,Amazon.co.uk,53.9,0,53.9,Stationery & Office Supplies,Direct sales companies
Buckinghamshire Council,30.11.2022,30.11.2022,Deputy Chief Executive,Leader - DCE,FACEBK P8WYKK3QN2,414.83,0,414.83,Advertising,Advertising services
Buckinghamshire Council,30.11.2022,30.11.2022,"Planning, Growth & Sustainability",Planning & Regeneration - PGS,TRAINLINE,21.53,0,21.53,Other Employees Expenses,Passenger railways
Buckinghamshire Council,30.11.2022,30.11.2022,Resources,AH&R - Res Dir,LINKEDIN-851,91.37,0,91.37,Advertising,Advertising services
Buckinghamshire Council,30.11.2022,30.11.2022,Children's Services,Education & Childrens Services - CS Dir,Pandora Jewellery UK Limi,81,0,81,Awaiting Coding,Jewellers
Buckinghamshire Council,30.11.2022,30.11.2022,Communities,Culture & Leisure - Communities Dir,AMZNMKTPLACE,8.49,0,8.49,Administrative Equipment & Tools,Miscellaneous retail
Buckinghamshire Council,30.11.2022,30.11.2022,"Planning, Growth & Sustainability",Housing & Homelessness & Regulatory PGS,WAITROSE 177,100,0,100,Other General Office Expenses,Grocery stores
Buckinghamshire Council,30.11.2022,30.11.2022,"Planning, Growth & Sustainability",Housing & Homelessness & Regulatory PGS,IKEA LTD SHOP ONLINE,"1,804.00",0,"1,804.00",Furniture,Furniture & home furnishing
Buckinghamshire Council,30.11.2022,30.11.2022,"Planning, Growth & Sustainability",Housing & Homelessness & Regulatory PGS,IKEA LTD SHOP ONLINE,"1,350.00",0,"1,350.00",Furniture,Furniture & home furnishing
Buckinghamshire Council,30.11.2022,30.11.2022,"Planning, Growth & Sustainability",Housing & Homelessness & Regulatory PGS,IKEA LTD SHOP ONLINE,529,0,529,Furniture,Furniture & home furnishing
Buckinghamshire Council,30.11.2022,30.11.2022,Children's Services,Education & Childrens Services - CS Dir,ZETTLE_*TONE COFFEE SH,6.4,0,6.4,Subsistence,Restaurants
Buckinghamshire Council,30.11.2022,30.11.2022,Children's Services,Education & Childrens Services - CS Dir,Zettle_*Tone Coffee Shop,14.65,0,14.65,Subsistence,Restaurants
Buckinghamshire Council,30.11.2022,30.11.2022,Children's Services,Education & Childrens Services - CS Dir,AMAZON.CO.UK,88,0,88,Activities & General Recreation,Direct sales companies
Buckinghamshire Council,30.11.2022,30.11.2022,Children's Services,Education & Childrens Services - CS Dir,ARGOS LTD,25,0,25,Awaiting Coding,Discount stores
Buckinghamshire Council,30.11.2022,30.11.2022,Children's Services,Education & Childrens Services - CS Dir,EB *AN EVENT FOR THOSE,5,0,5,Awaiting Coding,Misc business services
Buckinghamshire Council,30.11.2022,30.11.2022,Children's Services,Education & Childrens Services - CS Dir,CABCO TAXIS,15,0,15,Sec 20/31: Supp for Contact,Taxicabs & limousines
Buckinghamshire Council,30.11.2022,30.11.2022,Children's Services,Education & Childrens Services - CS Dir,TRAINLINE.COM,6.51,0,6.51,Sec 20/31: Supp for Contact,Passenger railways
Buckinghamshire Council,30.11.2022,30.11.2022,Resources,AH&R - Res Dir,MIXBOOK.COM,48.71,0,48.71,Printing & Stationery,Publishing & printing services
Buckinghamshire Council,30.11.2022,29.11.2022,Children's Services,Education & Childrens Services - CS Dir,HOTEL AT BOOKING.COM,154,0,154,Staff Travelling Expenses,"Hotels, motels & resorts"
Buckinghamshire Council,30.11.2022,29.11.2022,Children's Services,Education & Childrens Services - CS Dir,HOTEL AT BOOKING.COM,-154,0,-154,Staff Travelling Expenses,"Hotels, motels & resorts"
Buckinghamshire Council,30.11.2022,29.11.2022,Children's Services,Education & Childrens Services - CS Dir,ARGOS LTD,61.5,0,61.5,Leaving Care - Grants for Care Leavers,Discount stores
Buckinghamshire Council,30.11.2022,29.11.2022,Children's Services,Education & Childrens Services - CS Dir,CURRYS ONLINE,787,0,787,Leaving Care - Grants for Care Leavers,Electronics shops
Buckinghamshire Council,30.11.2022,29.11.2022,Children's Services,Education & Childrens Services - CS Dir,CURRYS ONLINE,82.99,0,82.99,Leaving Care - Grants for Care Leavers,Electronics shops
Buckinghamshire Council,30.11.2022,29.11.2022,Children's Services,Education & Childrens Services - CS Dir,ARGOS LTD,201.95,0,201.95,Leaving Care - Grants for Care Leavers,Discount stores
Buckinghamshire Council,30.11.2022,29.11.2022,Children's Services,Education & Childrens Services - CS Dir,TRANSPORT INVESTIGATIO,412.1,0,412.1,Leaving Care - Grants for Care Leavers,Consultants & public relation services
Buckinghamshire Council,30.11.2022,29.11.2022,Children's Services,Education & Childrens Services - CS Dir,SP HOOVER DIRECT,98,0,98,Leaving Care - Grants for Care Leavers,Household appliance stores
Buckinghamshire Council,30.11.2022,29.11.2022,Children's Services,Education & Childrens Services - CS Dir,B&Q MARKETPLACE,271,0,271,Leaving Care - Grants for Care Leavers,Timber & building supplies
Buckinghamshire Council,30.11.2022,29.11.2022,Children's Services,Education & Childrens Services - CS Dir,TRAVELODGE GB0000,241.18,0,241.18,"Courses, Conference and Seminar Fees",Travelodge
Buckinghamshire Council,30.11.2022,29.11.2022,Resources,AH&R - Res Dir,C2E836901269C UKVI,199,0,199,Professional Services (non curriculum) - External,Government services
Buckinghamshire Council,30.11.2022,29.11.2022,Adults and Health,Health & Wellbeing - Adults & Health Dir,NEW YORK DELI GATEHOUSE,97.86,0,97.86,Subsistence,Restaurants
Buckinghamshire Council,30.11.2022,29.11.2022,Adults and Health,Health & Wellbeing - Adults & Health Dir,TESCO STORES 2162,31.65,0,31.65,General Provisions (Food),Grocery stores
Buckinghamshire Council,30.11.2022,29.11.2022,"Planning, Growth & Sustainability",Planning & Regeneration - PGS,RED OAK DIRECT LTD,43.18,0,43.18,"Books, Records, Films & Oth Publications",Uniforms & commercial clothing
Buckinghamshire Council,30.11.2022,29.11.2022,SCC Obsolete Cost Centres,Obsolete Cost Centres,POST OFFICE COUNTER,7.65,0,7.65,General Postage,Postal services
Buckinghamshire Council,30.11.2022,29.11.2022,Resources,AH&R - Res Dir,BUILT ENVIRONMENT NETW,666,0,666,Awaiting Coding,Misc business services
Buckinghamshire Council,30.11.2022,29.11.2022,"Planning, Growth & Sustainability",AH&R - PGS Dir,Amazon.co.uk,150,0,150,Stationery & Office Supplies,Direct sales companies
Buckinghamshire Council,30.11.2022,29.11.2022,"Planning, Growth & Sustainability",AH&R - PGS Dir,Amazon.co.uk,100,0,100,Stationery & Office Supplies,Direct sales companies
Buckinghamshire Council,30.11.2022,29.11.2022,"Planning, Growth & Sustainability",AH&R - PGS Dir,COMMERCIAL WASHROOMS,60,0,60,Awaiting Coding,Furniture & home furnishing
Buckinghamshire Council,30.11.2022,29.11.2022,Deputy Chief Executive,Communities - DCE,AO RETAIL LIMITED,364,0,364,Other Personal Needs,Household appliance stores
Buckinghamshire Council,30.11.2022,29.11.2022,Deputy Chief Executive,Communities - DCE,AO RETAIL LIMITED,763,0,763,Other Personal Needs,Household appliance stores
Buckinghamshire Council,30.11.2022,29.11.2022,Deputy Chief Executive,Communities - DCE,AO RETAIL LIMITED,289,0,289,Other Personal Needs,Household appliance stores
Buckinghamshire Council,30.11.2022,29.11.2022,Deputy Chief Executive,Communities - DCE,AO RETAIL LIMITED,39.99,0,39.99,Other Personal Needs,Household appliance stores
Buckinghamshire Council,30.11.2022,29.11.2022,Deputy Chief Executive,Communities - DCE,AO RETAIL LIMITED,543,0,543,Other Personal Needs,Household appliance stores
Buckinghamshire Council,30.11.2022,29.11.2022,Deputy Chief Executive,Communities - DCE,AO RETAIL LIMITED,269,0,269,Other Personal Needs,Household appliance stores
Buckinghamshire Council,30.11.2022,29.11.2022,Deputy Chief Executive,Communities - DCE,AO RETAIL LIMITED,503,0,503,Other Personal Needs,Household appliance stores
Buckinghamshire Council,30.11.2022,29.11.2022,Deputy Chief Executive,Communities - DCE,ARGOS LTD,248.95,0,248.95,Other Personal Needs,Discount stores
Buckinghamshire Council,30.11.2022,29.11.2022,Communities,Transport - Communities Dir,LOCK & KEY CENTRE,48,0,48,Maintenance of Cremators Plant & Equip,Shoe repairs
Buckinghamshire Council,30.11.2022,29.11.2022,"Planning, Growth & Sustainability",Housing & Homelessness & Regulatory PGS,ROYAL MAIL GROUP LTD,0.95,0,0.95,General Postage,Postal services
Buckinghamshire Council,30.11.2022,29.11.2022,"Planning, Growth & Sustainability",Housing & Homelessness & Regulatory PGS,ROYAL MAIL GROUP LTD,6.24,0,6.24,General Postage,Postal services
Buckinghamshire Council,30.11.2022,29.11.2022,Communities,Culture & Leisure - Communities Dir,Amazon Music,8.99,0,8.99,Awaiting Coding,Record shops
Buckinghamshire Council,30.11.2022,29.11.2022,Communities,Culture & Leisure - Communities Dir,AMZNMktplace,127.88,0,127.88,Awaiting Coding,Miscellaneous retail
Buckinghamshire Council,30.11.2022,29.11.2022,Communities,Housing & Homelessness & Regulatory Comm,CHRISTMAS TREE FARM CH,272,0,272,Maintenance of Grounds,Miscellaneous retail
Buckinghamshire Council,30.11.2022,29.11.2022,Communities,Housing & Homelessness & Regulatory Comm,SHELL HAZLEMERE,41.83,0,41.83,Maintenance of Grounds,Service stations
Buckinghamshire Council,30.11.2022,29.11.2022,Children's Services,Education & Childrens Services - CS Dir,TRAINLINE,154.8,0,154.8,Staff Travelling Expenses,Passenger railways
Buckinghamshire Council,30.11.2022,29.11.2022,Children's Services,Education & Childrens Services - CS Dir,BT.COM CONSUMER BP,25.99,0,25.99,Telephones,Phone services
Buckinghamshire Council,30.11.2022,29.11.2022,Children's Services,Education & Childrens Services - CS Dir,GOWRIST* GOWRISTBNDSCO,187.54,0,187.54,Activities & General Recreation,Misc. general merchandise
Buckinghamshire Council,30.11.2022,29.11.2022,Communities,Housing & Homelessness & Regulatory Comm,TESCO STORES 2020,22.44,0,22.44,Purchase.of Refreshments and Food,Grocery stores
Buckinghamshire Council,30.11.2022,29.11.2022,"Planning, Growth & Sustainability",Leader - PGS,WILKO RETAIL LIMITED,21,0,21,Events Expenditure,Misc. general merchandise
Buckinghamshire Council,30.11.2022,29.11.2022,Children's Services,Education & Childrens Services - CS Dir,POST OFFICE COUNTER,34,0,34,General Postage,Postal services
Buckinghamshire Council,30.11.2022,29.11.2022,Communities,Climate Change & Environment - Community,MAP UK,508.16,0,508.16,Equipment,Hardware stores
Buckinghamshire Council,30.11.2022,29.11.2022,Communities,Climate Change & Environment - Community,MAP UK,500,0,500,Equipment,Hardware stores
Buckinghamshire Council,30.11.2022,29.11.2022,"Planning, Growth & Sustainability",Planning & Regeneration - PGS,RED OAK DIRECT LTD,17.85,3.57,21.42,Repair and Maintenance of Equipment,Uniforms & commercial clothing
Buckinghamshire Council,30.11.2022,29.11.2022,Communities,Transport - Communities Dir,VIKING UK,39.98,8,47.98,Stationery & Office Supplies,Stationery & office supplies
Buckinghamshire Council,30.11.2022,29.11.2022,"Planning, Growth & Sustainability",Planning & Regeneration - PGS,WWW.REDOAKDIRECT.C,-14.28,0,-14.28,Repair and Maintenance of Equipment,Timber & building supplies
Buckinghamshire Council,30.11.2022,29.11.2022,Children's Services,Education & Childrens Services - CS Dir,JD SPORTS INTERNET,59.99,0,59.99,Awaiting Coding,Sporting goods shops
Buckinghamshire Council,30.11.2022,29.11.2022,Children's Services,Education & Childrens Services - CS Dir,Sea Life Birmingham,27.95,0,27.95,Awaiting Coding,Theatres and ticket agencies
Buckinghamshire Council,30.11.2022,29.11.2022,Children's Services,Education & Childrens Services - CS Dir,SAFEFIREDIRECT,167.99,0,167.99,Awaiting Coding,Misc Industrial supplies
Buckinghamshire Council,30.11.2022,29.11.2022,Children's Services,Education & Childrens Services - CS Dir,TRAFALGAR TICKETS LTD,61.65,0,61.65,Awaiting Coding,Theatres and ticket agencies
Buckinghamshire Council,30.11.2022,29.11.2022,Children's Services,Education & Childrens Services - CS Dir,HIGH STREET VOUCHERS,30,0,30,Court Orders Sec 31: Miscellaneous,Department stores
Buckinghamshire Council,30.11.2022,29.11.2022,Children's Services,Education & Childrens Services - CS Dir,TRAINLINE.COM,73.37,0,73.37,Sec 20/31: Supp for Contact,Passenger railways
Buckinghamshire Council,30.11.2022,29.11.2022,Children's Services,Partnerships - Children's Services,COSTCO WHOLESALE #117,192.37,0,192.37,"Courses, Conference and Seminar Fees",Buying & shopping services/clubs
Buckinghamshire Council,30.11.2022,29.11.2022,Children's Services,Education & Childrens Services - CS Dir,WILKO RETAIL LIMITED,19.1,0,19.1,Awaiting Coding,Misc. general merchandise
Buckinghamshire Council,30.11.2022,29.11.2022,Communities,Climate Change & Environment - Community,MEDISAVE,33.38,0,33.38,Health & Safety Supplies & Services,"Laboratory, medical & hospital equipment"
Buckinghamshire Council,30.11.2022,29.11.2022,"Planning, Growth & Sustainability",AH&R - PGS Dir,WREN DAVIS LIMITED,143.2,0,143.2,General Provisions (Food),Grocery stores
Buckinghamshire Council,30.11.2022,29.11.2022,Deputy Chief Executive,AH&R- DCE Dir,TAXIPAY,120,0,120,Staff Travelling Expenses,Taxicabs & limousines
Buckinghamshire Council,30.11.2022,29.11.2022,Deputy Chief Executive,AH&R- DCE Dir,TAXIPAY,120,0,120,Staff Travelling Expenses,Taxicabs & limousines
Buckinghamshire Council,30.11.2022,29.11.2022,Children's Services,Education & Childrens Services - CS Dir,SAINSBURY S S/MKTS,20.55,0,20.55,"Exp of School, Club & College Activities",Grocery stores
Buckinghamshire Council,30.11.2022,29.11.2022,Children's Services,Education & Childrens Services - CS Dir,TESCO STORES 2038,27.83,0,27.83,"Exp of School, Club & College Activities",Grocery stores
Buckinghamshire Council,30.11.2022,29.11.2022,Resources,AH&R - Res Dir,DATABASE STAR ACADEMY,163.82,0,163.82,Subscriptions to National Bodies,Professional services
Buckinghamshire Council,30.11.2022,29.11.2022,Children's Services,Education & Childrens Services - CS Dir,TRAINLINE.COM,11.91,0,11.91,Staff Travelling Expenses,Passenger railways
Buckinghamshire Council,30.11.2022,29.11.2022,Deputy Chief Executive,Leader - DCE,ONE BELOW,6,0,6,General Provisions (Food),Grocery stores
Buckinghamshire Council,30.11.2022,29.11.2022,Children's Services,Education & Childrens Services - CS Dir,WM MORRISONS STORE,2.5,0,2.5,Consumable Supplies,Grocery stores
Buckinghamshire Council,30.11.2022,29.11.2022,Children's Services,Education & Childrens Services - CS Dir,HSQE LTD,150,0,150,Course Fees & Post Entry Training,Schools
Buckinghamshire Council,30.11.2022,29.11.2022,Children's Services,Education & Childrens Services - CS Dir,HOBBYCRAFT TRADING LIMITE,11.5,0,11.5,Educational Equipment,Art & craft shops
Buckinghamshire Council,30.11.2022,29.11.2022,Children's Services,Education & Childrens Services - CS Dir,WILKO.COM,16.45,0,16.45,Educational Equipment,Misc. general merchandise
Buckinghamshire Council,30.11.2022,29.11.2022,Children's Services,Education & Childrens Services - CS Dir,HOBBYCRAFT TRADING LIMITE,39.8,0,39.8,Educational Equipment,Art & craft shops
Buckinghamshire Council,30.11.2022,29.11.2022,Children's Services,Education & Childrens Services - CS Dir,AMZNMktplace,48.22,0,48.22,Awaiting Coding,Miscellaneous retail
Buckinghamshire Council,30.11.2022,29.11.2022,Children's Services,Education & Childrens Services - CS Dir,AMZNMktplace,35.08,0,35.08,Awaiting Coding,Miscellaneous retail
Buckinghamshire Council,30.11.2022,29.11.2022,Children's Services,Education & Childrens Services - CS Dir,Amazon.co.uk,169,0,169,Stationery & Office Supplies,Direct sales companies
Buckinghamshire Council,30.11.2022,29.11.2022,"Planning, Growth & Sustainability",Planning & Regeneration - PGS,WWW.REDOAKDIRECT.C,-23.98,0,-23.98,"Books, Records, Films & Oth Publications",Timber & building supplies
Buckinghamshire Council,30.11.2022,29.11.2022,Children's Services,Education & Childrens Services - CS Dir,WH SMITH AYLESBURY,16.5,0,16.5,"Books, Records, Films & Oth Publications",Newspapers / newsagents
Buckinghamshire Council,30.11.2022,29.11.2022,"Planning, Growth & Sustainability",Housing & Homelessness & Regulatory PGS,TESCO STORES 2020,27.2,0,27.2,General Postage,Grocery stores
Buckinghamshire Council,30.11.2022,29.11.2022,Children's Services,Education & Childrens Services - CS Dir,MARKS&SPENCER PLC SACA,9.2,0,9.2,Awaiting Coding,Grocery stores
Buckinghamshire Council,30.11.2022,29.11.2022,Adults and Health,Health & Wellbeing - Adults & Health Dir,AMAZON.CO.UK,27.64,0,27.64,Stationery & Office Supplies,Direct sales companies
Buckinghamshire Council,30.11.2022,29.11.2022,Children's Services,Education & Childrens Services - CS Dir,TESCO STORES 2038,57.45,0,57.45,Awaiting Coding,Grocery stores
Buckinghamshire Council,30.11.2022,29.11.2022,Children's Services,Education & Childrens Services - CS Dir,AMZNMktplace,37.32,0,37.32,Awaiting Coding,Miscellaneous retail
Buckinghamshire Council,30.11.2022,29.11.2022,Adults and Health,Health & Wellbeing - Adults & Health Dir,WWW.NISBETS.COM,50.38,0,50.38,Stationery & Office Supplies,Catalogue sales
Buckinghamshire Council,30.11.2022,29.11.2022,Communities,Housing & Homelessness & Regulatory Comm,AMZNMKTPLACE,21.92,4.39,26.31,Protective Clothing & Uniforms,Miscellaneous retail
Buckinghamshire Council,30.11.2022,29.11.2022,Deputy Chief Executive,Communities - DCE,ARGOS LTD,183.95,0,183.95,Other Personal Needs,Discount stores
Buckinghamshire Council,30.11.2022,29.11.2022,Communities,Climate Change & Environment - Community,PREMIER FARNELL,95.76,0,95.76,Equipment,Electrical parts & equipment
Buckinghamshire Council,30.11.2022,28.11.2022,"Planning, Growth & Sustainability",Partnership Climate Change & Envir - PGS,PREMIER INN,-55,0,-55,"Courses, Conference and Seminar Fees",Premier Inn
Buckinghamshire Council,30.11.2022,28.11.2022,Children's Services,Education & Childrens Services - CS Dir,TRAINLINE,103.3,0,103.3,Sec 20/31: Financial Assistance,Passenger railways
Buckinghamshire Council,30.11.2022,28.11.2022,Adults and Health,Health & Wellbeing - Adults & Health Dir,SAINSBURYS S/MKTS,4.45,0,4.45,Awaiting Coding,Grocery stores
Buckinghamshire Council,30.11.2022,28.11.2022,"Planning, Growth & Sustainability",Housing & Homelessness & Regulatory PGS,WH SMITH HIGH WYCOMBE,7.6,0,7.6,General Postage,Newspapers / newsagents
Buckinghamshire Council,30.11.2022,28.11.2022,Children's Services,Education & Childrens Services - CS Dir,BUCKINGHAMSHIRE CNCL,33,0,33,Sec 20/31: Specialist Services,Government services
Buckinghamshire Council,30.11.2022,28.11.2022,"Planning, Growth & Sustainability",Housing & Homelessness & Regulatory PGS,LAND REGISTRY ECOM CCC,3,0,3,Homelessness,Government services
Buckinghamshire Council,30.11.2022,28.11.2022,Deputy Chief Executive,Communities - DCE,AO RETAIL LIMITED,303.3,60.66,363.96,Other Personal Needs,Household appliance stores
Buckinghamshire Council,30.11.2022,28.11.2022,Deputy Chief Executive,Communities - DCE,AO RETAIL LIMITED,0.04,0,0.04,Other Personal Needs,Household appliance stores
Buckinghamshire Council,30.11.2022,28.11.2022,Deputy Chief Executive,Communities - DCE,AO RETAIL LIMITED,319.95,63.99,383.94,Other Personal Needs,Household appliance stores
Buckinghamshire Council,30.11.2022,28.11.2022,Deputy Chief Executive,Communities - DCE,AO RETAIL LIMITED,0.06,0,0.06,Other Personal Needs,Household appliance stores
Buckinghamshire Council,30.11.2022,28.11.2022,Deputy Chief Executive,Communities - DCE,AO RETAIL LIMITED,-10,0,-10,Other Personal Needs,Household appliance stores
Buckinghamshire Council,30.11.2022,28.11.2022,Children's Services,Education & Childrens Services - CS Dir,AMZNMKTPLACE,294.99,0,294.99,Leaving Care - Grants for Care Leavers,Miscellaneous retail
Buckinghamshire Council,30.11.2022,28.11.2022,Children's Services,Education & Childrens Services - CS Dir,LIDL GB,7.7,0,7.7,Project Funding,Grocery stores
Buckinghamshire Council,30.11.2022,28.11.2022,Communities,Transport - Communities Dir,EB *CULTURAL CAPITAL-R,25,0,25,"Courses, Conference and Seminar Fees",Misc business services
Buckinghamshire Council,30.11.2022,28.11.2022,"Planning, Growth & Sustainability",Climate Change & Environment - PGS,TRAINLINE.COM,-37.9,0,-37.9,Staff Travelling Expenses,Passenger railways
Buckinghamshire Council,30.11.2022,28.11.2022,Communities,Climate Change & Environment - Community,DVLA DRIVERS TACHOGRAPH W,32,0,32,Awaiting Coding,Government services
Buckinghamshire Council,30.11.2022,28.11.2022,Communities,Climate Change & Environment - Community,DVLA DRIVERS TACHOGRAPH W,32,0,32,Awaiting Coding,Government services
Buckinghamshire Council,30.11.2022,28.11.2022,"Planning, Growth & Sustainability",AH&R - PGS Dir,REPLACEMENT KEYS LTD,9.05,0,9.05,Awaiting Coding,Misc. general merchandise
Buckinghamshire Council,30.11.2022,28.11.2022,Deputy Chief Executive,Communities - DCE,AO RETAIL LIMITED,-92.77,0,-92.77,Other Personal Needs,Household appliance stores
Buckinghamshire Council,30.11.2022,28.11.2022,Resources,AH&R - Res Dir,ARGOS HIGH WYCOMBE INSIDE,-23.5,0,-23.5,Awaiting Coding,Discount stores
Buckinghamshire Council,30.11.2022,28.11.2022,Resources,AH&R - Res Dir,NEALES TAXIS LTD,330,0,330,Staff Travelling Expenses,Taxicabs & limousines
Buckinghamshire Council,30.11.2022,28.11.2022,"Planning, Growth & Sustainability",Housing & Homelessness & Regulatory PGS,AMZNMKTPLACE,10.98,0,10.98,Other General Office Expenses,Miscellaneous retail
Buckinghamshire Council,30.11.2022,28.11.2022,Adults and Health,Health & Wellbeing - Adults & Health Dir,TESCO STORES 5135,137.98,0,137.98,Awaiting Coding,Grocery stores
Buckinghamshire Council,30.11.2022,28.11.2022,Children's Services,Education & Childrens Services - CS Dir,A1 Taxi Service,858,0,858,Staff Travelling Expenses,Taxicabs & limousines
Buckinghamshire Council,30.11.2022,28.11.2022,"Planning, Growth & Sustainability",Housing & Homelessness & Regulatory PGS,ROYAL MAIL GROUP LTD,0.68,0,0.68,General Postage,Postal services
Buckinghamshire Council,30.11.2022,28.11.2022,"Planning, Growth & Sustainability",Housing & Homelessness & Regulatory PGS,ROYAL MAIL GROUP LTD,3.85,0,3.85,General Postage,Postal services
Buckinghamshire Council,30.11.2022,28.11.2022,"Planning, Growth & Sustainability",Housing & Homelessness & Regulatory PGS,ROYAL MAIL GROUP LTD,0.95,0,0.95,General Postage,Postal services
Buckinghamshire Council,30.11.2022,28.11.2022,"Planning, Growth & Sustainability",Housing & Homelessness & Regulatory PGS,ROYAL MAIL GROUP LTD,0.68,0,0.68,General Postage,Postal services
Buckinghamshire Council,30.11.2022,28.11.2022,"Planning, Growth & Sustainability",AH&R - PGS Dir,LOCK & KEY CENTRE,58,0,58,General Repairs & Maintenance,Shoe repairs
Buckinghamshire Council,30.11.2022,28.11.2022,Communities,Housing & Homelessness & Regulatory Comm,WWW.SCREWFIX.COM,55.57,0,55.57,General Repairs & Maintenance,Timber & building supplies
Buckinghamshire Council,30.11.2022,28.11.2022,Children's Services,Education & Childrens Services - CS Dir,TESCO GIFT CARD,50,0,50,Consumable Supplies,Grocery stores
Buckinghamshire Council,30.11.2022,28.11.2022,Resources,AH&R - Res Dir,ABRATAX - MTD,12,0,12,Computer Consumables,Computer software stores
Buckinghamshire Council,30.11.2022,28.11.2022,Children's Services,Education & Childrens Services - CS Dir,TRAVELODGE GB0000,334.51,0,334.51,Sec 17: Financial Assistance,Travelodge
Buckinghamshire Council,30.11.2022,28.11.2022,"Planning, Growth & Sustainability",Housing & Homelessness & Regulatory PGS,SHELTER TRADING LTD,120,0,120,Local Staff Training,"Gift, card & novelty shops"
Buckinghamshire Council,30.11.2022,28.11.2022,"Planning, Growth & Sustainability",Housing & Homelessness & Regulatory PGS,CHARTERED INSTITUTE OF EN,246,0,246,Professional Subscriptions re Employees,Charitable organisations
Buckinghamshire Council,30.11.2022,28.11.2022,Children's Services,Education & Childrens Services - CS Dir,WWW.WATERSTONESGIFTCAR,11.95,0,11.95,Sec 20/31: Transport,Book stores
Buckinghamshire Council,30.11.2022,28.11.2022,Resources,AH&R - Res Dir,PAYPAL,7.2,0,7.2,IT - Computer Network Charges,Computer network information services
Buckinghamshire Council,30.11.2022,28.11.2022,Resources,AH&R - Res Dir,GMO GLOBALSIGN LIM,"1,053.60",0,"1,053.60",Annual Licence (IT),Computer network information services
Buckinghamshire Council,30.11.2022,28.11.2022,Children's Services,Education & Childrens Services - CS Dir,TRAVELODGE GB0000,87.44,0,87.44,Sec 17: Financial Assistance,Travelodge
Buckinghamshire Council,30.11.2022,28.11.2022,Children's Services,Education & Childrens Services - CS Dir,WM MORRISONS STORE,7.03,0,7.03,Consumable Supplies,Grocery stores
Buckinghamshire Council,30.11.2022,28.11.2022,Children's Services,Education & Childrens Services - CS Dir,BUY IT DIRECT,254.96,0,254.96,Leaving Care - Grants for Care Leavers,Electronics shops
Buckinghamshire Council,30.11.2022,28.11.2022,Communities,Communities - Trust Accounts,COSTCO WHOLESALE #102,80.12,0,80.12,Stationery & Office Supplies,Buying & shopping services/clubs
Buckinghamshire Council,30.11.2022,28.11.2022,"Planning, Growth & Sustainability",Planning & Regeneration - PGS,TRAINLINE.COM,23.21,0,23.21,Other Employees Expenses,Passenger railways
Buckinghamshire Council,30.11.2022,28.11.2022,Deputy Chief Executive,Leader - DCE,BRIGHTON SST,58.5,0,58.5,Staff Travelling Expenses,Passenger railways
Buckinghamshire Council,30.11.2022,28.11.2022,Children's Services,Education & Childrens Services - CS Dir,PARENTPAY E-COM R,10,0,10,Awaiting Coding,Colleges & universities
Buckinghamshire Council,30.11.2022,28.11.2022,Children's Services,Education & Childrens Services - CS Dir,DVLA DRIVER ONLINE,34,0,34,Awaiting Coding,Government services
Buckinghamshire Council,30.11.2022,28.11.2022,Children's Services,Education & Childrens Services - CS Dir,ARGOS LTD,39.99,0,39.99,Awaiting Coding,Discount stores
Buckinghamshire Council,30.11.2022,28.11.2022,,,WWW.SCREWFIX.COM,28.9,5.78,34.68,Construction - Building Work,Timber & building supplies
Buckinghamshire Council,30.11.2022,28.11.2022,,,WWW.SCREWFIX.COM,0.01,0,0.01,Construction - Building Work,Timber & building supplies
Buckinghamshire Council,30.11.2022,28.11.2022,"Planning, Growth & Sustainability",Housing & Homelessness & Regulatory PGS,AMZNMKTPLACE,33.63,0,33.63,Stationery & Office Supplies,Miscellaneous retail
Buckinghamshire Council,30.11.2022,28.11.2022,Children's Services,Education & Childrens Services - CS Dir,TRAVELODGE GB0000,107.08,0,107.08,Sec 20/31: Supp for Contact,Travelodge
Buckinghamshire Council,30.11.2022,28.11.2022,Children's Services,Education & Childrens Services - CS Dir,TRAINLINE,180.37,0,180.37,Sec 20/31: Supp for Contact,Passenger railways
Buckinghamshire Council,30.11.2022,28.11.2022,Communities,Climate Change & Environment - Community,BOWMONK LTD,89,0,89,Repair & Maint of Vehicles & Plant,Automotive parts & accessories
Buckinghamshire Council,30.11.2022,28.11.2022,Children's Services,Education & Childrens Services - CS Dir,AMZNMktplace,123.92,0,123.92,Awaiting Coding,Miscellaneous retail
Buckinghamshire Council,30.11.2022,28.11.2022,Adults and Health,Health & Wellbeing - Adults & Health Dir,TESCO STORES 5135,79.29,0,79.29,General Provisions (Food),Grocery stores
Buckinghamshire Council,30.11.2022,28.11.2022,Communities,Communities - Trading Accounts,DVLA VEHICLE TAX,290,0,290,Vehicle Taxation Costs,Tax payments
Buckinghamshire Council,30.11.2022,28.11.2022,Resources,AH&R - Res Dir,BUCKINGHAM HOTELS,"2,332.80",0,"2,332.80","Courses, Conference and Seminar Fees","Hotels, motels & resorts"
Buckinghamshire Council,30.11.2022,28.11.2022,Resources,AH&R - Res Dir,BUCKINGHAM HOTELS,"2,400.00",0,"2,400.00","Courses, Conference and Seminar Fees","Hotels, motels & resorts"
Buckinghamshire Council,30.11.2022,28.11.2022,Resources,AH&R - Res Dir,BUCKINGHAM HOTELS,"2,332.80",0,"2,332.80","Courses, Conference and Seminar Fees","Hotels, motels & resorts"
Buckinghamshire Council,30.11.2022,27.11.2022,Communities,Culture & Leisure - Communities Dir,AMZNMktplace,14.28,0,14.28,Awaiting Coding,Miscellaneous retail
Buckinghamshire Council,30.11.2022,27.11.2022,Communities,Culture & Leisure - Communities Dir,SCREWFIX DIR LTD,54.86,0,54.86,General Repairs & Maintenance,Timber & building supplies
Buckinghamshire Council,30.11.2022,27.11.2022,Resources,AH&R - Res Dir,AMZNMKTPLACE,20.99,0,20.99,IT Equipment Purchase,Miscellaneous retail
Buckinghamshire Council,30.11.2022,27.11.2022,Children's Services,Education & Childrens Services - CS Dir,Prime Video,3.49,0,3.49,Awaiting Coding,Record shops
Buckinghamshire Council,30.11.2022,27.11.2022,Children's Services,Education & Childrens Services - CS Dir,AMZNMKTPLACE,91.18,0,91.18,Miscellaneous (Other)  Expenses,Miscellaneous retail
Buckinghamshire Council,30.11.2022,27.11.2022,Children's Services,Education & Childrens Services - CS Dir,TRAVELODGE GB0766,13,0,13,Sec 17: Financial Assistance,Travelodge
Buckinghamshire Council,30.11.2022,27.11.2022,Resources,AH&R - Res Dir,LINKEDIN-850,117.71,0,117.71,Permanent Recruitment Costs,Advertising services
Buckinghamshire Council,30.11.2022,27.11.2022,Children's Services,Education & Childrens Services - CS Dir,Amazon Prime,8.99,0,8.99,Stationery & Office Supplies,Continuous subscriptions
Buckinghamshire Council,30.11.2022,27.11.2022,Deputy Chief Executive,AH&R- DCE Dir,Amazon.co.uk,40.57,0,40.57,Stationery & Office Supplies,Direct sales companies
Buckinghamshire Council,30.11.2022,26.11.2022,"Planning, Growth & Sustainability",AH&R - PGS Dir,AMZNMKTPLACE,14.95,0,14.95,Fixtures & Fittings,Miscellaneous retail
Buckinghamshire Council,30.11.2022,26.11.2022,Communities,Transport - Communities Dir,TIMPSON LTD,14.8,0,14.8,Urgent Repairs & Maintenance,Miscellaneous retail
Buckinghamshire Council,30.11.2022,26.11.2022,Communities,Housing & Homelessness & Regulatory Comm,SCREWFIX DIR LTD,36.72,0,36.72,Maintenance of Grounds,Timber & building supplies
Buckinghamshire Council,30.11.2022,26.11.2022,"Planning, Growth & Sustainability",AH&R - PGS Dir,AMZNMKTPLACE,8.79,0,8.79,Other Equipment and Materials,Miscellaneous retail
Buckinghamshire Council,30.11.2022,26.11.2022,Communities,Climate Change & Environment - Community,TWITTER ONLINE ADS,75.59,0,75.59,Waste Prevention costs,Advertising services
Buckinghamshire Council,30.11.2022,26.11.2022,Deputy Chief Executive,AH&R- DCE Dir,WP ENGINE,30.74,0,30.74,Computer Support Services,Computer network information services
Buckinghamshire Council,30.11.2022,26.11.2022,Children's Services,Education & Childrens Services - CS Dir,TRAVELODGE GB0766,14.3,0,14.3,Sec 17: Financial Assistance,Travelodge
Buckinghamshire Council,30.11.2022,26.11.2022,"Planning, Growth & Sustainability",Planning & Regeneration - PGS,TFL TRAVEL CH,3.2,0,3.2,Other Employees Expenses,Local commuter transport
Buckinghamshire Council,30.11.2022,26.11.2022,"Planning, Growth & Sustainability",Leader - PGS,1 AND 1 IONOS LTD,8.39,0,8.39,Computer Support Services,Computer network information services
Buckinghamshire Council,30.11.2022,25.11.2022,Communities,Culture & Leisure - Communities Dir,AMZNMKTPLACE,87.44,17.49,104.93,Events Expenditure,Miscellaneous retail
Buckinghamshire Council,30.11.2022,25.11.2022,"Planning, Growth & Sustainability",AH&R - PGS Dir,WWW.ARB.ORG.UK,179,0,179,Professional Subscriptions re Employees,"Architectural, engineering & surveying"
Buckinghamshire Council,30.11.2022,25.11.2022,Resources,AH&R - Res Dir,SP ALDI GROCERY VOUC,60,0,60,Awaiting Coding,Misc. general merchandise
Buckinghamshire Council,30.11.2022,25.11.2022,Children's Services,Education & Childrens Services - CS Dir,WWW.INSTANTPRINT.C,19.08,0,19.08,"Exp of School, Club & College Activities",Photocopy & reproduction services
Buckinghamshire Council,30.11.2022,25.11.2022,Deputy Chief Executive,Communities - DCE,AO RETAIL LIMITED,303.3,60.66,363.96,Other Personal Needs,Household appliance stores
Buckinghamshire Council,30.11.2022,25.11.2022,Deputy Chief Executive,Communities - DCE,AO RETAIL LIMITED,0.04,0,0.04,Other Personal Needs,Household appliance stores
Buckinghamshire Council,30.11.2022,25.11.2022,Deputy Chief Executive,Communities - DCE,AO RETAIL LIMITED,419.16,83.84,503,Other Personal Needs,Household appliance stores
Buckinghamshire Council,30.11.2022,25.11.2022,Deputy Chief Executive,Communities - DCE,AO RETAIL LIMITED,344.95,68.99,413.94,Other Personal Needs,Household appliance stores
Buckinghamshire Council,30.11.2022,25.11.2022,Deputy Chief Executive,Communities - DCE,AO RETAIL LIMITED,0.06,0,0.06,Other Personal Needs,Household appliance stores
Buckinghamshire Council,30.11.2022,25.11.2022,Deputy Chief Executive,Communities - DCE,AO RETAIL LIMITED,440,88,528,Other Personal Needs,Household appliance stores
Buckinghamshire Council,30.11.2022,25.11.2022,Children's Services,Education & Childrens Services - CS Dir,UK CARS (HIGH WYCOMBE),200,0,200,Staff Travelling Expenses,Taxicabs & limousines
Buckinghamshire Council,30.11.2022,25.11.2022,Children's Services,Education & Childrens Services - CS Dir,HOTEL AT BOOKING.COM,70,0,70,Other Employees Expenses,"Hotels, motels & resorts"
Buckinghamshire Council,30.11.2022,25.11.2022,Communities,Culture & Leisure - Communities Dir,AMZNMktplace,6.89,0,6.89,Awaiting Coding,Miscellaneous retail
Buckinghamshire Council,30.11.2022,25.11.2022,Children's Services,Education & Childrens Services - CS Dir,TRAINLINE,46.7,0,46.7,Sec 20/31: Transport,Passenger railways
Buckinghamshire Council,30.11.2022,25.11.2022,Resources,AH&R - Res Dir,ARGOS HIGH WYCOMBE INSIDE,23.5,0,23.5,Awaiting Coding,Discount stores
Buckinghamshire Council,30.11.2022,25.11.2022,Resources,AH&R - Res Dir,ARGOS HIGH WYCOMBE INSIDE,23.5,0,23.5,Awaiting Coding,Discount stores
Buckinghamshire Council,30.11.2022,25.11.2022,Resources,AH&R - Res Dir,YELLOW CARS HW LTD,70,0,70,Staff Travelling Expenses,Taxicabs & limousines
Buckinghamshire Council,30.11.2022,25.11.2022,Adults and Health,Health & Wellbeing - Adults & Health Dir,Amazon.co.uk,10.49,0,10.49,Stationery & Office Supplies,Direct sales companies
Buckinghamshire Council,30.11.2022,25.11.2022,Communities,Partnerships - Communities,ZETTLE_*THE KING?S HEAD,140,0,140,Miscellaneous (Other)  Expenses,Restaurants
Buckinghamshire Council,30.11.2022,25.11.2022,"Planning, Growth & Sustainability",AH&R - PGS Dir,HALFORDS 0894,8.49,0,8.49,Awaiting Coding,"Bicycle shops, sales & service"
Buckinghamshire Council,30.11.2022,25.11.2022,Adults and Health,Health & Wellbeing - Adults & Health Dir,SAINSBURYS S/MKTS,28.1,0,28.1,General Provisions (Food),Grocery stores
Buckinghamshire Council,30.11.2022,25.11.2022,Communities,Housing & Homelessness & Regulatory Comm,E.ON NEXT,24.52,0,24.52,Electricity,Utilities
Buckinghamshire Council,30.11.2022,25.11.2022,Communities,Housing & Homelessness & Regulatory Comm,BRITISH GAS ONLINE,10.39,0,10.39,Gas,Utilities
Buckinghamshire Council,30.11.2022,25.11.2022,Communities,Housing & Homelessness & Regulatory Comm,COSTCO WHOLESALE #102,13.15,2.63,15.78,Purchase.of Refreshments and Food,Buying & shopping services/clubs
Buckinghamshire Council,30.11.2022,25.11.2022,Communities,Housing & Homelessness & Regulatory Comm,COSTCO WHOLESALE #102,0.02,0,0.02,Purchase.of Refreshments and Food,Buying & shopping services/clubs
Buckinghamshire Council,30.11.2022,25.11.2022,Communities,Housing & Homelessness & Regulatory Comm,COSTCO WHOLESALE #102,97,19.4,116.4,Vending Machines Supplies,Buying & shopping services/clubs
Buckinghamshire Council,30.11.2022,25.11.2022,Communities,Housing & Homelessness & Regulatory Comm,COSTCO WHOLESALE #102,0.01,0,0.01,Vending Machines Supplies,Buying & shopping services/clubs
Buckinghamshire Council,30.11.2022,25.11.2022,Children's Services,Education & Childrens Services - CS Dir,IRONMONGERYDIRECT LTD,43.32,0,43.32,Miscellaneous (Other)  Expenses,Hardware stores
Buckinghamshire Council,30.11.2022,25.11.2022,Children's Services,Education & Childrens Services - CS Dir,AMZNMKTPLACE,129,0,129,Consumable Supplies,Miscellaneous retail
Buckinghamshire Council,30.11.2022,25.11.2022,Children's Services,Education & Childrens Services - CS Dir,WWW.LIBERTYGAMES.CO.UK,149,0,149,Consumable Supplies,"Hobby, toy & game shops"
Buckinghamshire Council,30.11.2022,25.11.2022,Children's Services,Education & Childrens Services - CS Dir,AMZN DIGITAL,41.99,0,41.99,Consumable Supplies,Miscellaneous retail
Buckinghamshire Council,30.11.2022,25.11.2022,Children's Services,Education & Childrens Services - CS Dir,AMAZON.CO.UK,189,0,189,Consumable Supplies,Direct sales companies
Buckinghamshire Council,30.11.2022,25.11.2022,Communities,Culture & Leisure - Communities Dir,TIMPSON LTD,30,0,30,Awaiting Coding,Miscellaneous retail
Buckinghamshire Council,30.11.2022,25.11.2022,Communities,Climate Change & Environment - Community,TESCO STORES 2041,60,0,60,Stationery & Office Supplies,Grocery stores
Buckinghamshire Council,30.11.2022,25.11.2022,Communities,Climate Change & Environment - Community,TESCO STORES 2041,240,0,240,Stationery & Office Supplies,Grocery stores
Buckinghamshire Council,30.11.2022,25.11.2022,Adults and Health,Health & Wellbeing - Adults & Health Dir,ASDA SUPERSTORE,53.75,0,53.75,Awaiting Coding,Grocery stores
Buckinghamshire Council,30.11.2022,25.11.2022,Adults and Health,Health & Wellbeing - Adults & Health Dir,AMZNMKTPLACE,22.36,0,22.36,Activities & General Recreation,Miscellaneous retail
Buckinghamshire Council,30.11.2022,25.11.2022,Adults and Health,Health & Wellbeing - Adults & Health Dir,MARKS&SPENCER PLC,18.75,0,18.75,Other Employees Expenses,Grocery stores
Buckinghamshire Council,30.11.2022,25.11.2022,Communities,Culture & Leisure - Communities Dir,HALFORDS 0894,61.3,12.26,73.56,Petrol,"Bicycle shops, sales & service"
Buckinghamshire Council,30.11.2022,25.11.2022,Communities,Culture & Leisure - Communities Dir,HALFORDS 0894,0.01,0,0.01,Petrol,"Bicycle shops, sales & service"
Buckinghamshire Council,30.11.2022,25.11.2022,Deputy Chief Executive,AH&R- DCE Dir,TAXIPAY,120,0,120,Staff Travelling Expenses,Taxicabs & limousines
Buckinghamshire Council,30.11.2022,25.11.2022,Deputy Chief Executive,AH&R- DCE Dir,TAXIPAY,120,0,120,Staff Travelling Expenses,Taxicabs & limousines
Buckinghamshire Council,30.11.2022,25.11.2022,Deputy Chief Executive,AH&R- DCE Dir,TAXIPAY,47,0,47,Staff Travelling Expenses,Taxicabs & limousines
Buckinghamshire Council,30.11.2022,25.11.2022,Resources,AH&R - Res Dir,AMZNMKTPLACE,269.94,0,269.94,Computer Consumables,Miscellaneous retail
Buckinghamshire Council,30.11.2022,25.11.2022,Deputy Chief Executive,AH&R- DCE Dir,AIRBNB * HMJXC89NTY,"1,841.82",0,"1,841.82",Staff Travelling Expenses,Travel agencies
Buckinghamshire Council,30.11.2022,25.11.2022,Children's Services,Education & Childrens Services - CS Dir,B & Q 1305,50,0,50,Equipment for Training and Mats for Ins.,Home supply warehouse stores
Buckinghamshire Council,30.11.2022,25.11.2022,Deputy Chief Executive,AH&R- DCE Dir,POSTURITE LTD,23.94,0,23.94,General Allowances,Misc. home furnishing
Buckinghamshire Council,30.11.2022,25.11.2022,Children's Services,Education & Childrens Services - CS Dir,TRAVELODGE GB0766,13,0,13,Sec 17: Financial Assistance,Travelodge
Buckinghamshire Council,30.11.2022,25.11.2022,Resources,AH&R - Res Dir,ACPDNET,45,9,54,Course Fees & Post Entry Training,Accountants & auditors
Buckinghamshire Council,30.11.2022,25.11.2022,Adults and Health,Health & Wellbeing - Adults & Health Dir,EVERSLEY TRAINING LLP,32.4,0,32.4,Course Fees & Post Entry Training,Schools
Buckinghamshire Council,30.11.2022,25.11.2022,Communities,Communities - Trust Accounts,TOOLSTATION LTD,6.98,0,6.98,General Repairs & Maintenance,Timber & building supplies
Buckinghamshire Council,30.11.2022,25.11.2022,Children's Services,Education & Childrens Services - CS Dir,PARENTPAY E-COM R,18,0,18,Awaiting Coding,Colleges & universities
Buckinghamshire Council,30.11.2022,25.11.2022,Children's Services,Education & Childrens Services - CS Dir,JD SPORTS INTERNET,88,0,88,Awaiting Coding,Sporting goods shops
Buckinghamshire Council,30.11.2022,25.11.2022,"Planning, Growth & Sustainability",Housing & Homelessness & Regulatory PGS,STATIONERY OFFICE BOOK,29.52,0,29.52,"Books, Records, Films & Oth Publications",Book stores
Buckinghamshire Council,30.11.2022,25.11.2022,"Planning, Growth & Sustainability",Housing & Homelessness & Regulatory PGS,AMZNMKTPLACE,69.9,0,69.9,Cleaning Materials,Miscellaneous retail
Buckinghamshire Council,30.11.2022,25.11.2022,Children's Services,Education & Childrens Services - CS Dir,SUMUP  *HAMPTON TRUST,275,0,275,"Courses, Conference and Seminar Fees",Charitable organisations
Buckinghamshire Council,30.11.2022,25.11.2022,Children's Services,Education & Childrens Services - CS Dir,WWW.THEWORKS.CO.UK,140,0,140,Awaiting Coding,Discount stores
Buckinghamshire Council,30.11.2022,25.11.2022,Children's Services,Education & Childrens Services - CS Dir,SP BOOKS4US,53.91,0,53.91,Computer Consumables,Computer software stores
Buckinghamshire Council,30.11.2022,25.11.2022,Children's Services,Education & Childrens Services - CS Dir,TRAINLINE,28.92,0,28.92,Sec 20/31: Supp for Contact,Passenger railways
Buckinghamshire Council,30.11.2022,25.11.2022,Children's Services,Education & Childrens Services - CS Dir,TRAINLINE,-17.3,0,-17.3,Sec 20/31: Supp for Contact,Passenger railways
Buckinghamshire Council,30.11.2022,25.11.2022,Resources,AH&R - Res Dir,TESCO STORES 2041,150,0,150,Awaiting Coding,Grocery stores
Buckinghamshire Council,30.11.2022,25.11.2022,"Planning, Growth & Sustainability",Special Expenses,CATERING APPLIANCE SUP,145.88,29.18,175.06,Equipment,Caterers
Buckinghamshire Council,30.11.2022,25.11.2022,Adults and Health,Health & Wellbeing - Adults & Health Dir,FE TICKETS/PASS,65,0,65,Awaiting Coding,Government services
Buckinghamshire Council,30.11.2022,24.11.2022,Children's Services,Education & Childrens Services - CS Dir,ONLINEHOMESHOP.COM,18.95,0,18.95,Sec 20/31: Specialist Services,Misc. home furnishing
Buckinghamshire Council,30.11.2022,24.11.2022,"Planning, Growth & Sustainability",Housing & Homelessness & Regulatory PGS,LAND REGISTRY ECOM CCC,3,0,3,Homelessness,Government services
Buckinghamshire Council,30.11.2022,24.11.2022,Children's Services,Education & Childrens Services - CS Dir,HOTEL AT BOOKING.COM,95,0,95,Other Employees Expenses,"Hotels, motels & resorts"
Buckinghamshire Council,30.11.2022,24.11.2022,Children's Services,Education & Childrens Services - CS Dir,HOTEL AT BOOKING.COM,106,0,106,Other Employees Expenses,"Hotels, motels & resorts"
Buckinghamshire Council,30.11.2022,24.11.2022,Children's Services,Education & Childrens Services - CS Dir,PAYPAL,174,0,174,Local Staff Training,Professional services
Buckinghamshire Council,30.11.2022,24.11.2022,Resources,AH&R - Res Dir,C2E836401314A UKVI,199,0,199,Professional Services (non curriculum) - External,Government services
Buckinghamshire Council,30.11.2022,24.11.2022,Deputy Chief Executive,Leader - DCE,WILMINGTON HEALTH,274,0,274,Subscriptions to National Bodies,Membership organisations
Buckinghamshire Council,30.11.2022,24.11.2022,Deputy Chief Executive,Communities - DCE,AO RETAIL LIMITED,344,0,344,Other Personal Needs,Household appliance stores
Buckinghamshire Council,30.11.2022,24.11.2022,Deputy Chief Executive,Communities - DCE,AO RETAIL LIMITED,324,0,324,Other Personal Needs,Household appliance stores
Buckinghamshire Council,30.11.2022,24.11.2022,Deputy Chief Executive,Communities - DCE,ARGOS LTD,423.95,0,423.95,Other Personal Needs,Discount stores
Buckinghamshire Council,30.11.2022,24.11.2022,Deputy Chief Executive,Communities - DCE,AMZNMKTPLACE,205.98,0,205.98,Other Personal Needs,Miscellaneous retail
Buckinghamshire Council,30.11.2022,24.11.2022,Deputy Chief Executive,Communities - DCE,AMZNMKTPLACE,71.98,0,71.98,Other Personal Needs,Miscellaneous retail
Buckinghamshire Council,30.11.2022,24.11.2022,"Planning, Growth & Sustainability",AH&R - PGS Dir,POST OFFICE COUNTER,2.35,0,2.35,General Postage,Postal services
Buckinghamshire Council,30.11.2022,24.11.2022,Children's Services,Education & Childrens Services - CS Dir,BT BUSINESS BILL,24.91,0,24.91,Telephones,Phone services
Buckinghamshire Council,30.11.2022,24.11.2022,Adults and Health,Communities - Adults & Health,PRINTED.COM,22.19,0,22.19,Printing & Stationery,Publishing & printing services
Buckinghamshire Council,30.11.2022,24.11.2022,Children's Services,Education & Childrens Services - CS Dir,AMZNMKTPLACE,57.9,0,57.9,Miscellaneous (Other)  Expenses,Miscellaneous retail
Buckinghamshire Council,30.11.2022,24.11.2022,Deputy Chief Executive,Communities - DCE,AMZNMktplace,52.47,0,52.47,Awaiting Coding,Miscellaneous retail
Buckinghamshire Council,30.11.2022,24.11.2022,Children's Services,Education & Childrens Services - CS Dir,AMZNMKTPLACE,89.18,0,89.18,Consumable Supplies,Miscellaneous retail
Buckinghamshire Council,30.11.2022,24.11.2022,Children's Services,Education & Childrens Services - CS Dir,AMAZON.CO.UK,44.78,0,44.78,Consumable Supplies,Direct sales companies
Buckinghamshire Council,30.11.2022,24.11.2022,Children's Services,Education & Childrens Services - CS Dir,TRAVELODGE GB0000,199.87,0,199.87,Sec 17: Financial Assistance,Travelodge
Buckinghamshire Council,30.11.2022,24.11.2022,Deputy Chief Executive,Communities - DCE,RINGGO PARKING,2.15,0,2.15,Staff Travelling Expenses,Car parking & garages
Buckinghamshire Council,30.11.2022,24.11.2022,Communities,Culture & Leisure - Communities Dir,WAITROSE 698,4.95,0,4.95,Events Expenditure,Grocery stores
Buckinghamshire Council,30.11.2022,24.11.2022,Communities,Culture & Leisure - Communities Dir,TESCO STORES 3099,11.89,0,11.89,Events Expenditure,Grocery stores
Buckinghamshire Council,30.11.2022,24.11.2022,"Planning, Growth & Sustainability",AH&R - PGS Dir,CJ'S LOCKSMITHS,11.9,0,11.9,Miscellaneous (Other)  Expenses,Misc. repair services
Buckinghamshire Council,30.11.2022,24.11.2022,Children's Services,Education & Childrens Services - CS Dir,AMZNMktplace,36.28,0,36.28,Awaiting Coding,Miscellaneous retail
Buckinghamshire Council,30.11.2022,24.11.2022,Adults and Health,Health & Wellbeing - Adults & Health Dir,TRAINLINE.COM,84.02,0,84.02,Staff Travelling Expenses,Passenger railways
Buckinghamshire Council,30.11.2022,24.11.2022,Deputy Chief Executive,Leader - DCE,AZZURRI RESTAUIRANTS LTD,67.9,0,67.9,Miscellaneous (Other)  Expenses,Restaurants
Buckinghamshire Council,30.11.2022,24.11.2022,Resources,AH&R - Res Dir,JACQUELINE ANNE FLORIST,150,0,150,Seeds & Plants,Florists
Buckinghamshire Council,30.11.2022,24.11.2022,Resources,AH&R - Res Dir,TRAINLINE,28.61,0,28.61,Staff Travelling Expenses,Passenger railways
Buckinghamshire Council,30.11.2022,24.11.2022,Communities,Culture & Leisure - Communities Dir,WWW.LESAR.CO.UK,458.5,91.7,550.2,Printing & Stationery,Computer software stores
Buckinghamshire Council,30.11.2022,24.11.2022,Children's Services,Education & Childrens Services - CS Dir,TICKETS 85646358,79,0,79,Sec 17: Financial Assistance,Theatres and ticket agencies
Buckinghamshire Council,30.11.2022,24.11.2022,Children's Services,Education & Childrens Services - CS Dir,TRAVELODGE GB0766,13,0,13,Sec 17: Financial Assistance,Travelodge
Buckinghamshire Council,30.11.2022,24.11.2022,Deputy Chief Executive,Leader - DCE,FACEBK W3GEJKPPN2,840,0,840,Advertising,Advertising services
Buckinghamshire Council,30.11.2022,24.11.2022,Adults and Health,Health & Wellbeing - Adults & Health Dir,WWW.KENT.AC.UK,50,0,50,"Courses, Conference and Seminar Fees",Colleges & universities
Buckinghamshire Council,30.11.2022,24.11.2022,Deputy Chief Executive,AH&R- DCE Dir,NEW YORK DELI GATEHOUSE,79.2,0,79.2,Miscellaneous (Other)  Expenses,Restaurants
Buckinghamshire Council,30.11.2022,24.11.2022,Children's Services,Education & Childrens Services - CS Dir,REES FOUNDATION,60,0,60,Sec 20/31: Specialist Services,Charitable organisations
Buckinghamshire Council,30.11.2022,24.11.2022,Communities,Communities - Trust Accounts,BOOKER LIMITED SLOUGH,760.59,0,760.59,Contract Catering,Caterers
Buckinghamshire Council,30.11.2022,24.11.2022,"Planning, Growth & Sustainability",Housing & Homelessness & Regulatory PGS,SPORTSDIRECT.COM,64.97,0,64.97,Protective Clothing & Uniforms,Sports & riding apparel shops
Buckinghamshire Council,30.11.2022,24.11.2022,"Planning, Growth & Sustainability",Housing & Homelessness & Regulatory PGS,CHARTERED INSTITUTE OF EN,246,0,246,Professional Subscriptions re Employees,Charitable organisations
Buckinghamshire Council,30.11.2022,24.11.2022,"Planning, Growth & Sustainability",Housing & Homelessness & Regulatory PGS,CHARTERED INSTITUTE OF EN,246,0,246,Professional Subscriptions re Employees,Charitable organisations
Buckinghamshire Council,30.11.2022,24.11.2022,Resources,AH&R - Res Dir,LINKEDIN 8494024284,99.32,0,99.32,Permanent Recruitment Costs,Advertising services
Buckinghamshire Council,30.11.2022,24.11.2022,Adults and Health,Health & Wellbeing - Adults & Health Dir,AMAZON PRIME,0.99,0,0.99,Stationery & Office Supplies,Continuous subscriptions
Buckinghamshire Council,30.11.2022,24.11.2022,Adults and Health,Health & Wellbeing - Adults & Health Dir,AMZNMKTPLACE,16,0,16,Activities & General Recreation,Miscellaneous retail
Buckinghamshire Council,30.11.2022,24.11.2022,"Planning, Growth & Sustainability",Housing & Homelessness & Regulatory PGS,WH SMITH,87,0,87,General Postage,Newspapers / newsagents
Buckinghamshire Council,30.11.2022,24.11.2022,Resources,AH&R - Res Dir,VOUCHER EXPRESS,100,0,100,Other Employees Expenses,Misc business services
Buckinghamshire Council,30.11.2022,24.11.2022,Communities,Climate Change & Environment - Community,PERRYS PARTS AYLESBURY,-237.68,0,-237.68,Repair & Maint of Vehicles & Plant,Motor vehicle supplies & parts
Buckinghamshire Council,30.11.2022,24.11.2022,Deputy Chief Executive,Communities - DCE,ARGOS LTD,75.95,0,75.95,Other Personal Needs,Discount stores
Buckinghamshire Council,30.11.2022,24.11.2022,Deputy Chief Executive,Communities - DCE,ARGOS LTD,60.95,0,60.95,Other Personal Needs,Discount stores
Buckinghamshire Council,30.11.2022,24.11.2022,Children's Services,Education & Childrens Services - CS Dir,TRAINLINE,48.7,0,48.7,Staff Travelling Expenses,Passenger railways
Buckinghamshire Council,30.11.2022,24.11.2022,Children's Services,Education & Childrens Services - CS Dir,TRAINLINE,57.5,0,57.5,Staff Travelling Expenses,Passenger railways
Buckinghamshire Council,30.11.2022,23.11.2022,"Planning, Growth & Sustainability",Housing & Homelessness & Regulatory PGS,TRAINLINE,105.51,0,105.51,Staff Travelling Expenses,Passenger railways
Buckinghamshire Council,30.11.2022,23.11.2022,"Planning, Growth & Sustainability",Housing & Homelessness & Regulatory PGS,WWW.SCREWFIX.COM,24.97,0,24.97,Administrative Equipment & Tools,Timber & building supplies
Buckinghamshire Council,30.11.2022,23.11.2022,"Planning, Growth & Sustainability",Climate Change & Environment - PGS,GABRIEL'S WHARF,254.87,0,254.87,Subsistence,Restaurants
Buckinghamshire Council,30.11.2022,23.11.2022,"Planning, Growth & Sustainability",Planning & Regeneration - PGS,TRAINLINE,25.81,0,25.81,Staff Travelling Expenses,Passenger railways
Buckinghamshire Council,30.11.2022,23.11.2022,Deputy Chief Executive,Communities - DCE,THE DELI,7.2,0,7.2,Subsistence,Fast food restaurants
Buckinghamshire Council,30.11.2022,23.11.2022,Communities,Culture & Leisure - Communities Dir,CONSERVATION BY DE,739.8,0,739.8,Administrative Equipment & Tools,Stationery & office supplies
Buckinghamshire Council,30.11.2022,23.11.2022,Communities,Climate Change & Environment - Community,ST JOHN AMBULANCE,-430.8,0,-430.8,Awaiting Coding,Charitable organisations
Buckinghamshire Council,30.11.2022,23.11.2022,Deputy Chief Executive,Communities - DCE,AO RETAIL LIMITED,907,0,907,Other Personal Needs,Household appliance stores
Buckinghamshire Council,30.11.2022,23.11.2022,Deputy Chief Executive,Communities - DCE,ARGOS LTD,110.95,0,110.95,Other Personal Needs,Discount stores
Buckinghamshire Council,30.11.2022,23.11.2022,Deputy Chief Executive,Communities - DCE,AO RETAIL LIMITED,"1,499.00",0,"1,499.00",Other Personal Needs,Household appliance stores
Buckinghamshire Council,30.11.2022,23.11.2022,Deputy Chief Executive,Communities - DCE,ARGOS LTD,55,0,55,Other Personal Needs,Discount stores
Buckinghamshire Council,30.11.2022,23.11.2022,Deputy Chief Executive,Communities - DCE,AO RETAIL LIMITED,582.99,0,582.99,Other Personal Needs,Household appliance stores
Buckinghamshire Council,30.11.2022,23.11.2022,Deputy Chief Executive,Communities - DCE,AO RETAIL LIMITED,219,0,219,Other Personal Needs,Household appliance stores
Buckinghamshire Council,30.11.2022,23.11.2022,Deputy Chief Executive,Communities - DCE,AO RETAIL LIMITED,374,0,374,Other Personal Needs,Household appliance stores
Buckinghamshire Council,30.11.2022,23.11.2022,Adults and Health,Health & Wellbeing - Adults & Health Dir,SAINSBURYS S/MKTS,16.25,0,16.25,General Provisions (Food),Grocery stores
Buckinghamshire Council,30.11.2022,23.11.2022,Communities,Housing & Homelessness & Regulatory Comm,TESCO STORES 2020,12.95,0,12.95,Purchase.of Refreshments and Food,Grocery stores
Buckinghamshire Council,30.11.2022,23.11.2022,Communities,Housing & Homelessness & Regulatory Comm,TESCO STORES 2020,41,0,41,Cleaning Materials,Grocery stores
Buckinghamshire Council,30.11.2022,23.11.2022,Children's Services,Education & Childrens Services - CS Dir,AMFBOWLING.CO.UK,15.5,0,15.5,Activities & General Recreation,Bowling alleys
Buckinghamshire Council,30.11.2022,23.11.2022,Children's Services,Education & Childrens Services - CS Dir,AMZNMKTPLACE,27.98,0,27.98,Consumable Supplies,Miscellaneous retail
Buckinghamshire Council,30.11.2022,23.11.2022,Children's Services,Education & Childrens Services - CS Dir,AMAZON.CO.UK,29.95,0,29.95,Activities & General Recreation,Direct sales companies
Buckinghamshire Council,30.11.2022,23.11.2022,Communities,Climate Change & Environment - Community,AMZNMKTPLACE,57.98,0,57.98,Equipment,Miscellaneous retail
Buckinghamshire Council,30.11.2022,23.11.2022,Communities,Climate Change & Environment - Community,AMZNMKTPLACE,29.97,0,29.97,Equipment,Miscellaneous retail
Buckinghamshire Council,30.11.2022,23.11.2022,Communities,Transport - Communities Dir,LUL TICKET MACHINE,21.4,4.28,25.68,"Courses, Conference and Seminar Fees",Passenger railways
Buckinghamshire Council,30.11.2022,23.11.2022,Communities,Transport - Communities Dir,LUL TICKET MACHINE,0.02,0,0.02,"Courses, Conference and Seminar Fees",Passenger railways
Buckinghamshire Council,30.11.2022,23.11.2022,Deputy Chief Executive,AH&R- DCE Dir,DISCLOSURE & BARRING,13,0,13,General Allowances,Government services
Buckinghamshire Council,30.11.2022,23.11.2022,Children's Services,Education & Childrens Services - CS Dir,Parts Retail Group,37.98,0,37.98,Awaiting Coding,Household appliance stores
Buckinghamshire Council,30.11.2022,23.11.2022,Children's Services,Education & Childrens Services - CS Dir,TICKETS 85563410,50.6,0,50.6,Awaiting Coding,Theatres and ticket agencies
Buckinghamshire Council,30.11.2022,23.11.2022,Children's Services,Education & Childrens Services - CS Dir,TICKETS 85563088,15.95,0,15.95,Awaiting Coding,Theatres and ticket agencies
Buckinghamshire Council,30.11.2022,23.11.2022,Children's Services,Education & Childrens Services - CS Dir,TICKETS 85570205,36.3,0,36.3,Awaiting Coding,Theatres and ticket agencies
Buckinghamshire Council,30.11.2022,23.11.2022,Children's Services,Education & Childrens Services - CS Dir,Amazon.co.uk,42.03,0,42.03,Stationery & Office Supplies,Direct sales companies
Buckinghamshire Council,30.11.2022,23.11.2022,Children's Services,Education & Childrens Services - CS Dir,WWW.ANYVAN.COM,14.74,0,14.74,Sec 20/31: Financial Assistance,"Haulage, removals & delivery"
Buckinghamshire Council,30.11.2022,23.11.2022,Children's Services,Education & Childrens Services - CS Dir,AMZ*LOW COST DISPOSABL,-11.38,0,-11.38,Support for Foster Carers,Miscellaneous retail
Buckinghamshire Council,30.11.2022,23.11.2022,Children's Services,Education & Childrens Services - CS Dir,B&M 426 - HS AYLESBURY,1.96,0,1.96,General Provisions (Food),Misc. general merchandise
Buckinghamshire Council,30.11.2022,23.11.2022,Children's Services,Education & Childrens Services - CS Dir,TESCO STORES 5927,4,0,4,General Provisions (Food),Grocery stores
Buckinghamshire Council,30.11.2022,23.11.2022,Children's Services,Education & Childrens Services - CS Dir,TESCO STORES 2041,21.3,0,21.3,General Provisions (Food),Grocery stores
Buckinghamshire Council,30.11.2022,23.11.2022,Children's Services,Education & Childrens Services - CS Dir,TRAVELODGE GB0000,271.51,0,271.51,Sec 17: Financial Assistance,Travelodge
Buckinghamshire Council,30.11.2022,23.11.2022,Children's Services,Education & Childrens Services - CS Dir,TRAVELODGE GB0766,13,0,13,Sec 17: Financial Assistance,Travelodge
Buckinghamshire Council,30.11.2022,23.11.2022,Communities,Transport - Communities Dir,ENGELBERT STRAUSS LTD,113.7,0,113.7,General Repairs & Maintenance,Timber & building supplies
Buckinghamshire Council,30.11.2022,23.11.2022,Communities,Transport - Communities Dir,STOKE MANDEVILLE T/O,30.6,0,30.6,Staff Travelling Expenses,Passenger railways
Buckinghamshire Council,30.11.2022,23.11.2022,Children's Services,Education & Childrens Services - CS Dir,UNITE STUDENTS,"1,614.00",0,"1,614.00",Leaving Care - Higher Education Supp,Professional services
Buckinghamshire Council,30.11.2022,23.11.2022,Adults and Health,Health & Wellbeing - Adults & Health Dir,SAINSBURYS S/MKTS,5.15,0,5.15,General Provisions (Food),Grocery stores
Buckinghamshire Council,30.11.2022,23.11.2022,"Planning, Growth & Sustainability",Housing & Homelessness & Regulatory PGS,CHARTERED INSTITUTE OF EN,246,0,246,Professional Subscriptions re Employees,Charitable organisations
Buckinghamshire Council,30.11.2022,23.11.2022,Children's Services,Education & Childrens Services - CS Dir,SP MEDICAL CARE ESSE,97.19,0,97.19,Purchase of Items for Resale,Computer software stores
Buckinghamshire Council,30.11.2022,23.11.2022,Resources,AH&R - Res Dir,BUCKINGHAMSHIRE COUN MOT,-150,0,-150,Miscellaneous (Other)  Expenses,Government services
Buckinghamshire Council,30.11.2022,23.11.2022,Children's Services,Education & Childrens Services - CS Dir,RUSH HIGH WYCOMBE,13.5,0,13.5,Activities & General Recreation,Misc. recreational services
Buckinghamshire Council,30.11.2022,23.11.2022,Children's Services,Education & Childrens Services - CS Dir,PARENTPAY E-COM R,10,0,10,Other Personal Needs,Colleges & universities
Buckinghamshire Council,30.11.2022,23.11.2022,,,SCREWFIX DIRECT,-29.69,0,-29.69,Construction - Building Work,Timber & building supplies
Buckinghamshire Council,30.11.2022,23.11.2022,"Planning, Growth & Sustainability",Housing & Homelessness & Regulatory PGS,AMAZON.CO.UK,16.88,0,16.88,Stationery & Office Supplies,Direct sales companies
Buckinghamshire Council,30.11.2022,23.11.2022,Deputy Chief Executive,AH&R- DCE Dir,TESCO STORES 2038,43.74,0,43.74,Awaiting Coding,Grocery stores
Buckinghamshire Council,30.11.2022,23.11.2022,Deputy Chief Executive,AH&R- DCE Dir,WH Smith Aylesbury,11.4,0,11.4,"Books, Records, Films & Oth Publications",Newspapers / newsagents
Buckinghamshire Council,30.11.2022,23.11.2022,Communities,Climate Change & Environment - Community,POST OFFICE COUNTER,5.55,0,5.55,General Postage,Postal services
Buckinghamshire Council,30.11.2022,23.11.2022,Communities,Climate Change & Environment - Community,MOONPIG,49.98,0,49.98,Awaiting Coding,Misc. general merchandise
Buckinghamshire Council,30.11.2022,23.11.2022,Communities,Climate Change & Environment - Community,JAYAR CAR PARTS,101.28,0,101.28,Repair & Maint of Vehicles & Plant,Automotive parts & accessories
Buckinghamshire Council,30.11.2022,23.11.2022,Adults and Health,Health & Wellbeing - Adults & Health Dir,AMAZON.CO.UK,37.79,0,37.79,Stationery & Office Supplies,Direct sales companies
Buckinghamshire Council,30.11.2022,23.11.2022,Adults and Health,Health & Wellbeing - Adults & Health Dir,SWAN HOTEL,424.15,84.83,508.98,Other Short Term Support,Restaurants
Buckinghamshire Council,30.11.2022,23.11.2022,Adults and Health,Health & Wellbeing - Adults & Health Dir,SWAN HOTEL,0.02,0,0.02,Other Short Term Support,Restaurants
Buckinghamshire Council,30.11.2022,23.11.2022,Deputy Chief Executive,Communities - DCE,ARGOS LTD,905.95,0,905.95,Other Personal Needs,Discount stores
Buckinghamshire Council,30.11.2022,22.11.2022,Children's Services,Education & Childrens Services - CS Dir,AMZNMKTPLACE,119.95,0,119.95,Other Equipment and Materials,Miscellaneous retail
Buckinghamshire Council,30.11.2022,22.11.2022,Children's Services,Education & Childrens Services - CS Dir,AMZNMKTPLACE,8.49,0,8.49,Furniture,Miscellaneous retail
Buckinghamshire Council,30.11.2022,22.11.2022,Communities,Culture & Leisure - Communities Dir,CJ'S LOCKSMITHS,5.95,0,5.95,Security Equipment,Misc. repair services
Buckinghamshire Council,30.11.2022,22.11.2022,"Planning, Growth & Sustainability",Housing & Homelessness & Regulatory PGS,CHARTERED INSTITUTE OF EN,246,0,246,Professional Subscriptions re Employees,Charitable organisations
Buckinghamshire Council,30.11.2022,22.11.2022,Adults and Health,Health & Wellbeing - Adults & Health Dir,SAINSBURYS S/MKTS,4,0,4,General Provisions (Food),Grocery stores
Buckinghamshire Council,30.11.2022,22.11.2022,Communities,Transport - Communities Dir,GWR OXFORD SST,35.3,0,35.3,Staff Travelling Expenses,Passenger railways
Buckinghamshire Council,30.11.2022,22.11.2022,Children's Services,Education & Childrens Services - CS Dir,AMZNMKTPLACE,157.46,0,157.46,Leaving Care - Grants for Care Leavers,Miscellaneous retail
Buckinghamshire Council,30.11.2022,22.11.2022,"Planning, Growth & Sustainability",Planning & Regeneration - PGS,WWW.CIOB.ORG.UK,305,0,305,Professional Subscriptions re Employees,Membership organisations
Buckinghamshire Council,30.11.2022,22.11.2022,Resources,AH&R - Res Dir,AMAZON.CO.UK,100,0,100,Miscellaneous (Other)  Expenses,Direct sales companies
Buckinghamshire Council,30.11.2022,22.11.2022,Deputy Chief Executive,Communities - DCE,AO RETAIL LIMITED,"1,118.99",0,"1,118.99",Other Personal Needs,Household appliance stores
Buckinghamshire Council,30.11.2022,22.11.2022,Deputy Chief Executive,Communities - DCE,ARGOS LTD,248.95,0,248.95,Other Personal Needs,Discount stores
Buckinghamshire Council,30.11.2022,22.11.2022,Deputy Chief Executive,Communities - DCE,ARGOS LTD,180,0,180,Other Personal Needs,Discount stores
Buckinghamshire Council,30.11.2022,22.11.2022,Deputy Chief Executive,Communities - DCE,AO RETAIL LIMITED,458.99,0,458.99,Other Personal Needs,Household appliance stores
Buckinghamshire Council,30.11.2022,22.11.2022,Deputy Chief Executive,Communities - DCE,AO RETAIL LIMITED,697.99,0,697.99,Other Personal Needs,Household appliance stores
Buckinghamshire Council,30.11.2022,22.11.2022,Deputy Chief Executive,Communities - DCE,AO RETAIL LIMITED,389,0,389,Other Personal Needs,Household appliance stores
Buckinghamshire Council,30.11.2022,22.11.2022,Deputy Chief Executive,Communities - DCE,AO RETAIL LIMITED,847.99,0,847.99,Other Personal Needs,Household appliance stores
Buckinghamshire Council,30.11.2022,22.11.2022,Deputy Chief Executive,Communities - DCE,AO RETAIL LIMITED,369,0,369,Other Personal Needs,Household appliance stores
Buckinghamshire Council,30.11.2022,22.11.2022,Deputy Chief Executive,Communities - DCE,ARGOS LTD,173.95,0,173.95,Other Personal Needs,Discount stores
Buckinghamshire Council,30.11.2022,22.11.2022,Deputy Chief Executive,Communities - DCE,ARGOS LTD,248.95,0,248.95,Other Personal Needs,Discount stores
Buckinghamshire Council,30.11.2022,22.11.2022,Deputy Chief Executive,Communities - DCE,ARGOS LTD,203.95,0,203.95,Other Personal Needs,Discount stores
Buckinghamshire Council,30.11.2022,22.11.2022,"Planning, Growth & Sustainability",Housing & Homelessness & Regulatory PGS,LAND REGISTRY ECOM CCC,3,0,3,Homelessness,Government services
Buckinghamshire Council,30.11.2022,22.11.2022,Adults and Health,Health & Wellbeing - Adults & Health Dir,AMZNMKTPLACE,5.75,0,5.75,Activities & General Recreation,Miscellaneous retail
Buckinghamshire Council,30.11.2022,22.11.2022,Communities,Climate Change & Environment - Community,FACEBK DBA4MLKCM2,200,0,200,Waste Prevention costs,Advertising services
Buckinghamshire Council,30.11.2022,22.11.2022,"Planning, Growth & Sustainability",AH&R - PGS Dir,SCREWFIX HIGH WYCOMBE CRE,54.98,0,54.98,General Repairs & Maintenance,Timber & building supplies
Buckinghamshire Council,30.11.2022,22.11.2022,Deputy Chief Executive,Communities - DCE,PAYPAL,180,0,180,Professional Services (non curriculum) - External,Professional services
Buckinghamshire Council,30.11.2022,22.11.2022,Children's Services,Education & Childrens Services - CS Dir,AMZNMktplace,7.99,0,7.99,Awaiting Coding,Miscellaneous retail
Buckinghamshire Council,30.11.2022,22.11.2022,Children's Services,Education & Childrens Services - CS Dir,AMZNMktplace,12.99,0,12.99,Awaiting Coding,Miscellaneous retail
Buckinghamshire Council,30.11.2022,22.11.2022,Children's Services,Education & Childrens Services - CS Dir,Amazon Prime,8.99,0,8.99,Stationery & Office Supplies,Continuous subscriptions
Buckinghamshire Council,30.11.2022,22.11.2022,Children's Services,Education & Childrens Services - CS Dir,Amazon Music,4.99,0,4.99,Awaiting Coding,Record shops
Buckinghamshire Council,30.11.2022,22.11.2022,Communities,Climate Change & Environment - Community,WWW.PLANNING.CO,266.2,0,266.2,Professional Services (non curriculum) - External,Misc business services
Buckinghamshire Council,30.11.2022,22.11.2022,Children's Services,Education & Childrens Services - CS Dir,AMZNMKTPLACE,75.45,0,75.45,Miscellaneous (Other)  Expenses,Miscellaneous retail
Buckinghamshire Council,30.11.2022,22.11.2022,Children's Services,Education & Childrens Services - CS Dir,AMAZON.CO.UK,10.99,0,10.99,"Books, Records, Films & Oth Publications",Direct sales companies
Buckinghamshire Council,30.11.2022,22.11.2022,Children's Services,Education & Childrens Services - CS Dir,DIRECT CARS,300,0,300,Court Orders Sec 31: Transport to School,Taxicabs & limousines
Buckinghamshire Council,30.11.2022,22.11.2022,Children's Services,Partnerships - Children's Services,WAITROSE,22,0,22,"Courses, Conference and Seminar Fees",Grocery stores
Buckinghamshire Council,30.11.2022,22.11.2022,Children's Services,Education & Childrens Services - CS Dir,WWW.ANYVAN.COM,268,0,268,Sec 20/31: Transport,"Haulage, removals & delivery"
Buckinghamshire Council,30.11.2022,22.11.2022,Children's Services,Education & Childrens Services - CS Dir,AMZNMKTPLACE,164.95,0,164.95,Furniture,Miscellaneous retail
Buckinghamshire Council,30.11.2022,22.11.2022,Children's Services,Education & Childrens Services - CS Dir,AMZNMKTPLACE,172.47,0,172.47,Furniture,Miscellaneous retail
Buckinghamshire Council,30.11.2022,22.11.2022,Children's Services,Education & Childrens Services - CS Dir,AMZNMKTPLACE,9.06,0,9.06,Furniture,Miscellaneous retail
Buckinghamshire Council,30.11.2022,22.11.2022,Resources,AH&R - Res Dir,SAPIEN TECHNOLOGIES,174.31,0,174.31,Annual Licence (IT),Misc business services
Buckinghamshire Council,30.11.2022,22.11.2022,Children's Services,Education & Childrens Services - CS Dir,TRAVELODGE GB0766,13,0,13,Sec 17: Financial Assistance,Travelodge
Buckinghamshire Council,30.11.2022,22.11.2022,Adults and Health,Health & Wellbeing - Adults & Health Dir,SAINSBURYS S/MKTS,12.9,0,12.9,"Courses, Conference and Seminar Fees",Grocery stores
Buckinghamshire Council,30.11.2022,22.11.2022,"Planning, Growth & Sustainability",Planning & Regeneration - PGS,WH SMITH,64.06,0,64.06,Stationery & Office Supplies,Newspapers / newsagents
Buckinghamshire Council,30.11.2022,22.11.2022,"Planning, Growth & Sustainability",Planning & Regeneration - PGS,AMAZON.CO.UK,24.99,0,24.99,Stationery & Office Supplies,Direct sales companies
Buckinghamshire Council,30.11.2022,22.11.2022,"Planning, Growth & Sustainability",Planning & Regeneration - PGS,AMZNMKTPLACE,42.98,0,42.98,Stationery & Office Supplies,Miscellaneous retail
Buckinghamshire Council,30.11.2022,22.11.2022,Children's Services,Education & Childrens Services - CS Dir,COOKSON PRECIOUS M,34.02,0,34.02,Educational Equipment,"Precious stones, metals & jewellery"
Buckinghamshire Council,30.11.2022,22.11.2022,Children's Services,Education & Childrens Services - CS Dir,COOKSON PRECIOUS M,42.86,0,42.86,Educational Equipment,"Precious stones, metals & jewellery"
Buckinghamshire Council,30.11.2022,22.11.2022,Children's Services,Education & Childrens Services - CS Dir,HOBBYCRAFT TRADING LIMITE,37.5,0,37.5,Educational Equipment,Art & craft shops
Buckinghamshire Council,30.11.2022,22.11.2022,Children's Services,Education & Childrens Services - CS Dir,SPORTSDIRECT.COM,41.99,0,41.99,Other Personal Needs,Sports & riding apparel shops
Buckinghamshire Council,30.11.2022,22.11.2022,Resources,AH&R - Res Dir,ARGOS LTD,70,0,70,Awaiting Coding,Discount stores
Buckinghamshire Council,30.11.2022,22.11.2022,"Planning, Growth & Sustainability",Housing & Homelessness & Regulatory PGS,TRESPASS,18.98,0,18.98,Other General Office Expenses,Sports & riding apparel shops
Buckinghamshire Council,30.11.2022,22.11.2022,"Planning, Growth & Sustainability",Housing & Homelessness & Regulatory PGS,ONE BELOW,1,0,1,Other General Office Expenses,Grocery stores
Buckinghamshire Council,30.11.2022,22.11.2022,Children's Services,Education & Childrens Services - CS Dir,AMZNMKTPLACE,63.8,0,63.8,Consumable Supplies,Miscellaneous retail
Buckinghamshire Council,30.11.2022,22.11.2022,Children's Services,Education & Childrens Services - CS Dir,AMZNMKTPLACE,15.95,0,15.95,Consumable Supplies,Miscellaneous retail
Buckinghamshire Council,30.11.2022,22.11.2022,Children's Services,Education & Childrens Services - CS Dir,AMZNMKTPLACE,15.95,0,15.95,Consumable Supplies,Miscellaneous retail
Buckinghamshire Council,30.11.2022,22.11.2022,Children's Services,Education & Childrens Services - CS Dir,AMAZON.CO.UK,13.99,0,13.99,Consumable Supplies,Direct sales companies
Buckinghamshire Council,30.11.2022,22.11.2022,Children's Services,Education & Childrens Services - CS Dir,INDEPENDENCE CARS,58,0,58,Staff Travelling Expenses,Taxicabs & limousines
Buckinghamshire Council,30.11.2022,22.11.2022,Communities,Transport - Communities Dir,PP*TAXICUSTOME,18.4,0,18.4,Staff Travelling Expenses,Taxicabs & limousines
Buckinghamshire Council,30.11.2022,22.11.2022,Deputy Chief Executive,Communities - DCE,ARGOS LTD,20.95,0,20.95,Other Personal Needs,Discount stores
Buckinghamshire Council,30.11.2022,22.11.2022,Communities,Culture & Leisure - Communities Dir,TVLICENSING.CO.UK,159,0,159,Administrative Equipment & Tools,Consultants & public relation services
Buckinghamshire Council,30.11.2022,22.11.2022,Communities,Culture & Leisure - Communities Dir,TVLICENSING.CO.UK,159,0,159,Administrative Equipment & Tools,Consultants & public relation services
Buckinghamshire Council,30.11.2022,22.11.2022,Deputy Chief Executive,AH&R- DCE Dir,PREMIER INN,127.5,0,127.5,"Courses, Conference and Seminar Fees",Premier Inn
Buckinghamshire Council,30.11.2022,22.11.2022,Deputy Chief Executive,AH&R- DCE Dir,KINGSHILL CARS,14,0,14,Staff Travelling Expenses,Taxicabs & limousines
Buckinghamshire Council,30.11.2022,21.11.2022,Adults and Health,Health & Wellbeing - Adults & Health Dir,SAINSBURYS S/MKTS,11.4,0,11.4,General Provisions (Food),Grocery stores
Buckinghamshire Council,30.11.2022,21.11.2022,Children's Services,Education & Childrens Services - CS Dir,ICELAND,14.79,0,14.79,Project Funding,Grocery stores
Buckinghamshire Council,30.11.2022,21.11.2022,"Planning, Growth & Sustainability",Climate Change & Environment - PGS,TRAINLINE,52.54,0,52.54,Staff Travelling Expenses,Passenger railways
Buckinghamshire Council,30.11.2022,21.11.2022,"Planning, Growth & Sustainability",Climate Change & Environment - PGS,TRAINLINE,84.02,0,84.02,Staff Travelling Expenses,Passenger railways
Buckinghamshire Council,30.11.2022,21.11.2022,"Planning, Growth & Sustainability",Climate Change & Environment - PGS,APCOA PARKING UK,8.5,0,8.5,Staff Travelling Expenses,Car parking & garages
Buckinghamshire Council,30.11.2022,21.11.2022,"Planning, Growth & Sustainability",Climate Change & Environment - PGS,TRAINLINE.COM,47.55,0,47.55,Staff Travelling Expenses,Passenger railways
Buckinghamshire Council,30.11.2022,21.11.2022,"Planning, Growth & Sustainability",Climate Change & Environment - PGS,TRAINLINE.COM,50.3,0,50.3,Staff Travelling Expenses,Passenger railways
Buckinghamshire Council,30.11.2022,21.11.2022,"Planning, Growth & Sustainability",Climate Change & Environment - PGS,TRAINLINE,47.55,0,47.55,Staff Travelling Expenses,Passenger railways
Buckinghamshire Council,30.11.2022,21.11.2022,"Planning, Growth & Sustainability",Climate Change & Environment - PGS,TRAINLINE.COM,59.27,0,59.27,Staff Travelling Expenses,Passenger railways
Buckinghamshire Council,30.11.2022,21.11.2022,Deputy Chief Executive,Communities - DCE,CROWN COFFEE,3.2,0,3.2,Subsistence,Restaurants
Buckinghamshire Council,30.11.2022,21.11.2022,Communities,Climate Change & Environment - Community,DVLA VEHICLE TAX,280,0,280,Vehicle Insurance,Government services
Buckinghamshire Council,30.11.2022,21.11.2022,Communities,Climate Change & Environment - Community,DVLA VEHICLE TAX,150,0,150,Vehicle Insurance,Government services
Buckinghamshire Council,30.11.2022,21.11.2022,Deputy Chief Executive,Communities - DCE,ARGOS LTD,353.95,0,353.95,Other Personal Needs,Discount stores
Buckinghamshire Council,30.11.2022,21.11.2022,Deputy Chief Executive,Communities - DCE,AO RETAIL LIMITED,747.99,0,747.99,Other Personal Needs,Household appliance stores
Buckinghamshire Council,30.11.2022,21.11.2022,Deputy Chief Executive,Communities - DCE,AO RETAIL LIMITED,259,0,259,Other Personal Needs,Household appliance stores
Buckinghamshire Council,30.11.2022,21.11.2022,Deputy Chief Executive,Communities - DCE,ARGOS LTD,37.95,0,37.95,Other Personal Needs,Discount stores
Buckinghamshire Council,30.11.2022,21.11.2022,Deputy Chief Executive,Communities - DCE,AO RETAIL LIMITED,359,0,359,Other Personal Needs,Household appliance stores
Buckinghamshire Council,30.11.2022,21.11.2022,Deputy Chief Executive,Communities - DCE,ARGOS LTD,433.95,0,433.95,Other Personal Needs,Discount stores
Buckinghamshire Council,30.11.2022,21.11.2022,"Planning, Growth & Sustainability",Housing & Homelessness & Regulatory PGS,LAND REGISTRY ECOM CCC,3,0,3,Homelessness,Government services
Buckinghamshire Council,30.11.2022,21.11.2022,Resources,AH&R - Res Dir,YELLOW CARS HW LTD,600,0,600,Staff Travelling Expenses,Taxicabs & limousines
Buckinghamshire Council,30.11.2022,21.11.2022,Adults and Health,Health & Wellbeing - Adults & Health Dir,AMZNMKTPLACE,31.12,0,31.12,Activities & General Recreation,Miscellaneous retail
Buckinghamshire Council,30.11.2022,21.11.2022,Adults and Health,Health & Wellbeing - Adults & Health Dir,AMZNMKTPLACE,21.46,0,21.46,Activities & General Recreation,Miscellaneous retail
Buckinghamshire Council,30.11.2022,21.11.2022,Adults and Health,Health & Wellbeing - Adults & Health Dir,AMZNMKTPLACE,17.46,0,17.46,Activities & General Recreation,Miscellaneous retail
Buckinghamshire Council,30.11.2022,21.11.2022,Adults and Health,Health & Wellbeing - Adults & Health Dir,TESCO STORES 5135,152.2,0,152.2,Purchase.of Refreshments and Food,Grocery stores
Buckinghamshire Council,30.11.2022,21.11.2022,Adults and Health,Health & Wellbeing - Adults & Health Dir,TESCO STORES 5135,-3.36,0,-3.36,Awaiting Coding,Grocery stores
Buckinghamshire Council,30.11.2022,21.11.2022,Children's Services,Education & Childrens Services - CS Dir,ARRIVA UK BUS,100.3,0,100.3,Staff Travelling Expenses,"Buses, charter & tour"
Buckinghamshire Council,30.11.2022,21.11.2022,Communities,Culture & Leisure - Communities Dir,PROGREEN WEED CONTROL,40.35,8.07,48.42,"Workshop - Materials,Tools & Equipment",Lawn & garden supply/nursery
Buckinghamshire Council,30.11.2022,21.11.2022,Communities,Culture & Leisure - Communities Dir,PROGREEN WEED CONTROL,0.02,0,0.02,"Workshop - Materials,Tools & Equipment",Lawn & garden supply/nursery
Buckinghamshire Council,30.11.2022,21.11.2022,Adults and Health,Health & Wellbeing - Adults & Health Dir,WICKES AYLESBURY,46,0,46,Other Equipment and Materials,Timber & building supplies
Buckinghamshire Council,30.11.2022,21.11.2022,Children's Services,Education & Childrens Services - CS Dir,FURNITURE@WORK LTD,273.6,0,273.6,Other Equipment and Materials,Floor covering stores
Buckinghamshire Council,30.11.2022,21.11.2022,"Planning, Growth & Sustainability",AH&R - PGS Dir,REPLACEMENT KEYS LTD,29.85,0,29.85,Miscellaneous (Other)  Expenses,Misc. general merchandise
Buckinghamshire Council,30.11.2022,21.11.2022,"Planning, Growth & Sustainability",AH&R - PGS Dir,GRANT AND STONE,20.77,0,20.77,General Repairs & Maintenance,Hardware stores
Buckinghamshire Council,30.11.2022,21.11.2022,"Planning, Growth & Sustainability",AH&R - PGS Dir,SCREWFIX DIR LTD,23.25,0,23.25,General Repairs & Maintenance,Timber & building supplies
Buckinghamshire Council,30.11.2022,21.11.2022,"Planning, Growth & Sustainability",AH&R - PGS Dir,EURO CAR PARTS P,18.88,0,18.88,Repair & Maint of Vehicles & Plant,Automotive parts & accessories
Buckinghamshire Council,30.11.2022,21.11.2022,Adults and Health,Communities - Adults & Health,AMZNMKTPLACE,5.99,0,5.99,Miscellaneous (Other)  Expenses,Miscellaneous retail
Buckinghamshire Council,30.11.2022,21.11.2022,Adults and Health,Health & Wellbeing - Adults & Health Dir,TESCO STORES 5927,8.3,0,8.3,Awaiting Coding,Grocery stores
Buckinghamshire Council,30.11.2022,21.11.2022,Children's Services,Education & Childrens Services - CS Dir,Prime Video,3.99,0,3.99,Awaiting Coding,Record shops
Buckinghamshire Council,30.11.2022,21.11.2022,Children's Services,Education & Childrens Services - CS Dir,AMZNMKTPLACE,39.69,0,39.69,"Books, Records, Films & Oth Publications",Miscellaneous retail
Buckinghamshire Council,30.11.2022,21.11.2022,Adults and Health,Health & Wellbeing - Adults & Health Dir,WM MORRISONS STORE,22.98,0,22.98,General Provisions (Food),Grocery stores
Buckinghamshire Council,30.11.2022,21.11.2022,Adults and Health,Health & Wellbeing - Adults & Health Dir,AMZNMKTPLACE,14.97,0,14.97,Other Supplies,Miscellaneous retail
Buckinghamshire Council,30.11.2022,21.11.2022,Children's Services,Education & Childrens Services - CS Dir,ASDA GROCERIES ONLINE,92.4,0,92.4,Awaiting Coding,Grocery stores
Buckinghamshire Council,30.11.2022,21.11.2022,Children's Services,Education & Childrens Services - CS Dir,WILKO.COM,117.6,0,117.6,Awaiting Coding,Misc. general merchandise
Buckinghamshire Council,30.11.2022,21.11.2022,Children's Services,Education & Childrens Services - CS Dir,ASDA SUPERSTORE,54.9,0,54.9,Awaiting Coding,Grocery stores
Buckinghamshire Council,30.11.2022,21.11.2022,Children's Services,Education & Childrens Services - CS Dir,ASDA GROCERIES ONLINE,-2.33,0,-2.33,Awaiting Coding,Grocery stores
Buckinghamshire Council,30.11.2022,21.11.2022,Children's Services,Education & Childrens Services - CS Dir,AMZNMKTPLACE,229.77,0,229.77,Furniture,Miscellaneous retail
Buckinghamshire Council,30.11.2022,21.11.2022,Children's Services,Education & Childrens Services - CS Dir,TESCO STORES 3045,12.15,0,12.15,"Exp of School, Club & College Activities",Grocery stores
Buckinghamshire Council,30.11.2022,21.11.2022,Children's Services,Education & Childrens Services - CS Dir,BOOTS 1434,13.5,0,13.5,Sec 17: Financial Assistance,Chemists & pharmacies
Buckinghamshire Council,30.11.2022,21.11.2022,Children's Services,Education & Childrens Services - CS Dir,ROBERT DYAS AMERSHAM,8.69,0,8.69,Sec 17: Financial Assistance,Hardware stores
Buckinghamshire Council,30.11.2022,21.11.2022,Children's Services,Education & Childrens Services - CS Dir,TRAVELODGE GB0766,11.94,0,11.94,Sec 17: Financial Assistance,Travelodge
Buckinghamshire Council,30.11.2022,21.11.2022,Children's Services,Education & Childrens Services - CS Dir,TRAVELODGE GB0000,10.2,0,10.2,Sec 17: Financial Assistance,Travelodge
Buckinghamshire Council,30.11.2022,21.11.2022,Children's Services,Education & Childrens Services - CS Dir,XL DISPLAYS LTD,78,15.6,93.6,Printing & Stationery,Misc. general merchandise
Buckinghamshire Council,30.11.2022,21.11.2022,Resources,AH&R - Res Dir,LINKEDIN 8483302444,102.52,0,102.52,Permanent Recruitment Costs,Advertising services
Buckinghamshire Council,30.11.2022,21.11.2022,Children's Services,Education & Childrens Services - CS Dir,HOBBYCRAFT TRADING LIMITE,15,0,15,Educational Equipment,Art & craft shops
Buckinghamshire Council,30.11.2022,21.11.2022,"Planning, Growth & Sustainability",Housing & Homelessness & Regulatory PGS,CHARTERED INSTITUTE OF EN,70,0,70,"Courses, Conference and Seminar Fees",Charitable organisations
Buckinghamshire Council,30.11.2022,21.11.2022,Deputy Chief Executive,Communities - DCE,43013665 COSTA COFFEE,6.4,0,6.4,General Provisions (Food),Fast food restaurants
Buckinghamshire Council,30.11.2022,21.11.2022,Adults and Health,Health & Wellbeing - Adults & Health Dir,TESCO STORES 5135,81.46,0,81.46,General Provisions (Food),Grocery stores
Buckinghamshire Council,30.11.2022,21.11.2022,Children's Services,Education & Childrens Services - CS Dir,TRAINLINE,28.92,0,28.92,Sec 20/31: Supp for Contact,Passenger railways
Buckinghamshire Council,30.11.2022,21.11.2022,Children's Services,Education & Childrens Services - CS Dir,TESCO STORES 2020,149.68,0,149.68,Consumable Supplies,Grocery stores
Buckinghamshire Council,30.11.2022,21.11.2022,Deputy Chief Executive,Communities - DCE,BOILERJUICE,878.38,0,878.38,Petrol,Fuel dealers
Buckinghamshire Council,30.11.2022,21.11.2022,"Planning, Growth & Sustainability",Partnership Climate Change & Envir - PGS,TRAINLINE,69.35,0,69.35,Staff Travelling Expenses,Passenger railways
Buckinghamshire Council,30.11.2022,20.11.2022,Children's Services,Education & Childrens Services - CS Dir,AMAZON.CO.UK,30.75,0,30.75,Stationery & Office Supplies,Direct sales companies
Buckinghamshire Council,30.11.2022,20.11.2022,Deputy Chief Executive,Communities - DCE,AO RETAIL LIMITED,-25,0,-25,Other Personal Needs,Household appliance stores
Buckinghamshire Council,30.11.2022,20.11.2022,Children's Services,Education & Childrens Services - CS Dir,AMAZON.CO.UK,41.64,0,41.64,Consumable Supplies,Direct sales companies
Buckinghamshire Council,30.11.2022,20.11.2022,Deputy Chief Executive,Communities - DCE,THE GRIFFIN OLD AMERSHAM,12.6,0,12.6,General Provisions (Food),Restaurants
Buckinghamshire Council,30.11.2022,20.11.2022,Resources,AH&R - Res Dir,FACEBK *UVTVQHXL72,50.01,0,50.01,Permanent Recruitment Costs,Advertising services
Buckinghamshire Council,30.11.2022,20.11.2022,Children's Services,Education & Childrens Services - CS Dir,PP*ACET UK,20,0,20,Activities Programme,Charitable organisations
Buckinghamshire Council,30.11.2022,19.11.2022,Children's Services,Education & Childrens Services - CS Dir,AMAZON.CO.UK,83.4,0,83.4,Stationery & Office Supplies,Direct sales companies
Buckinghamshire Council,30.11.2022,19.11.2022,Deputy Chief Executive,Communities - DCE,TINGEWICK FUELS,196,0,196,Petrol,Fuel dealers
Buckinghamshire Council,30.11.2022,19.11.2022,Communities,Climate Change & Environment - Community,TWITTER ONLINE ADS,14.47,0,14.47,Waste Prevention costs,Advertising services
Buckinghamshire Council,30.11.2022,19.11.2022,Children's Services,Education & Childrens Services - CS Dir,AMZNMKTPLACE,41.94,0,41.94,Consumable Supplies,Miscellaneous retail
Buckinghamshire Council,30.11.2022,19.11.2022,Deputy Chief Executive,AH&R- DCE Dir,AMAZON PRIME,8.99,0,8.99,Stationery & Office Supplies,Continuous subscriptions
Buckinghamshire Council,30.11.2022,19.11.2022,Communities,Partnerships - Communities,AMZNMKTPLACE,407.97,68.01,407.97,Awaiting Coding,Miscellaneous retail
Buckinghamshire Council,30.11.2022,19.11.2022,"Planning, Growth & Sustainability",Planning & Regeneration - PGS,AMZNMKTPLACE,61.8,0,61.8,IT Equipment Purchase,Miscellaneous retail
Buckinghamshire Council,30.11.2022,19.11.2022,"Planning, Growth & Sustainability",Housing & Homelessness & Regulatory PGS,AMAZON PRIME,8.99,0,8.99,Stationery & Office Supplies,Continuous subscriptions
Buckinghamshire Council,30.11.2022,19.11.2022,Communities,Climate Change & Environment - Community,TIMPSON LTD,28,0,28,Awaiting Coding,Miscellaneous retail
Buckinghamshire Council,30.11.2022,18.11.2022,Children's Services,Education & Childrens Services - CS Dir,AMZNMKTPLACE,62.52,0,62.52,General Provisions (Food),Miscellaneous retail
Buckinghamshire Council,30.11.2022,18.11.2022,Children's Services,Education & Childrens Services - CS Dir,AMZNMKTPLACE,8.98,0,8.98,Cleaning & Domestic Equipment,Miscellaneous retail
Buckinghamshire Council,30.11.2022,18.11.2022,Children's Services,Education & Childrens Services - CS Dir,AMZNMKTPLACE,19.46,0,19.46,Health & Safety Supplies & Services,Miscellaneous retail
Buckinghamshire Council,30.11.2022,18.11.2022,Children's Services,Education & Childrens Services - CS Dir,D C THOMSON & CO,59.99,0,59.99,"Books, Records, Films & Oth Publications",Newspapers / newsagents
Buckinghamshire Council,30.11.2022,18.11.2022,Resources,AH&R - Res Dir,SP ALDI GROCERY VOUC,60,0,60,Awaiting Coding,Misc. general merchandise
Buckinghamshire Council,30.11.2022,18.11.2022,Children's Services,Education & Childrens Services - CS Dir,UK CARS (HIGH WYCOMBE),200,0,200,Staff Travelling Expenses,Taxicabs & limousines
Buckinghamshire Council,30.11.2022,18.11.2022,Children's Services,Education & Childrens Services - CS Dir,AMZNMKTPLACE,18.49,0,18.49,General Provisions (Food),Miscellaneous retail
Buckinghamshire Council,30.11.2022,18.11.2022,Resources,AH&R - Res Dir,C2E835800089F UKVI,"3,199.00",0,"3,199.00",Professional Services (non curriculum) - External,Government services
Buckinghamshire Council,30.11.2022,18.11.2022,Adults and Health,Health & Wellbeing - Adults & Health Dir,AMZNMKTPLACE,27.99,0,27.99,Other Supplies,Miscellaneous retail
Buckinghamshire Council,30.11.2022,18.11.2022,Children's Services,Education & Childrens Services - CS Dir,TRAINLINE,91.9,0,91.9,Sec 20/31: Supp for Contact,Passenger railways
Buckinghamshire Council,30.11.2022,18.11.2022,Children's Services,Education & Childrens Services - CS Dir,A1 TAXI SERVICE,715,143,858,Sec 20/31: Transport,Taxicabs & limousines
Buckinghamshire Council,30.11.2022,18.11.2022,Children's Services,Education & Childrens Services - CS Dir,WWW.ANYVAN.COM,211,0,211,Sec 20/31: Specialist Services,"Haulage, removals & delivery"
Buckinghamshire Council,30.11.2022,18.11.2022,"Planning, Growth & Sustainability",AH&R - PGS Dir,LOCK & KEY CENTRE,8,0,8,Awaiting Coding,Shoe repairs
Buckinghamshire Council,30.11.2022,18.11.2022,Deputy Chief Executive,Communities - DCE,AO RETAIL LIMITED,738.99,0,738.99,Other Personal Needs,Household appliance stores
Buckinghamshire Council,30.11.2022,18.11.2022,Deputy Chief Executive,Communities - DCE,ARGOS LTD,58.95,0,58.95,Other Personal Needs,Discount stores
Buckinghamshire Council,30.11.2022,18.11.2022,Children's Services,Education & Childrens Services - CS Dir,AMZNMKTPLACE,159,0,159,YOS - Direct Work,Miscellaneous retail
Buckinghamshire Council,30.11.2022,18.11.2022,Communities,Housing & Homelessness & Regulatory Comm,TELESHORE GROUP,46.8,9.36,56.16,Urns & Caskets,Hardware stores
Buckinghamshire Council,30.11.2022,18.11.2022,Children's Services,Education & Childrens Services - CS Dir,AMAZON.CO.UK,29,0,29,Consumable Supplies,Direct sales companies
Buckinghamshire Council,30.11.2022,18.11.2022,Children's Services,Education & Childrens Services - CS Dir,QUICKSTEP BURNHAM,30,0,30,General Repairs & Maintenance,Shoe repairs
Buckinghamshire Council,30.11.2022,18.11.2022,Communities,Climate Change & Environment - Community,L & S ENGINEERS LTD,108.63,0,108.63,Maintenance of Cremators Plant & Equip,Hardware stores
Buckinghamshire Council,30.11.2022,18.11.2022,Communities,Climate Change & Environment - Community,STARTSAFETY.UK,173.32,0,173.32,Maintenance of Cremators Plant & Equip,Misc. general merchandise
Buckinghamshire Council,30.11.2022,18.11.2022,Deputy Chief Executive,Communities - DCE,WH SMITH AMERSHAM,4.5,0,4.5,General Provisions (Food),Newspapers / newsagents
Buckinghamshire Council,30.11.2022,18.11.2022,Deputy Chief Executive,Communities - DCE,RINGGO PARKING,2.65,0,2.65,Staff Travelling Expenses,Car parking & garages
Buckinghamshire Council,30.11.2022,18.11.2022,Deputy Chief Executive,Communities - DCE,CHILTERN POOL,4.6,0,4.6,General Provisions (Food),"Member clubs, sport, recreation & golf"
Buckinghamshire Council,30.11.2022,18.11.2022,Children's Services,Education & Childrens Services - CS Dir,SP BIG LIFE JOURNAL,35.72,0,35.72,"Books, Records, Films & Oth Publications",Stationery & office supplies stores
Buckinghamshire Council,30.11.2022,18.11.2022,Children's Services,Education & Childrens Services - CS Dir,TRAINLINE,89.9,0,89.9,Sec 20/31: Transport,Passenger railways
Buckinghamshire Council,30.11.2022,18.11.2022,Children's Services,Education & Childrens Services - CS Dir,HM PASSPORT OFFICE,75.5,0,75.5,Sec 20/31: Financial Assistance,Government services
Buckinghamshire Council,30.11.2022,18.11.2022,Children's Services,Education & Childrens Services - CS Dir,IKEA LTD SHOP ONLINE,9,0,9,Equipment for Training and Mats for Ins.,Furniture & home furnishing
Buckinghamshire Council,30.11.2022,18.11.2022,Children's Services,Education & Childrens Services - CS Dir,TRAVELODGE GB0000,214.66,0,214.66,Sec 17: Financial Assistance,Travelodge
Buckinghamshire Council,30.11.2022,18.11.2022,Children's Services,Education & Childrens Services - CS Dir,TRAVELODGE GB0000,249.34,0,249.34,Sec 17: Financial Assistance,Travelodge
Buckinghamshire Council,30.11.2022,18.11.2022,Communities,Transport - Communities Dir,ARGOS LTD,299.95,0,299.95,Stationery & Office Supplies,Discount stores
Buckinghamshire Council,30.11.2022,18.11.2022,Children's Services,Education & Childrens Services - CS Dir,WWW.JOHNLEWIS.COM,287.49,0,287.49,Equipment (including storage),Department stores
Buckinghamshire Council,30.11.2022,18.11.2022,Children's Services,Education & Childrens Services - CS Dir,ARGOS LTD,25.95,0,25.95,Equipment (including storage),Discount stores
Buckinghamshire Council,30.11.2022,18.11.2022,Communities,Transport - Communities Dir,STOKE MANDEVILLE SSTP,30.3,0,30.3,Staff Travelling Expenses,Passenger railways
Buckinghamshire Council,30.11.2022,18.11.2022,Communities,Transport - Communities Dir,TFL TRAVEL CH,5,0,5,Staff Travelling Expenses,Local commuter transport
Buckinghamshire Council,30.11.2022,18.11.2022,Communities,Partnerships - Communities,AMZ*eShoppin,-129.99,0,-129.99,Awaiting Coding,Miscellaneous retail
Buckinghamshire Council,30.11.2022,18.11.2022,Children's Services,Education & Childrens Services - CS Dir,HALFORDS E.COMM,137.4,0,137.4,Repair & Maint of Vehicles & Plant,Automotive parts & accessories
Buckinghamshire Council,30.11.2022,18.11.2022,Children's Services,Education & Childrens Services - CS Dir,ASDAN,270,0,270,Activities & General Recreation,Schools
Buckinghamshire Council,30.11.2022,18.11.2022,"Planning, Growth & Sustainability",Housing & Homelessness & Regulatory PGS,AMAZON MUSIC,4.99,0,4.99,Stationery & Office Supplies,Record shops
Buckinghamshire Council,30.11.2022,18.11.2022,Children's Services,Education & Childrens Services - CS Dir,SQ *PANTRY,6.8,0,6.8,Activities Programme,Restaurants
Buckinghamshire Council,30.11.2022,18.11.2022,Children's Services,Education & Childrens Services - CS Dir,RELAXKIDS,33.69,0,33.69,Awaiting Coding,Schools
Buckinghamshire Council,30.11.2022,18.11.2022,Children's Services,Education & Childrens Services - CS Dir,TRAINLINE,57.23,0,57.23,Sec 20/31: Supp for Contact,Passenger railways
Buckinghamshire Council,30.11.2022,18.11.2022,"Planning, Growth & Sustainability",Housing & Homelessness & Regulatory PGS,R H ENVIRONMENTAL LTD,330,0,330,"Courses, Conference and Seminar Fees",Computer software stores
Buckinghamshire Council,30.11.2022,18.11.2022,Communities,Communities - Trading Accounts,DVLA VEHICLE TAX,290,0,290,Vehicle Taxation Costs,Tax payments
Buckinghamshire Council,30.11.2022,18.11.2022,Communities,Communities - Trading Accounts,DVLA VEHICLE TAX,165,0,165,Vehicle Taxation Costs,Tax payments
Buckinghamshire Council,30.11.2022,18.11.2022,Communities,Communities - Trading Accounts,DVLA VEHICLE TAX,165,0,165,Vehicle Taxation Costs,Tax payments
Buckinghamshire Council,30.11.2022,18.11.2022,Communities,Communities - Trading Accounts,DVLA VEHICLE TAX,165,0,165,Vehicle Taxation Costs,Tax payments
Buckinghamshire Council,30.11.2022,18.11.2022,Communities,Communities - Trading Accounts,DVLA VEHICLE TAX,165,0,165,Vehicle Taxation Costs,Tax payments
Buckinghamshire Council,30.11.2022,18.11.2022,Communities,Communities - Trading Accounts,DVLA VEHICLE TAX,165,0,165,Vehicle Taxation Costs,Tax payments
Buckinghamshire Council,30.11.2022,18.11.2022,Communities,Communities - Trading Accounts,DVLA VEHICLE TAX,290,0,290,Vehicle Taxation Costs,Tax payments
Buckinghamshire Council,30.11.2022,18.11.2022,Communities,Communities - Trading Accounts,DVLA VEHICLE TAX,165,0,165,Vehicle Taxation Costs,Tax payments
Buckinghamshire Council,30.11.2022,18.11.2022,Communities,Communities - Trading Accounts,DVLA VEHICLE TAX,295,0,295,Vehicle Taxation Costs,Tax payments
Buckinghamshire Council,30.11.2022,18.11.2022,Communities,Communities - Trading Accounts,DVLA VEHICLE TAX,290,0,290,Vehicle Taxation Costs,Tax payments
Buckinghamshire Council,30.11.2022,18.11.2022,Communities,Communities - Trading Accounts,DVLA VEHICLE TAX,165,0,165,Vehicle Taxation Costs,Tax payments
Buckinghamshire Council,30.11.2022,18.11.2022,Communities,Communities - Trading Accounts,DVLA VEHICLE TAX,165,0,165,Vehicle Taxation Costs,Tax payments
Buckinghamshire Council,30.11.2022,18.11.2022,Communities,Communities - Trading Accounts,DVLA VEHICLE TAX,290,0,290,Vehicle Taxation Costs,Tax payments
Buckinghamshire Council,30.11.2022,18.11.2022,Communities,Communities - Trading Accounts,DVLA VEHICLE TAX,165,0,165,Vehicle Taxation Costs,Tax payments
Buckinghamshire Council,30.11.2022,18.11.2022,Communities,Communities - Trading Accounts,DVLA VEHICLE TAX,290,0,290,Vehicle Taxation Costs,Tax payments
Buckinghamshire Council,30.11.2022,18.11.2022,Children's Services,Education & Childrens Services - CS Dir,AMZNMKTPLACE,59.94,0,59.94,Consumable Supplies,Miscellaneous retail
Buckinghamshire Council,30.11.2022,17.11.2022,"Planning, Growth & Sustainability",Housing & Homelessness & Regulatory PGS,LAND REGISTRY ECOM CCC,3,0,3,Homelessness,Government services
Buckinghamshire Council,30.11.2022,17.11.2022,"Planning, Growth & Sustainability",Housing & Homelessness & Regulatory PGS,LAND REGISTRY ECOM CCC,3,0,3,Homelessness,Government services
Buckinghamshire Council,30.11.2022,17.11.2022,Communities,Housing & Homelessness & Regulatory Comm,CANFORD AUDIO PLC,201.6,0,201.6,General Repairs & Maintenance,Electrical parts & equipment
Buckinghamshire Council,30.11.2022,17.11.2022,Children's Services,Education & Childrens Services - CS Dir,AMAZON.CO.UK,18.99,0,18.99,Stationery & Office Supplies,Direct sales companies
Buckinghamshire Council,30.11.2022,17.11.2022,Children's Services,Education & Childrens Services - CS Dir,AMAZON.CO.UK,41.99,0,41.99,Other Personal Needs,Direct sales companies
Buckinghamshire Council,30.11.2022,17.11.2022,Children's Services,Education & Childrens Services - CS Dir,AMAZON.CO.UK,32.8,0,32.8,General Provisions (Food),Direct sales companies
Buckinghamshire Council,30.11.2022,17.11.2022,Children's Services,Education & Childrens Services - CS Dir,AMAZON.CO.UK,20,0,20,General Provisions (Food),Direct sales companies
Buckinghamshire Council,30.11.2022,17.11.2022,Children's Services,Education & Childrens Services - CS Dir,AMZNMKTPLACE,18.55,0,18.55,General Provisions (Food),Miscellaneous retail
Buckinghamshire Council,30.11.2022,17.11.2022,Children's Services,Education & Childrens Services - CS Dir,AMZNMKTPLACE,12.99,0,12.99,General Provisions (Food),Miscellaneous retail
Buckinghamshire Council,30.11.2022,17.11.2022,Children's Services,Education & Childrens Services - CS Dir,AMZNMKTPLACE,11.97,0,11.97,General Provisions (Food),Miscellaneous retail
Buckinghamshire Council,30.11.2022,17.11.2022,Children's Services,Education & Childrens Services - CS Dir,AMZNMKTPLACE,9.99,0,9.99,General Provisions (Food),Miscellaneous retail
Buckinghamshire Council,30.11.2022,17.11.2022,Children's Services,Education & Childrens Services - CS Dir,TRAVELODGE GB0000,399.75,0,399.75,Sec 17: Financial Assistance,Travelodge
Buckinghamshire Council,30.11.2022,17.11.2022,Deputy Chief Executive,Communities - DCE,AMZNMKTPLACE,9.99,0,9.99,Other General Office Expenses,Miscellaneous retail
Buckinghamshire Council,30.11.2022,17.11.2022,Children's Services,Education & Childrens Services - CS Dir,TAXIPAY,85,0,85,Sec 20/31: Supp for Contact,Taxicabs & limousines
Buckinghamshire Council,30.11.2022,17.11.2022,Children's Services,Education & Childrens Services - CS Dir,TAXIPAY,85,0,85,Sec 20/31: Supp for Contact,Taxicabs & limousines
Buckinghamshire Council,30.11.2022,17.11.2022,Communities,Climate Change & Environment - Community,DVLA DRIVERS TACHOGRAPH W,32,0,32,Awaiting Coding,Government services
Buckinghamshire Council,30.11.2022,17.11.2022,"Planning, Growth & Sustainability",AH&R - PGS Dir,AMZNMktplace,5.28,0,5.28,Awaiting Coding,Miscellaneous retail
Buckinghamshire Council,30.11.2022,17.11.2022,Children's Services,Education & Childrens Services - CS Dir,TAXIPAY,9,0,9,Sec 20/31: Transport,Taxicabs & limousines
Buckinghamshire Council,30.11.2022,17.11.2022,Deputy Chief Executive,Communities - DCE,AO RETAIL LIMITED,"1,061.99",0,"1,061.99",Other Personal Needs,Household appliance stores
Buckinghamshire Council,30.11.2022,17.11.2022,Deputy Chief Executive,Communities - DCE,AO RETAIL LIMITED,439.99,0,439.99,Other Personal Needs,Household appliance stores
Buckinghamshire Council,30.11.2022,17.11.2022,Deputy Chief Executive,Communities - DCE,ARGOS LTD,588.95,0,588.95,Other Personal Needs,Discount stores
Buckinghamshire Council,30.11.2022,17.11.2022,Deputy Chief Executive,Communities - DCE,AO RETAIL LIMITED,638,0,638,Other Personal Needs,Household appliance stores
Buckinghamshire Council,30.11.2022,17.11.2022,Deputy Chief Executive,Communities - DCE,ARGOS LTD,93,0,93,Other Personal Needs,Discount stores
Buckinghamshire Council,30.11.2022,17.11.2022,Deputy Chief Executive,Communities - DCE,AO RETAIL LIMITED,850.99,0,850.99,Other Personal Needs,Household appliance stores
Buckinghamshire Council,30.11.2022,17.11.2022,Deputy Chief Executive,Communities - DCE,AO RETAIL LIMITED,478.99,0,478.99,Other Personal Needs,Household appliance stores
Buckinghamshire Council,30.11.2022,17.11.2022,Deputy Chief Executive,Communities - DCE,ARGOS LTD,248.95,0,248.95,Other Personal Needs,Discount stores
Buckinghamshire Council,30.11.2022,17.11.2022,"Planning, Growth & Sustainability",Housing & Homelessness & Regulatory PGS,ASHCO,8.98,0,8.98,Other General Office Expenses,Hardware stores
Buckinghamshire Council,30.11.2022,17.11.2022,"Planning, Growth & Sustainability",Housing & Homelessness & Regulatory PGS,CARDS DIRECT AYLESBURY,1.78,0,1.78,Other General Office Expenses,Stationery & office supplies
Buckinghamshire Council,30.11.2022,17.11.2022,"Planning, Growth & Sustainability",Housing & Homelessness & Regulatory PGS,WILKO RETAIL LIMITED,20,0,20,Other General Office Expenses,Misc. general merchandise
Buckinghamshire Council,30.11.2022,17.11.2022,"Planning, Growth & Sustainability",Housing & Homelessness & Regulatory PGS,WH SMITH AYLESBURY,4.5,0,4.5,Other General Office Expenses,Newspapers / newsagents
Buckinghamshire Council,30.11.2022,17.11.2022,Adults and Health,Health & Wellbeing - Adults & Health Dir,WILTSHIRE FARM FOODS,33.7,0,33.7,General Provisions (Food),Misc Food stores
Buckinghamshire Council,30.11.2022,17.11.2022,Communities,Housing & Homelessness & Regulatory Comm,AMZNMKTPLACE,29.15,5.83,34.98,Furniture Fittings & IT,Miscellaneous retail
Buckinghamshire Council,30.11.2022,17.11.2022,Communities,Housing & Homelessness & Regulatory Comm,AMZNMKTPLACE,0.01,0,0.01,Furniture Fittings & IT,Miscellaneous retail
Buckinghamshire Council,30.11.2022,17.11.2022,Communities,Housing & Homelessness & Regulatory Comm,AMZNMKTPLACE,22.49,4.5,179.96,Furniture Fittings & IT,Miscellaneous retail
Buckinghamshire Council,30.11.2022,17.11.2022,Communities,Housing & Homelessness & Regulatory Comm,AMZNMKTPLACE,74.99,15,179.96,Furniture Fittings & IT,Miscellaneous retail
Buckinghamshire Council,30.11.2022,17.11.2022,Communities,Housing & Homelessness & Regulatory Comm,AMZNMKTPLACE,23.32,4.67,179.96,Furniture Fittings & IT,Miscellaneous retail
Buckinghamshire Council,30.11.2022,17.11.2022,"Planning, Growth & Sustainability",AH&R - PGS Dir,SAINSBURYS - AYLESBURY,6,0,6,Cleaning Costs - Vehicles,Car washes
Buckinghamshire Council,30.11.2022,17.11.2022,Communities,Special Expenses,TESCO STORES 5135,20,0,20,Maintenance of Grounds,Grocery stores
Buckinghamshire Council,30.11.2022,17.11.2022,Children's Services,Education & Childrens Services - CS Dir,AMZNMKTPLACE,24.99,0,24.99,Consumable Supplies,Miscellaneous retail
Buckinghamshire Council,30.11.2022,17.11.2022,"Planning, Growth & Sustainability",Planning & Regeneration - PGS,PMD MAGNETICS,158.4,0,158.4,Computer Consumables,"Computers, peripherals & software"
Buckinghamshire Council,30.11.2022,17.11.2022,Communities,Transport - Communities Dir,LUL TICKET MACHINE,12.75,2.55,15.3,"Courses, Conference and Seminar Fees",Passenger railways
Buckinghamshire Council,30.11.2022,17.11.2022,Children's Services,Education & Childrens Services - CS Dir,LEBARA MOBILE LIMITED,25,0,25,Telephones,Phone services
Buckinghamshire Council,30.11.2022,17.11.2022,"Planning, Growth & Sustainability",Planning & Regeneration - PGS,RICS SUBS UK CYBS,539,0,539,Mobile Telephones & Cellphone Charges,Membership organisations
Buckinghamshire Council,30.11.2022,17.11.2022,"Planning, Growth & Sustainability",AH&R - PGS Dir,SP CUPSDIRECT.CO.UK,140.22,0,140.22,Vending Machines Supplies,Miscellaneous retail
Buckinghamshire Council,30.11.2022,17.11.2022,"Planning, Growth & Sustainability",AH&R - PGS Dir,INTERIOR GOODS DIRECT,68.2,0,68.2,General Repairs & Maintenance,Misc. home furnishing
Buckinghamshire Council,30.11.2022,17.11.2022,Children's Services,Education & Childrens Services - CS Dir,AO RETAIL LIMITED,589,0,589,Furniture,Household appliance stores
Buckinghamshire Council,30.11.2022,17.11.2022,Children's Services,Education & Childrens Services - CS Dir,HOTEL AT BOOKING.COM,84,0,84,"Courses, Conference and Seminar Fees","Hotels, motels & resorts"
Buckinghamshire Council,30.11.2022,17.11.2022,Children's Services,Education & Childrens Services - CS Dir,TRAVELODGE GB0766,25.15,0,25.15,Sec 17: Financial Assistance,Travelodge
Buckinghamshire Council,30.11.2022,17.11.2022,Children's Services,Education & Childrens Services - CS Dir,CANVA* I03607-15287405,22.99,0,22.99,Marketing,Photographic studios
Buckinghamshire Council,30.11.2022,17.11.2022,Deputy Chief Executive,AH&R- DCE Dir,CARTRIDGEPEOPLE.COM,195.39,0,195.39,Stationery & Office Supplies,Stationery & office supplies
Buckinghamshire Council,30.11.2022,17.11.2022,Children's Services,Education & Childrens Services - CS Dir,WWW.OTS-UK.CO.UK,90,0,90,Staff Travelling Expenses,Taxicabs & limousines
Buckinghamshire Council,30.11.2022,17.11.2022,Communities,Communities - Trust Accounts,COSTCO WHOLESALE #102,47.25,0,47.25,Stationery & Office Supplies,Buying & shopping services/clubs
Buckinghamshire Council,30.11.2022,17.11.2022,Communities,Communities - Trust Accounts,B&M 582 - BRITWELL,28,0,28,General Repairs & Maintenance,Misc. general merchandise
Buckinghamshire Council,30.11.2022,17.11.2022,Communities,Communities - Trust Accounts,WICKES SLOUGH,20,0,20,General Repairs & Maintenance,Timber & building supplies
Buckinghamshire Council,30.11.2022,17.11.2022,"Planning, Growth & Sustainability",Planning & Regeneration - PGS,TRAINLINE,20.83,0,20.83,Other Employees Expenses,Passenger railways
Buckinghamshire Council,30.11.2022,17.11.2022,"Planning, Growth & Sustainability",Planning & Regeneration - PGS,TFL TRAVEL CH,5,0,5,Other Employees Expenses,Local commuter transport
Buckinghamshire Council,30.11.2022,17.11.2022,Children's Services,Education & Childrens Services - CS Dir,AJ VAN HIRE LIMITED,30,0,30,Sec 17: Financial Assistance,Automobile dealers - new & used
Buckinghamshire Council,30.11.2022,17.11.2022,Children's Services,Education & Childrens Services - CS Dir,AJ VAN HIRE LIMITED,57.5,0,57.5,Sec 17: Financial Assistance,Automobile dealers - new & used
Buckinghamshire Council,30.11.2022,17.11.2022,Resources,AH&R - Res Dir,LINKEDIN 8471739964,100.33,0,100.33,Permanent Recruitment Costs,Advertising services
Buckinghamshire Council,30.11.2022,17.11.2022,Children's Services,Education & Childrens Services - CS Dir,HOBBYCRAFT TRADING LIMITE,49.5,0,49.5,Educational Equipment,Art & craft shops
Buckinghamshire Council,30.11.2022,17.11.2022,Deputy Chief Executive,Communities - DCE,PARKING-DES SQ,1,0,1,Staff Travelling Expenses,Car parking & garages
Buckinghamshire Council,30.11.2022,17.11.2022,Deputy Chief Executive,Communities - DCE,LUNCH,5.3,0,5.3,General Provisions (Food),Restaurants
Buckinghamshire Council,30.11.2022,17.11.2022,Children's Services,Education & Childrens Services - CS Dir,A1 TAXI SERVICE,60,0,60,Sec 20/31: Transport,Taxicabs & limousines
Buckinghamshire Council,30.11.2022,17.11.2022,Children's Services,Education & Childrens Services - CS Dir,AMZ*WORLDOFBARGAIN888,-24.99,0,-24.99,"Books, Records, Films & Oth Publications",Miscellaneous retail
Buckinghamshire Council,30.11.2022,17.11.2022,Adults and Health,Health & Wellbeing - Adults & Health Dir,SWAN HOTEL,106.65,21.33,127.98,Other Short Term Support,Restaurants
Buckinghamshire Council,30.11.2022,17.11.2022,Adults and Health,Health & Wellbeing - Adults & Health Dir,SWAN HOTEL,0.02,0,0.02,Other Short Term Support,Restaurants
Buckinghamshire Council,30.11.2022,17.11.2022,Adults and Health,Health & Wellbeing - Adults & Health Dir,BUCKINGHAM HOTELS,938,187.6,"1,125.60",Other Short Term Support,"Hotels, motels & resorts"
Buckinghamshire Council,30.11.2022,17.11.2022,Children's Services,Education & Childrens Services - CS Dir,AMZNMKTPLACE,36.19,0,36.19,Consumable Supplies,Miscellaneous retail
Buckinghamshire Council,30.11.2022,17.11.2022,Children's Services,Education & Childrens Services - CS Dir,ROBERT DYAS ECOM,154.99,0,154.99,Consumable Supplies,Hardware stores
Buckinghamshire Council,30.11.2022,17.11.2022,Resources,AH&R - Res Dir,ADS*5PZFGJB5X2,55.75,0,55.75,Permanent Recruitment Costs,Advertising services
Buckinghamshire Council,30.11.2022,17.11.2022,Adults and Health,Health & Wellbeing - Adults & Health Dir,AMZNMKTPLACE,47.96,0,47.96,Activities & General Recreation,Miscellaneous retail
Buckinghamshire Council,30.11.2022,17.11.2022,Children's Services,Education & Childrens Services - CS Dir,PARADIGM HOUSING GROUP,653.52,0,653.52,Leaving Care - Rent,Government services
Buckinghamshire Council,30.11.2022,17.11.2022,Children's Services,Education & Childrens Services - CS Dir,AJ VAN HIRE LIMITED,-30,0,-30,Sec 17: Financial Assistance,Automobile dealers - new & used
Buckinghamshire Council,30.11.2022,16.11.2022,"Planning, Growth & Sustainability",AH&R - PGS Dir,AMAZON.CO.UK,26.34,0,26.34,Administrative Equipment & Tools,Direct sales companies
Buckinghamshire Council,30.11.2022,16.11.2022,Adults and Health,Health & Wellbeing - Adults & Health Dir,SQ *SIGNS EXPRESS (AYLESB,111.24,0,111.24,Stationery & Office Supplies,Professional services
Buckinghamshire Council,30.11.2022,16.11.2022,"Planning, Growth & Sustainability",Housing & Homelessness & Regulatory PGS,CHARTERED INSTITUTE OF EN,246,0,246,Professional Subscriptions re Employees,Charitable organisations
Buckinghamshire Council,30.11.2022,16.11.2022,Communities,Transport - Communities Dir,THARAVADU,68.4,0,68.4,Subsistence,Restaurants
Buckinghamshire Council,30.11.2022,16.11.2022,Children's Services,Education & Childrens Services - CS Dir,AMZNMKTPLACE,89.98,0,89.98,Leaving Care - Grants for Care Leavers,Miscellaneous retail
Buckinghamshire Council,30.11.2022,16.11.2022,Children's Services,Education & Childrens Services - CS Dir,AMZNMKTPLACE,50,0,50,Cleaning & Domestic Equipment,Miscellaneous retail
Buckinghamshire Council,30.11.2022,16.11.2022,"Planning, Growth & Sustainability",Planning & Regeneration - PGS,TRAINLINE,25.81,0,25.81,Staff Travelling Expenses,Passenger railways
Buckinghamshire Council,30.11.2022,16.11.2022,Children's Services,Education & Childrens Services - CS Dir,POST OFFICE COUNTER,7.65,0,7.65,General Postage,Postal services
Buckinghamshire Council,30.11.2022,16.11.2022,Deputy Chief Executive,Communities - DCE,AO RETAIL LIMITED,459.99,0,459.99,Other Personal Needs,Household appliance stores
Buckinghamshire Council,30.11.2022,16.11.2022,Deputy Chief Executive,Communities - DCE,AO RETAIL LIMITED,454.99,0,454.99,Other Personal Needs,Household appliance stores
Buckinghamshire Council,30.11.2022,16.11.2022,Deputy Chief Executive,Communities - DCE,ARGOS LTD,248.95,0,248.95,Other Personal Needs,Discount stores
Buckinghamshire Council,30.11.2022,16.11.2022,Deputy Chief Executive,Communities - DCE,AO RETAIL LIMITED,"1,051.99",0,"1,051.99",Other Personal Needs,Household appliance stores
Buckinghamshire Council,30.11.2022,16.11.2022,Deputy Chief Executive,Communities - DCE,AO RETAIL LIMITED,-5,0,-5,Other Personal Needs,Household appliance stores
Buckinghamshire Council,30.11.2022,16.11.2022,Adults and Health,Health & Wellbeing - Adults & Health Dir,AMZNMKTPLACE,51.16,0,51.16,Health & Safety Supplies & Services,Miscellaneous retail
Buckinghamshire Council,30.11.2022,16.11.2022,Resources,AH&R - Res Dir,WEB,45.96,0,45.96,Server Hosting,Continuous subscriptions
Buckinghamshire Council,30.11.2022,16.11.2022,Adults and Health,Health & Wellbeing - Adults & Health Dir,TESCO STORES 2020,130.39,0,130.39,Other Supplies,Grocery stores
Buckinghamshire Council,30.11.2022,16.11.2022,Communities,Housing & Homelessness & Regulatory Comm,CURRYS ONLINE,107.5,21.5,129,Furniture Fittings & IT,Electronics shops
Buckinghamshire Council,30.11.2022,16.11.2022,Communities,Housing & Homelessness & Regulatory Comm,TESCO STORES 2041,26,0,26,Cleaning Materials,Grocery stores
Buckinghamshire Council,30.11.2022,16.11.2022,Communities,Climate Change & Environment - Community,HELLOPRINT UNITED KINGDOM,251.4,0,251.4,Waste Prevention costs,Photocopy & reproduction services
Buckinghamshire Council,30.11.2022,16.11.2022,"Planning, Growth & Sustainability",Planning & Regeneration - PGS,AMZNMKTPLACE,23.67,0,23.67,Other Employees Expenses,Miscellaneous retail
Buckinghamshire Council,30.11.2022,16.11.2022,Children's Services,Education & Childrens Services - CS Dir,EB *LMS FITNESS EXPO 2,22.15,0,22.15,Activities & General Recreation,Misc business services
Buckinghamshire Council,30.11.2022,16.11.2022,Children's Services,Education & Childrens Services - CS Dir,TESCO STORES 2020,25.85,0,25.85,General Provisions (Food),Grocery stores
Buckinghamshire Council,30.11.2022,16.11.2022,Children's Services,Partnerships - Children's Services,ONE BELOW,5.58,0,5.58,"Courses, Conference and Seminar Fees",Grocery stores
Buckinghamshire Council,30.11.2022,16.11.2022,Children's Services,Partnerships - Children's Services,WAITROSE,9.5,0,9.5,"Courses, Conference and Seminar Fees",Grocery stores
Buckinghamshire Council,30.11.2022,16.11.2022,Children's Services,Partnerships - Children's Services,POUNDLAND LTD 1301,2,0,2,"Courses, Conference and Seminar Fees",Discount stores
Buckinghamshire Council,30.11.2022,16.11.2022,Children's Services,Education & Childrens Services - CS Dir,TRAVELODGE GB0000,61.18,0,61.18,"Rents, Wayleaves & Hire of Premises",Travelodge
Buckinghamshire Council,30.11.2022,16.11.2022,Children's Services,Education & Childrens Services - CS Dir,AMZNMKTPLACE,200.86,0,200.86,Furniture,Miscellaneous retail
Buckinghamshire Council,30.11.2022,16.11.2022,Children's Services,Education & Childrens Services - CS Dir,ASDA  STORES 4396,7.6,0,7.6,General Postage,Grocery stores
Buckinghamshire Council,30.11.2022,16.11.2022,Children's Services,Education & Childrens Services - CS Dir,OSPREY CHARGING NETWOR,1.98,0,1.98,Staff Travelling Expenses,Car parking & garages
Buckinghamshire Council,30.11.2022,16.11.2022,Children's Services,Education & Childrens Services - CS Dir,TRAVELODGE GB0766,22.44,0,22.44,Sec 17: Financial Assistance,Travelodge
Buckinghamshire Council,30.11.2022,16.11.2022,Children's Services,Education & Childrens Services - CS Dir,TRAVELODGE GB0000,100.7,0,100.7,Sec 17: Financial Assistance,Travelodge
Buckinghamshire Council,30.11.2022,16.11.2022,Children's Services,Education & Childrens Services - CS Dir,AMAZON.CO.UK,40,0,40,Miscellaneous (Other)  Expenses,Direct sales companies
Buckinghamshire Council,30.11.2022,16.11.2022,Children's Services,Education & Childrens Services - CS Dir,AMAZON.CO.UK,22.23,0,22.23,Miscellaneous (Other)  Expenses,Direct sales companies
Buckinghamshire Council,30.11.2022,16.11.2022,Resources,AH&R - Res Dir,WWW.CIPFA.ORG.UK,362,0,362,Professional Subscriptions re Employees,Membership organisations
Buckinghamshire Council,30.11.2022,16.11.2022,Deputy Chief Executive,Leader - DCE,SAINSBURY S S/MKTS,3.3,0,3.3,General Provisions (Food),Grocery stores
Buckinghamshire Council,30.11.2022,16.11.2022,Communities,Transport - Communities Dir,STOKE MANDEVILLE T/O,30.3,0,30.3,Staff Travelling Expenses,Passenger railways
Buckinghamshire Council,30.11.2022,16.11.2022,Adults and Health,Communities - Adults & Health,NEXT RETAIL LTD,150,0,150,Miscellaneous (Other)  Expenses,Family clothing shops
Buckinghamshire Council,30.11.2022,16.11.2022,Deputy Chief Executive,AH&R- DCE Dir,HP INC HP.COM STORE UK,280.97,0,280.97,Repair and Maintenance of Equipment,Electronics shops
Buckinghamshire Council,30.11.2022,16.11.2022,Children's Services,Education & Childrens Services - CS Dir,SMART AIRPORT TRANSFER,70,0,70,Staff Travelling Expenses,Taxicabs & limousines
Buckinghamshire Council,30.11.2022,16.11.2022,Children's Services,Education & Childrens Services - CS Dir,AMZNMKTPLACE,20.99,0,20.99,Leaving Care - Grants for Care Leavers,Miscellaneous retail
Buckinghamshire Council,30.11.2022,16.11.2022,Communities,Communities - Trust Accounts,B&M 582 - BRITWELL,109.98,0,109.98,Hardware and Crockery,Misc. general merchandise
Buckinghamshire Council,30.11.2022,16.11.2022,"Planning, Growth & Sustainability",Planning & Regeneration - PGS,AMAZON.CO.UK,20,0,20,IT Equipment Purchase,Direct sales companies
Buckinghamshire Council,30.11.2022,16.11.2022,Children's Services,Education & Childrens Services - CS Dir,PARENTPAY E-COM R,15,0,15,Other Personal Needs,Colleges & universities
Buckinghamshire Council,30.11.2022,16.11.2022,Resources,AH&R - Res Dir,AMZNMktplace,32.94,0,32.94,Awaiting Coding,Miscellaneous retail
Buckinghamshire Council,30.11.2022,16.11.2022,"Planning, Growth & Sustainability",Housing & Homelessness & Regulatory PGS,AMZNMKTPLACE,6.99,0,6.99,Administrative Equipment & Tools,Miscellaneous retail
Buckinghamshire Council,30.11.2022,16.11.2022,Children's Services,Education & Childrens Services - CS Dir,AMZNMKTPLACE,25.98,0,25.98,Consumable Supplies,Miscellaneous retail
Buckinghamshire Council,30.11.2022,16.11.2022,Adults and Health,Health & Wellbeing - Adults & Health Dir,SWAN HOTEL,300.83,60.17,361,Other Short Term Support,Restaurants
Buckinghamshire Council,30.11.2022,16.11.2022,Children's Services,Education & Childrens Services - CS Dir,AMZNMKTPLACE,3.49,0,3.49,Consumable Supplies,Miscellaneous retail
Buckinghamshire Council,30.11.2022,16.11.2022,Children's Services,Education & Childrens Services - CS Dir,AMAZON.CO.UK,111.99,0,111.99,Consumable Supplies,Direct sales companies
Buckinghamshire Council,30.11.2022,15.11.2022,Communities,Culture & Leisure - Communities Dir,AMZNMKTPLACE,10.72,2.15,12.87,Events Expenditure,Miscellaneous retail
Buckinghamshire Council,30.11.2022,15.11.2022,Communities,Culture & Leisure - Communities Dir,AMZNMKTPLACE,6.93,1.39,8.32,Events Expenditure,Miscellaneous retail
Buckinghamshire Council,30.11.2022,15.11.2022,Communities,Housing & Homelessness & Regulatory Comm,AMZNMKTPLACE,94.29,0,94.29,Maintenance of Grounds,Miscellaneous retail
Buckinghamshire Council,30.11.2022,15.11.2022,Children's Services,Education & Childrens Services - CS Dir,AMZNMKTPLACE,49.43,0,49.43,Stationery & Office Supplies,Miscellaneous retail
Buckinghamshire Council,30.11.2022,15.11.2022,Communities,Culture & Leisure - Communities Dir,AMZNMKTPLACE,52.49,10.5,62.99,Administrative Equipment & Tools,Miscellaneous retail
Buckinghamshire Council,30.11.2022,15.11.2022,Communities,Culture & Leisure - Communities Dir,AMZNMKTPLACE,5.75,0,5.75,Miscellaneous (Other)  Expenses,Miscellaneous retail
Buckinghamshire Council,30.11.2022,15.11.2022,Children's Services,Education & Childrens Services - CS Dir,CURRYS ONLINE,"1,735.00",0,"1,735.00",Leaving Care - Higher Education Supp,Electronics shops
Buckinghamshire Council,30.11.2022,15.11.2022,Children's Services,Education & Childrens Services - CS Dir,CURRYS ONLINE,"-1,735.00",0,"-1,735.00",Leaving Care - Higher Education Supp,Electronics shops
Buckinghamshire Council,30.11.2022,15.11.2022,Children's Services,Education & Childrens Services - CS Dir,AMZNMKTPLACE,71.99,0,71.99,Cleaning & Domestic Equipment,Miscellaneous retail
Buckinghamshire Council,30.11.2022,15.11.2022,Children's Services,Education & Childrens Services - CS Dir,AMZNMKTPLACE,137.99,0,137.99,Furniture,Miscellaneous retail
Buckinghamshire Council,30.11.2022,15.11.2022,Children's Services,Education & Childrens Services - CS Dir,LIDL GB,9.57,0,9.57,Project Funding,Grocery stores
Buckinghamshire Council,30.11.2022,15.11.2022,Adults and Health,Health & Wellbeing - Adults & Health Dir,TESCO STORES 2162,11.1,0,11.1,General Provisions (Food),Grocery stores
Buckinghamshire Council,30.11.2022,15.11.2022,"Planning, Growth & Sustainability",Planning & Regeneration - PGS,TEXTANYWHERE,54,0,54,Computer Consumables,Computer software stores
Buckinghamshire Council,30.11.2022,15.11.2022,,,WWW.PLANNING.CO,263.2,0,263.2,Planning Application Fees,Misc business services
Buckinghamshire Council,30.11.2022,15.11.2022,Communities,Climate Change & Environment - Community,DVLA VEHICLE TAX,150,0,150,Vehicle Insurance,Government services
Buckinghamshire Council,30.11.2022,15.11.2022,Communities,Climate Change & Environment - Community,DVLA VEHICLE TAX,105,0,105,Vehicle Insurance,Government services
Buckinghamshire Council,30.11.2022,15.11.2022,Communities,Climate Change & Environment - Community,DVLA VEHICLE TAX,150,0,150,Vehicle Insurance,Government services
Buckinghamshire Council,30.11.2022,15.11.2022,Communities,Climate Change & Environment - Community,DVLA VEHICLE TAX,105,0,105,Vehicle Insurance,Government services
Buckinghamshire Council,30.11.2022,15.11.2022,Communities,Climate Change & Environment - Community,ROADWARRIOR,8.78,0,8.78,Computer Support Services,"Programming, data processing & system design"
Buckinghamshire Council,30.11.2022,15.11.2022,"Planning, Growth & Sustainability",AH&R - PGS Dir,TOOLSTATION LTD,25.48,0,25.48,General Repairs & Maintenance,Timber & building supplies
Buckinghamshire Council,30.11.2022,15.11.2022,"Planning, Growth & Sustainability",AH&R - PGS Dir,AMZNMKTPLACE,23.95,0,23.95,Specialist Equipment,Miscellaneous retail
Buckinghamshire Council,30.11.2022,15.11.2022,Children's Services,Education & Childrens Services - CS Dir,TAXIPAY,41,0,41,Sec 20/31: Transport,Taxicabs & limousines
Buckinghamshire Council,30.11.2022,15.11.2022,Deputy Chief Executive,Communities - DCE,AO RETAIL LIMITED,293.99,0,293.99,Other Personal Needs,Household appliance stores
Buckinghamshire Council,30.11.2022,15.11.2022,Deputy Chief Executive,Communities - DCE,AO RETAIL LIMITED,592.99,0,592.99,Other Personal Needs,Household appliance stores
Buckinghamshire Council,30.11.2022,15.11.2022,Communities,Culture & Leisure - Communities Dir,WWW.NISBETS.COM,269.95,53.99,323.94,Administrative Equipment & Tools,Catalogue sales
Buckinghamshire Council,30.11.2022,15.11.2022,Communities,Culture & Leisure - Communities Dir,WWW.NISBETS.COM,0.03,0,0.03,Administrative Equipment & Tools,Catalogue sales
Buckinghamshire Council,30.11.2022,15.11.2022,"Planning, Growth & Sustainability",Planning & Regeneration - PGS,SAINSBURY S S/MKTS,7.65,0,7.65,Miscellaneous (Other)  Expenses,Grocery stores
Buckinghamshire Council,30.11.2022,15.11.2022,Communities,Culture & Leisure - Communities Dir,CO-OP GROUP 070701,3.95,0,3.95,Administrative Equipment & Tools,Grocery stores
Buckinghamshire Council,30.11.2022,15.11.2022,Communities,Culture & Leisure - Communities Dir,WEXHAM MOWER SVCS,23,4.6,27.6,"Workshop - Materials,Tools & Equipment",Lawn & garden supply/nursery
Buckinghamshire Council,30.11.2022,15.11.2022,Resources,AH&R - Res Dir,NABLE TECHNOLOGIES,179.28,0,179.28,Server Hosting,Computer maintenance & repair
Buckinghamshire Council,30.11.2022,15.11.2022,"Planning, Growth & Sustainability",Planning & Regeneration - PGS,NEW YORK DELI GATEHOUSE,267.96,0,267.96,Subsistence,Restaurants
Buckinghamshire Council,30.11.2022,15.11.2022,Children's Services,Education & Childrens Services - CS Dir,AMAZON.CO.UK,71.49,0,71.49,Stationery & Office Supplies,Direct sales companies
Buckinghamshire Council,30.11.2022,15.11.2022,Communities,Culture & Leisure - Communities Dir,TECHHOUSE ACCESSORIES,34.99,0,34.99,Telephones,Phone equipment & sales
Buckinghamshire Council,30.11.2022,15.11.2022,"Planning, Growth & Sustainability",AH&R - PGS Dir,SCREWFIX HIGH WYCOMBE CRE,111.44,0,111.44,General Repairs & Maintenance,Timber & building supplies
Buckinghamshire Council,30.11.2022,15.11.2022,"Planning, Growth & Sustainability",AH&R - PGS Dir,HALFORDS 0529,16.79,0,16.79,General Repairs & Maintenance,"Bicycle shops, sales & service"
Buckinghamshire Council,30.11.2022,15.11.2022,Communities,Climate Change & Environment - Community,GOOGLE ADS2753042584,500,0,500,Waste Prevention costs,Advertising services
Buckinghamshire Council,30.11.2022,15.11.2022,Children's Services,Education & Childrens Services - CS Dir,AMFBOWLING.CO.UK,40.96,0,40.96,Activities & General Recreation,Bowling alleys
Buckinghamshire Council,30.11.2022,15.11.2022,Children's Services,Education & Childrens Services - CS Dir,AMAZON.CO.UK,29,0,29,Consumable Supplies,Direct sales companies
Buckinghamshire Council,30.11.2022,15.11.2022,Children's Services,Education & Childrens Services - CS Dir,WICKES CHESHAM,30,0,30,General Repairs & Maintenance,Timber & building supplies
Buckinghamshire Council,30.11.2022,15.11.2022,Communities,Culture & Leisure - Communities Dir,TESCO STORES 2564,4,0,4,Awaiting Coding,Grocery stores
Buckinghamshire Council,30.11.2022,15.11.2022,Children's Services,Education & Childrens Services - CS Dir,AMZNMKTPLACE,24.52,0,24.52,Miscellaneous (Other)  Expenses,Miscellaneous retail
Buckinghamshire Council,30.11.2022,15.11.2022,Children's Services,Education & Childrens Services - CS Dir,TESCO STORES 2020,112.12,0,112.12,General Provisions (Food),Grocery stores
Buckinghamshire Council,30.11.2022,15.11.2022,Children's Services,Education & Childrens Services - CS Dir,TWINKL,53.88,0,53.88,Miscellaneous (Other)  Expenses,Schools
Buckinghamshire Council,30.11.2022,15.11.2022,Children's Services,Education & Childrens Services - CS Dir,PHOTOGRAPHS,24,0,24,Other Personal Needs,Photographic studios
Buckinghamshire Council,30.11.2022,15.11.2022,Children's Services,Education & Childrens Services - CS Dir,AMZNMKTPLACE,85.37,0,85.37,Protective Clothing & Uniforms,Miscellaneous retail
Buckinghamshire Council,30.11.2022,15.11.2022,Children's Services,Education & Childrens Services - CS Dir,AMZNMKTPLACE,11.97,0,11.97,Activities & General Recreation,Miscellaneous retail
Buckinghamshire Council,30.11.2022,15.11.2022,Children's Services,Education & Childrens Services - CS Dir,AMZNMKTPLACE,15.25,0,15.25,Activities & General Recreation,Miscellaneous retail
Buckinghamshire Council,30.11.2022,15.11.2022,Children's Services,Education & Childrens Services - CS Dir,DIRECT CARS,120,0,120,Court Orders Sec 31: Transport to School,Taxicabs & limousines
Buckinghamshire Council,30.11.2022,15.11.2022,Children's Services,Education & Childrens Services - CS Dir,CURRYS ONLINE,"1,735.00",0,"1,735.00",Leaving Care - Higher Education Supp,Electronics shops
Buckinghamshire Council,30.11.2022,15.11.2022,Children's Services,Education & Childrens Services - CS Dir,SAFESTORE LTD ONLINE R,180.48,0,180.48,Sec 20/31: Financial Assistance,"Haulage, removals & delivery"
Buckinghamshire Council,30.11.2022,15.11.2022,Children's Services,Education & Childrens Services - CS Dir,AMZNMKTPLACE,319.34,0,319.34,Leaving Care - Grants for Care Leavers,Miscellaneous retail
Buckinghamshire Council,30.11.2022,15.11.2022,Children's Services,Education & Childrens Services - CS Dir,AMZNMKTPLACE,854.05,0,854.05,Furniture,Miscellaneous retail
Buckinghamshire Council,30.11.2022,15.11.2022,Children's Services,Education & Childrens Services - CS Dir,STOKERS INTERNET,499,0,499,Furniture,Furniture & home furnishing
Buckinghamshire Council,30.11.2022,15.11.2022,Resources,AH&R - Res Dir,PAYPAL,8.4,0,8.4,IT - Computer Network Charges,Computer network information services
Buckinghamshire Council,30.11.2022,15.11.2022,Resources,AH&R - Res Dir,AMZ*STERK SYSTEMS LTD,-116.75,0,-116.75,Computer Consumables,Miscellaneous retail
Buckinghamshire Council,30.11.2022,15.11.2022,Resources,AH&R - Res Dir,AMZ*STERK SYSTEMS LTD,-116.75,0,-116.75,Computer Consumables,Miscellaneous retail
Buckinghamshire Council,30.11.2022,15.11.2022,Resources,AH&R - Res Dir,AMZ*STERK SYSTEMS LTD,-116.75,0,-116.75,Computer Consumables,Miscellaneous retail
Buckinghamshire Council,30.11.2022,15.11.2022,Resources,AH&R - Res Dir,AMZ*STERK SYSTEMS LTD,-116.75,0,-116.75,Computer Consumables,Miscellaneous retail
Buckinghamshire Council,30.11.2022,15.11.2022,Resources,AH&R - Res Dir,AMZ*STERK SYSTEMS LTD,-116.75,0,-116.75,Computer Consumables,Miscellaneous retail
Buckinghamshire Council,30.11.2022,15.11.2022,Children's Services,Education & Childrens Services - CS Dir,SP SMIFFYS.COM,71.48,0,71.48,Support for Foster Carers,Misc. clothing & accessory shops
Buckinghamshire Council,30.11.2022,15.11.2022,Children's Services,Education & Childrens Services - CS Dir,TRAVELODGE GB0000,169.04,0,169.04,Sec 17: Financial Assistance,Travelodge
Buckinghamshire Council,30.11.2022,15.11.2022,Children's Services,Education & Childrens Services - CS Dir,TRAVELODGE GB0766,12.4,0,12.4,Sec 17: Financial Assistance,Travelodge
Buckinghamshire Council,30.11.2022,15.11.2022,Children's Services,Education & Childrens Services - CS Dir,TRAVELODGE GB0766,14.75,0,14.75,Sec 17: Financial Assistance,Travelodge
Buckinghamshire Council,30.11.2022,15.11.2022,Children's Services,Education & Childrens Services - CS Dir,ARGOS LTD,56.95,0,56.95,Equipment (including storage),Discount stores
Buckinghamshire Council,30.11.2022,15.11.2022,Children's Services,Education & Childrens Services - CS Dir,WWW.THEWORKS.CO.UK,10.99,0,10.99,Marketing,Discount stores
Buckinghamshire Council,30.11.2022,15.11.2022,Deputy Chief Executive,AH&R- DCE Dir,MOONPIG,4.74,0,4.74,"Courses, Conference and Seminar Fees",Misc. general merchandise
Buckinghamshire Council,30.11.2022,15.11.2022,Children's Services,Education & Childrens Services - CS Dir,BUCKINGHAMSHIRE COUNCIL,11,0,11,Leaving Care  - Financial Assistance,Government services
Buckinghamshire Council,30.11.2022,15.11.2022,Communities,Communities - Trust Accounts,BOOKER LIMITED SLOUGH,951.89,0,951.89,Purchase of Food for Re-sale,Caterers
Buckinghamshire Council,30.11.2022,15.11.2022,Deputy Chief Executive,Communities - DCE,AMZNMKTPLACE,11.69,0,11.69,Administrative Equipment & Tools,Miscellaneous retail
Buckinghamshire Council,30.11.2022,15.11.2022,Deputy Chief Executive,AH&R- DCE Dir,AMZNMKTPLACE,15.46,0,15.46,Stationery & Office Supplies,Miscellaneous retail
Buckinghamshire Council,30.11.2022,15.11.2022,Children's Services,Education & Childrens Services - CS Dir,TRAINLINE.COM,35.13,0,35.13,Sec 20/31: Transport,Passenger railways
Buckinghamshire Council,30.11.2022,15.11.2022,Adults and Health,Health & Wellbeing - Adults & Health Dir,WM MORRISONS STORE,20.66,0,20.66,General Provisions (Food),Grocery stores
Buckinghamshire Council,30.11.2022,15.11.2022,Communities,Partnerships - Communities,MK BUSINESS LEADERS,375,75,450,Miscellaneous (Other)  Expenses,Membership organisations
Buckinghamshire Council,30.11.2022,15.11.2022,Children's Services,Education & Childrens Services - CS Dir,ARGOS LTD,13.95,0,13.95,Leaving Care - Grants for Care Leavers,Discount stores
Buckinghamshire Council,30.11.2022,15.11.2022,Deputy Chief Executive,Communities - DCE,ARGOS LTD,488.95,0,488.95,Other Personal Needs,Discount stores
Buckinghamshire Council,30.11.2022,15.11.2022,Deputy Chief Executive,Communities - DCE,ARGOS LTD,48.95,0,48.95,Other Personal Needs,Discount stores
Buckinghamshire Council,30.11.2022,15.11.2022,Children's Services,Education & Childrens Services - CS Dir,WWW.LIGHTINTHEBOX,12.57,0,12.57,Protective Clothing & Uniforms,Miscellaneous retail
Buckinghamshire Council,30.11.2022,15.11.2022,Children's Services,Education & Childrens Services - CS Dir,HARRIS AND HOOLE AMERSHAM,5.75,1.15,6.9,Activities Programme,Fast food restaurants
Buckinghamshire Council,30.11.2022,14.11.2022,Communities,Culture & Leisure - Communities Dir,AMZNMKTPLACE,49.5,9.9,59.4,Events Expenditure,Miscellaneous retail
Buckinghamshire Council,30.11.2022,14.11.2022,Communities,Culture & Leisure - Communities Dir,AMZNMKTPLACE,4.01,0,4.01,Events Expenditure,Miscellaneous retail
Buckinghamshire Council,30.11.2022,14.11.2022,Children's Services,Education & Childrens Services - CS Dir,AMZNMKTPLACE,9.98,0,9.98,Activities & General Recreation,Miscellaneous retail
Buckinghamshire Council,30.11.2022,14.11.2022,Children's Services,Education & Childrens Services - CS Dir,AMZNMKTPLACE,39.74,0,39.74,Activities & General Recreation,Miscellaneous retail
Buckinghamshire Council,30.11.2022,14.11.2022,"Planning, Growth & Sustainability",Housing & Homelessness & Regulatory PGS,WILKO RETAIL LIMITED,9,0,9,General Allowances,Misc. general merchandise
Buckinghamshire Council,30.11.2022,14.11.2022,Children's Services,Education & Childrens Services - CS Dir,AMAZON PRIME,8.99,0,8.99,Stationery & Office Supplies,Continuous subscriptions
Buckinghamshire Council,30.11.2022,14.11.2022,Children's Services,Education & Childrens Services - CS Dir,ICELAND,26.59,0,26.59,Project Funding,Grocery stores
Buckinghamshire Council,30.11.2022,14.11.2022,Children's Services,Education & Childrens Services - CS Dir,TRAVELODGE GB0000,106.05,0,106.05,Sec 17: Financial Assistance,Travelodge
Buckinghamshire Council,30.11.2022,14.11.2022,"Planning, Growth & Sustainability",Climate Change & Environment - PGS,THE CHILTERN SOCIETY,52.5,0,52.5,Environmental Projects,Charitable organisations
Buckinghamshire Council,30.11.2022,14.11.2022,Communities,Culture & Leisure - Communities Dir,DISPLAY SIGNS LIMITED,52.5,10.5,63,"Workshop - Materials,Tools & Equipment",Publishing & printing services
Buckinghamshire Council,30.11.2022,14.11.2022,Resources,AH&R - Res Dir,AMZNMKTPLACE,50.93,0,50.93,IT Equipment Purchase,Miscellaneous retail
Buckinghamshire Council,30.11.2022,14.11.2022,Communities,Climate Change & Environment - Community,DVLA VEHICLE TAX,150,0,150,Vehicle Insurance,Government services
Buckinghamshire Council,30.11.2022,14.11.2022,Communities,Climate Change & Environment - Community,DVLA VEHICLE TAX,159.5,0,159.5,Vehicle Insurance,Government services
Buckinghamshire Council,30.11.2022,14.11.2022,Communities,Climate Change & Environment - Community,DVLA VEHICLE TAX,90.75,0,90.75,Vehicle Insurance,Government services
Buckinghamshire Council,30.11.2022,14.11.2022,Communities,Climate Change & Environment - Community,DVLA VEHICLE TAX,159.5,0,159.5,Vehicle Insurance,Government services
Buckinghamshire Council,30.11.2022,14.11.2022,Communities,Climate Change & Environment - Community,DVLA VEHICLE TAX,159.5,0,159.5,Vehicle Insurance,Government services
Buckinghamshire Council,30.11.2022,14.11.2022,Communities,Climate Change & Environment - Community,DVLA VEHICLE TAX,90.75,0,90.75,Vehicle Insurance,Government services
Buckinghamshire Council,30.11.2022,14.11.2022,Communities,Climate Change & Environment - Community,DVLA VEHICLE TAX,90.75,0,90.75,Vehicle Insurance,Government services
Buckinghamshire Council,30.11.2022,14.11.2022,Communities,Climate Change & Environment - Community,DVLA VEHICLE TAX,90.75,0,90.75,Vehicle Insurance,Government services
Buckinghamshire Council,30.11.2022,14.11.2022,Deputy Chief Executive,Communities - DCE,AO RETAIL LIMITED,"1,021.99",0,"1,021.99",Other Personal Needs,Household appliance stores
Buckinghamshire Council,30.11.2022,14.11.2022,Deputy Chief Executive,Communities - DCE,AO RETAIL LIMITED,293.99,0,293.99,Other Personal Needs,Household appliance stores
Buckinghamshire Council,30.11.2022,14.11.2022,Deputy Chief Executive,Communities - DCE,AO RETAIL LIMITED,318.99,0,318.99,Other Personal Needs,Household appliance stores
Buckinghamshire Council,30.11.2022,14.11.2022,Deputy Chief Executive,Communities - DCE,ARGOS LTD,248.95,0,248.95,Other Personal Needs,Discount stores
Buckinghamshire Council,30.11.2022,14.11.2022,Deputy Chief Executive,Communities - DCE,ARGOS LTD,35,0,35,Other Personal Needs,Discount stores
Buckinghamshire Council,30.11.2022,14.11.2022,Adults and Health,Health & Wellbeing - Adults & Health Dir,AMZNMKTPLACE,8.98,0,8.98,Health & Safety Supplies & Services,Miscellaneous retail
Buckinghamshire Council,30.11.2022,14.11.2022,Adults and Health,Health & Wellbeing - Adults & Health Dir,TESCO STORES 5135,136.43,0,136.43,Purchase.of Refreshments and Food,Grocery stores
Buckinghamshire Council,30.11.2022,14.11.2022,Adults and Health,Health & Wellbeing - Adults & Health Dir,AMZNMKTPLACE,31.98,0,31.98,Catering & Domestic Equipment,Miscellaneous retail
Buckinghamshire Council,30.11.2022,14.11.2022,Children's Services,Education & Childrens Services - CS Dir,EXPEDIA 72430473598894,160,0,160,Staff Travelling Expenses,Travel agencies
Buckinghamshire Council,30.11.2022,14.11.2022,Children's Services,Education & Childrens Services - CS Dir,HOTEL AT BOOKING.COM,72.25,0,72.25,Staff Travelling Expenses,"Hotels, motels & resorts"
Buckinghamshire Council,30.11.2022,14.11.2022,Communities,Culture & Leisure - Communities Dir,AMZNMKTPLACE,51.65,10.33,61.98,"Workshop - Materials,Tools & Equipment",Miscellaneous retail
Buckinghamshire Council,30.11.2022,14.11.2022,Communities,Culture & Leisure - Communities Dir,AMZNMKTPLACE,0.02,0,0.02,"Workshop - Materials,Tools & Equipment",Miscellaneous retail
Buckinghamshire Council,30.11.2022,14.11.2022,Communities,Partnerships - Communities,ROYAL MAIL GROUP LTD,2.85,0,2.85,Miscellaneous (Other)  Expenses,Postal services
Buckinghamshire Council,30.11.2022,14.11.2022,Communities,Housing & Homelessness & Regulatory Comm,WWWSPILLCONTROLCENTRE.,222.3,0,222.3,Maintenance of Grounds,Trade contractors
Buckinghamshire Council,30.11.2022,14.11.2022,"Planning, Growth & Sustainability",AH&R - PGS Dir,AMZNMKTPLACE,54.78,0,54.78,Purchase.of Refreshments and Food,Miscellaneous retail
Buckinghamshire Council,30.11.2022,14.11.2022,"Planning, Growth & Sustainability",AH&R - PGS Dir,GRANT AND STONE,53.82,0,53.82,General Repairs & Maintenance,Hardware stores
Buckinghamshire Council,30.11.2022,14.11.2022,Adults and Health,Communities - Adults & Health,AMZNMKTPLACE,86,0,86,Security & Safety Supplies & Equipment,Miscellaneous retail
Buckinghamshire Council,30.11.2022,14.11.2022,Communities,Climate Change & Environment - Community,RAWLINS PAINTS,80.26,0,80.26,Equipment,Chemical products
Buckinghamshire Council,30.11.2022,14.11.2022,Adults and Health,Health & Wellbeing - Adults & Health Dir,ASDA SUPERSTORE,18.15,0,18.15,Awaiting Coding,Grocery stores
Buckinghamshire Council,30.11.2022,14.11.2022,Adults and Health,Health & Wellbeing - Adults & Health Dir,ASDA SUPERSTORE,10,0,10,Awaiting Coding,Grocery stores
Buckinghamshire Council,30.11.2022,14.11.2022,Children's Services,Education & Childrens Services - CS Dir,HTTP://SHOP.ICAN.ORG.U,70,0,70,"Books, Records, Films & Oth Publications",Charitable organisations
Buckinghamshire Council,30.11.2022,14.11.2022,Deputy Chief Executive,Communities - DCE,COCK INN,4.95,0,4.95,Subsistence,Restaurants
Buckinghamshire Council,30.11.2022,14.11.2022,Children's Services,Education & Childrens Services - CS Dir,ST JOHN AMBULANCE,861.6,0,861.6,Miscellaneous (Other)  Expenses,Charitable organisations
Buckinghamshire Council,30.11.2022,14.11.2022,Children's Services,Education & Childrens Services - CS Dir,ST JOHN AMBULANCE,861.6,0,861.6,Miscellaneous (Other)  Expenses,Charitable organisations
Buckinghamshire Council,30.11.2022,14.11.2022,Children's Services,Partnerships - Children's Services,SWEENEYS BUDGENS,2.65,0,2.65,"Courses, Conference and Seminar Fees",Grocery stores
Buckinghamshire Council,30.11.2022,14.11.2022,Resources,AH&R - Res Dir,TRAINLINE,42.69,0,42.69,Staff Travelling Expenses,Passenger railways
Buckinghamshire Council,30.11.2022,14.11.2022,Children's Services,Education & Childrens Services - CS Dir,BLINDS 2 GO LTD,59.46,0,59.46,Furniture,Drapery & upholstery shops
Buckinghamshire Council,30.11.2022,14.11.2022,Children's Services,Education & Childrens Services - CS Dir,WAITROSE DIRECT,38.95,0,38.95,General Provisions (Food),Grocery stores
Buckinghamshire Council,30.11.2022,14.11.2022,Children's Services,Education & Childrens Services - CS Dir,WAITROSE DIRECT,34.95,0,34.95,General Provisions (Food),Grocery stores
Buckinghamshire Council,30.11.2022,14.11.2022,Children's Services,Education & Childrens Services - CS Dir,AMZNMKTPLACE,669.72,0,669.72,Furniture,Miscellaneous retail
Buckinghamshire Council,30.11.2022,14.11.2022,Children's Services,Education & Childrens Services - CS Dir,AMZNMKTPLACE,45.47,0,45.47,Support for Foster Carers,Miscellaneous retail
Buckinghamshire Council,30.11.2022,14.11.2022,Children's Services,Education & Childrens Services - CS Dir,TRAVELODGE GB0766,33.45,0,33.45,Sec 17: Financial Assistance,Travelodge
Buckinghamshire Council,30.11.2022,14.11.2022,Children's Services,Education & Childrens Services - CS Dir,WM MORRISONS STORE,6.5,0,6.5,Consumable Supplies,Grocery stores
Buckinghamshire Council,30.11.2022,14.11.2022,"Planning, Growth & Sustainability",Planning & Regeneration - PGS,AMZNMKTPLACE,8.8,0,8.8,Stationery & Office Supplies,Miscellaneous retail
Buckinghamshire Council,30.11.2022,14.11.2022,Children's Services,Education & Childrens Services - CS Dir,SAINSBURYS SMKTS,136.4,0,136.4,Subsistence,Grocery stores
Buckinghamshire Council,30.11.2022,14.11.2022,Children's Services,Education & Childrens Services - CS Dir,ODEON CINEMAS,28,0,28,Sec 17: Direct Work with Children,Cinemas
Buckinghamshire Council,30.11.2022,14.11.2022,Resources,AH&R - Res Dir,LINKEDIN 8458928024,108.97,0,108.97,Permanent Recruitment Costs,Advertising services
Buckinghamshire Council,30.11.2022,14.11.2022,,,WWW.SCREWFIX.COM,28.9,5.78,34.68,Construction - Building Work,Timber & building supplies
Buckinghamshire Council,30.11.2022,14.11.2022,,,WWW.SCREWFIX.COM,0.01,0,0.01,Construction - Building Work,Timber & building supplies
Buckinghamshire Council,30.11.2022,14.11.2022,"Planning, Growth & Sustainability",Leader - PGS,MAILCHIMP,47.63,0,47.63,Software Support,
Buckinghamshire Council,30.11.2022,14.11.2022,Communities,Transport - Communities Dir,WWW.SCREWFIX.COM,17.06,3.42,20.48,Administrative Equipment & Tools,Timber & building supplies
Buckinghamshire Council,30.11.2022,14.11.2022,"Planning, Growth & Sustainability",Housing & Homelessness & Regulatory PGS,SAINSBURYS S/MKTS,3,0,3,Other General Office Expenses,Grocery stores
Buckinghamshire Council,30.11.2022,14.11.2022,Children's Services,Education & Childrens Services - CS Dir,WWW.THEWORKS.CO.UK,156.5,0,156.5,Activities & General Recreation,Discount stores
Buckinghamshire Council,30.11.2022,14.11.2022,Children's Services,Education & Childrens Services - CS Dir,TESCO STORES 2038,18,0,18,Activities & General Recreation,Grocery stores
Buckinghamshire Council,30.11.2022,14.11.2022,Adults and Health,Health & Wellbeing - Adults & Health Dir,TESCO STORES 5135,94.25,0,94.25,General Provisions (Food),Grocery stores
Buckinghamshire Council,30.11.2022,14.11.2022,Children's Services,Education & Childrens Services - CS Dir,TRAINLINE.COM,56.19,0,56.19,Sec 20/31: Supp for Contact,Passenger railways
Buckinghamshire Council,30.11.2022,14.11.2022,Resources,AH&R - Res Dir,BUCKINGHAM HOTELS,"1,680.00",0,"1,680.00","Courses, Conference and Seminar Fees","Hotels, motels & resorts"
Buckinghamshire Council,30.11.2022,14.11.2022,Resources,AH&R - Res Dir,BUCKINGHAM HOTELS,"2,332.80",0,"2,332.80","Courses, Conference and Seminar Fees","Hotels, motels & resorts"
Buckinghamshire Council,30.11.2022,14.11.2022,Resources,AH&R - Res Dir,BUCKINGHAM HOTELS,"2,332.80",0,"2,332.80","Courses, Conference and Seminar Fees","Hotels, motels & resorts"
Buckinghamshire Council,30.11.2022,14.11.2022,Children's Services,Education & Childrens Services - CS Dir,TRAINLINE,123.3,0,123.3,Sec 20/31: Financial Assistance One Off,Passenger railways
Buckinghamshire Council,30.11.2022,14.11.2022,Communities,Culture & Leisure - Communities Dir,GRAND JUNCTION,80.05,0,80.05,Administrative Equipment & Tools,"Hotels, motels & resorts"
Buckinghamshire Council,30.11.2022,13.11.2022,"Planning, Growth & Sustainability",Housing & Homelessness & Regulatory PGS,AMZNMKTPLACE,40.99,0,40.99,Administrative Equipment & Tools,Miscellaneous retail
Buckinghamshire Council,30.11.2022,13.11.2022,Children's Services,Education & Childrens Services - CS Dir,AMZNMKTPLACE,21.98,0,21.98,Activities & General Recreation,Miscellaneous retail
Buckinghamshire Council,30.11.2022,13.11.2022,Children's Services,Education & Childrens Services - CS Dir,AMAZON.CO.UK,277.96,0,277.96,IT Equipment Purchase,Direct sales companies
Buckinghamshire Council,30.11.2022,13.11.2022,Deputy Chief Executive,AH&R- DCE Dir,CLOUDFLARE,181.24,0,181.24,Computer Consumables,Computer software stores
Buckinghamshire Council,30.11.2022,13.11.2022,Children's Services,Education & Childrens Services - CS Dir,TRAVELODGE GB0766,33,0,33,Sec 17: Financial Assistance,Travelodge
Buckinghamshire Council,30.11.2022,13.11.2022,Children's Services,Education & Childrens Services - CS Dir,TRAVELODGE GB0766,15.4,0,15.4,Sec 17: Financial Assistance,Travelodge
Buckinghamshire Council,30.11.2022,13.11.2022,Deputy Chief Executive,Leader - DCE,FACEBK MKQCYJKPN2,840,0,840,Advertising,Advertising services
Buckinghamshire Council,30.11.2022,13.11.2022,Adults and Health,Health & Wellbeing - Adults & Health Dir,AMAZON.CO.UK,36.06,0,36.06,Other Personal Needs,Direct sales companies
Buckinghamshire Council,30.11.2022,13.11.2022,Deputy Chief Executive,AH&R- DCE Dir,Optimal Workshop,220.14,0,220.14,Computer Consumables,Computer software stores
Buckinghamshire Council,30.11.2022,12.11.2022,"Planning, Growth & Sustainability",Housing & Homelessness & Regulatory PGS,WILKO RETAIL LIMITED,34,0,34,General Allowances,Misc. general merchandise
Buckinghamshire Council,30.11.2022,12.11.2022,Children's Services,Education & Childrens Services - CS Dir,AMAZON.CO.UK,14.49,0,14.49,Stationery & Office Supplies,Direct sales companies
Buckinghamshire Council,30.11.2022,12.11.2022,Children's Services,Education & Childrens Services - CS Dir,AMAZON.CO.UK,32.27,0,32.27,Stationery & Office Supplies,Direct sales companies
Buckinghamshire Council,30.11.2022,12.11.2022,Resources,AH&R - Res Dir,HARROW AUDIO LIMITED,250,0,250,Miscellaneous (Other)  Expenses,Electronics shops
Buckinghamshire Council,30.11.2022,12.11.2022,Children's Services,Education & Childrens Services - CS Dir,MAILCHIMP,228.44,0,228.44,Service Development,
Buckinghamshire Council,30.11.2022,12.11.2022,"Planning, Growth & Sustainability",Planning & Regeneration - PGS,AMAZON.CO.UK,2.5,0,2.5,Stationery & Office Supplies,Direct sales companies
Buckinghamshire Council,30.11.2022,12.11.2022,Adults and Health,Health & Wellbeing - Adults & Health Dir,TESCO SUBSCRIPTION,7.99,0,7.99,General Provisions (Food),Continuous subscriptions
Buckinghamshire Council,30.11.2022,11.11.2022,Children's Services,Education & Childrens Services - CS Dir,HOTEL ON BOOKING.COM,90,0,90,"Courses, Conference and Seminar Fees","Hotels, motels & resorts"
Buckinghamshire Council,30.11.2022,11.11.2022,Resources,AH&R - Res Dir,AMZNMKTPLACE,113.37,0,113.37,IT Equipment Purchase,Miscellaneous retail
Buckinghamshire Council,30.11.2022,11.11.2022,"Planning, Growth & Sustainability",AH&R - PGS Dir,AMZNMKTPLACE,31.98,0,31.98,General Repairs & Maintenance,Miscellaneous retail
Buckinghamshire Council,30.11.2022,11.11.2022,Adults and Health,Health & Wellbeing - Adults & Health Dir,AMZNMKTPLACE,37.03,0,37.03,Other Supplies,Miscellaneous retail
Buckinghamshire Council,30.11.2022,11.11.2022,Children's Services,Education & Childrens Services - CS Dir,AMZNMKTPLACE,50.41,0,50.41,Printing & Stationery,Miscellaneous retail
Buckinghamshire Council,30.11.2022,11.11.2022,Children's Services,Education & Childrens Services - CS Dir,AMZNMKTPLACE,14.44,0,14.44,Printing & Stationery,Miscellaneous retail
Buckinghamshire Council,30.11.2022,11.11.2022,Children's Services,Education & Childrens Services - CS Dir,AMZNMKTPLACE,25.79,0,25.79,Equipment (including storage),Miscellaneous retail
Buckinghamshire Council,30.11.2022,11.11.2022,Children's Services,Education & Childrens Services - CS Dir,AMZNMKTPLACE,7.19,0,7.19,Activities & General Recreation,Miscellaneous retail
Buckinghamshire Council,30.11.2022,11.11.2022,Children's Services,Education & Childrens Services - CS Dir,BUCKINGHAMSHIRE CNCL,-11,0,-11,Sec 20/31: Financial Assistance,Government services
Buckinghamshire Council,30.11.2022,11.11.2022,"Planning, Growth & Sustainability",Housing & Homelessness & Regulatory PGS,CHARTERED INSTITUTE OF EN,246,0,246,Professional Subscriptions re Employees,Charitable organisations
Buckinghamshire Council,30.11.2022,11.11.2022,"Planning, Growth & Sustainability",Housing & Homelessness & Regulatory PGS,ARCO LIMITED,22.14,4.43,26.57,Administrative Equipment & Tools,Misc Industrial supplies
Buckinghamshire Council,30.11.2022,11.11.2022,Children's Services,Education & Childrens Services - CS Dir,43036170 COSTA COFFEE,7.5,0,7.5,"Exp of School, Club & College Activities",Fast food restaurants
Buckinghamshire Council,30.11.2022,11.11.2022,Children's Services,Education & Childrens Services - CS Dir,SP RING UK,99.99,0,99.99,Leaving Care  - Financial Assistance,Electronics shops
Buckinghamshire Council,30.11.2022,11.11.2022,Children's Services,Education & Childrens Services - CS Dir,TRAVELODGE GB0000,94.83,0,94.83,Leaving Care - Rent,Travelodge
Buckinghamshire Council,30.11.2022,11.11.2022,Children's Services,Education & Childrens Services - CS Dir,AMAZON.CO.UK,9.42,0,9.42,Stationery & Office Supplies,Direct sales companies
Buckinghamshire Council,30.11.2022,11.11.2022,Communities,Culture & Leisure - Communities Dir,WWW.ROMPALIMITED.COM,-8.34,0,-8.34,"Books, Records, Films & Oth Publications",Miscellaneous retail
Buckinghamshire Council,30.11.2022,11.11.2022,Children's Services,Education & Childrens Services - CS Dir,A1 TAXI SERVICE,264,0,264,Sec 20/31: Transport,Taxicabs & limousines
Buckinghamshire Council,30.11.2022,11.11.2022,Children's Services,Education & Childrens Services - CS Dir,A1 TAXI SERVICE,858,0,858,Sec 20/31: Transport,Taxicabs & limousines
Buckinghamshire Council,30.11.2022,11.11.2022,Children's Services,Education & Childrens Services - CS Dir,AMFBOWLING.CO.UK,34.79,0,34.79,Sec 20/31: Supp for Contact,Bowling alleys
Buckinghamshire Council,30.11.2022,11.11.2022,Children's Services,Education & Childrens Services - CS Dir,SCHUDIOTV,12,0,12,Training Materials,Schools
Buckinghamshire Council,30.11.2022,11.11.2022,Deputy Chief Executive,Communities - DCE,AO RETAIL LIMITED,459.99,0,459.99,Other Personal Needs,Household appliance stores
Buckinghamshire Council,30.11.2022,11.11.2022,Deputy Chief Executive,Communities - DCE,ARGOS LTD,248.95,0,248.95,Other Personal Needs,Discount stores
Buckinghamshire Council,30.11.2022,11.11.2022,Deputy Chief Executive,Communities - DCE,AO RETAIL LIMITED,921.99,0,921.99,Other Personal Needs,Household appliance stores
Buckinghamshire Council,30.11.2022,11.11.2022,Communities,Transport - Communities Dir,DB MASTER LOCKSMITH LT,197.7,0,197.7,Computer Consumables,Computer software stores
Buckinghamshire Council,30.11.2022,11.11.2022,Children's Services,Education & Childrens Services - CS Dir,TAXIPAY,85,0,85,Court Orders Sec 31: Miscellaneous,Taxicabs & limousines
Buckinghamshire Council,30.11.2022,11.11.2022,Children's Services,Education & Childrens Services - CS Dir,TAXIPAY,85,0,85,Court Orders Sec 31: Miscellaneous,Taxicabs & limousines
Buckinghamshire Council,30.11.2022,11.11.2022,Adults and Health,Health & Wellbeing - Adults & Health Dir,AMAZON.CO.UK,40.96,0,40.96,Stationery & Office Supplies,Direct sales companies
Buckinghamshire Council,30.11.2022,11.11.2022,Communities,Housing & Homelessness & Regulatory Comm,AMZNMKTPLACE,29.7,0,29.7,Purchase.of Refreshments and Food,Miscellaneous retail
Buckinghamshire Council,30.11.2022,11.11.2022,Children's Services,Education & Childrens Services - CS Dir,EB *APPRENTICESHIP ACC,150,30,180,"Courses, Conference and Seminar Fees",Misc business services
Buckinghamshire Council,30.11.2022,11.11.2022,Children's Services,Education & Childrens Services - CS Dir,KWIKSURVEYS,187.06,0,187.06,Computer Consumables,"Computers, peripherals & software"
Buckinghamshire Council,30.11.2022,11.11.2022,Deputy Chief Executive,AH&R- DCE Dir,SLACK T181RTHAL,3.79,0,3.79,Computer Consumables,Computer software stores
Buckinghamshire Council,30.11.2022,11.11.2022,Children's Services,Education & Childrens Services - CS Dir,ARGOS LTD,958.95,0,958.95,Furniture,Discount stores
Buckinghamshire Council,30.11.2022,11.11.2022,Children's Services,Education & Childrens Services - CS Dir,WEYMOUTHHOTELREMBRANDT,80.1,0,80.1,"Courses, Conference and Seminar Fees","Hotels, motels & resorts"
Buckinghamshire Council,30.11.2022,11.11.2022,Children's Services,Education & Childrens Services - CS Dir,TRAVELODGE GB0766,21.25,0,21.25,Sec 17: Financial Assistance,Travelodge
Buckinghamshire Council,30.11.2022,11.11.2022,Children's Services,Education & Childrens Services - CS Dir,ARGOS LTD,91.95,0,91.95,Equipment (including storage),Discount stores
Buckinghamshire Council,30.11.2022,11.11.2022,Children's Services,Education & Childrens Services - CS Dir,ARGOS LTD,33.95,0,33.95,Equipment (including storage),Discount stores
Buckinghamshire Council,30.11.2022,11.11.2022,"Planning, Growth & Sustainability",Planning & Regeneration - PGS,UBR* PENDING.UBER.COM,9.04,0,9.04,Other Employees Expenses,Taxicabs & limousines
Buckinghamshire Council,30.11.2022,11.11.2022,"Planning, Growth & Sustainability",Planning & Regeneration - PGS,TFL TRAVEL CH,2.5,0,2.5,Other Employees Expenses,Local commuter transport
Buckinghamshire Council,30.11.2022,11.11.2022,"Planning, Growth & Sustainability",Planning & Regeneration - PGS,TRAINLINE,10.25,0,10.25,Other Employees Expenses,Passenger railways
Buckinghamshire Council,30.11.2022,11.11.2022,Resources,AH&R - Res Dir,ADS*WTV2PJP4X2,90,0,90,Permanent Recruitment Costs,Advertising services
Buckinghamshire Council,30.11.2022,11.11.2022,Resources,AH&R - Res Dir,LINKEDIN-845,15.86,0,15.86,Permanent Recruitment Costs,Advertising services
Buckinghamshire Council,30.11.2022,11.11.2022,Children's Services,Education & Childrens Services - CS Dir,CORAMBAAF,336,0,336,"Courses, Conference and Seminar Fees",
Buckinghamshire Council,30.11.2022,11.11.2022,Children's Services,Education & Childrens Services - CS Dir,PANDORA JEWELLERY UK LIMI,101,0,101,Activities & General Recreation,Jewellers
Buckinghamshire Council,30.11.2022,11.11.2022,Children's Services,Education & Childrens Services - CS Dir,OTICON LTD,212.5,0,212.5,Medical Supplies & Services inc Vet'nary,Hearing aid sales & services
Buckinghamshire Council,30.11.2022,11.11.2022,Adults and Health,Health & Wellbeing - Adults & Health Dir,AMZNMKTPLACE,9.99,0,9.99,Other Personal Needs,Miscellaneous retail
Buckinghamshire Council,30.11.2022,11.11.2022,Adults and Health,Health & Wellbeing - Adults & Health Dir,SWAN HOTEL,185,37,222,Other Short Term Support,Restaurants
Buckinghamshire Council,30.11.2022,10.11.2022,Communities,Culture & Leisure - Communities Dir,FACEBK JUXYXGXHB2,27.15,0,27.15,Advertising,Advertising services
Buckinghamshire Council,30.11.2022,10.11.2022,Resources,AH&R - Res Dir,AMZNMKTPLACE,58.29,0,58.29,Events Expenditure,Miscellaneous retail
Buckinghamshire Council,30.11.2022,10.11.2022,"Planning, Growth & Sustainability",Housing & Homelessness & Regulatory PGS,LAND REGISTRY ECOM CCC,3,0,3,Homelessness,Government services
Buckinghamshire Council,30.11.2022,10.11.2022,"Planning, Growth & Sustainability",Housing & Homelessness & Regulatory PGS,LAND REGISTRY ECOM CCC,3,0,3,Homelessness,Government services
Buckinghamshire Council,30.11.2022,10.11.2022,Children's Services,Education & Childrens Services - CS Dir,TAXIPAY,45,0,45,Leaving Care  - Financial Assistance,Taxicabs & limousines
Buckinghamshire Council,30.11.2022,10.11.2022,Children's Services,Education & Childrens Services - CS Dir,M AQUATICS AYLESBURY,53.54,0,53.54,Activities & General Recreation,"Pet shops, food & supply"
Buckinghamshire Council,30.11.2022,10.11.2022,Communities,Climate Change & Environment - Community,TESCO STORES 2020,17.59,0,17.59,Administrative Equipment & Tools,Grocery stores
Buckinghamshire Council,30.11.2022,10.11.2022,Communities,Transport - Communities Dir,THE OXFORD WINE COMPANY L,250,0,250,Long Service Awards,Off Licenses / alcohol sales
Buckinghamshire Council,30.11.2022,10.11.2022,Children's Services,Education & Childrens Services - CS Dir,A1 TAXI SERVICE,156,0,156,Sec 20/31: Transport,Taxicabs & limousines
Buckinghamshire Council,30.11.2022,10.11.2022,Children's Services,Education & Childrens Services - CS Dir,WWW.ANYVAN.COM,155,0,155,Sec 20/31: Specialist Services,"Haulage, removals & delivery"
Buckinghamshire Council,30.11.2022,10.11.2022,Deputy Chief Executive,Communities - DCE,AO RETAIL LIMITED,368.99,0,368.99,Other Personal Needs,Household appliance stores
Buckinghamshire Council,30.11.2022,10.11.2022,Deputy Chief Executive,Communities - DCE,AO RETAIL LIMITED,339.99,0,339.99,Other Personal Needs,Household appliance stores
Buckinghamshire Council,30.11.2022,10.11.2022,Deputy Chief Executive,Communities - DCE,AO RETAIL LIMITED,647.99,0,647.99,Other Personal Needs,Household appliance stores
Buckinghamshire Council,30.11.2022,10.11.2022,Deputy Chief Executive,Communities - DCE,ARGOS LTD,234.95,0,234.95,Other Personal Needs,Discount stores
Buckinghamshire Council,30.11.2022,10.11.2022,Deputy Chief Executive,Communities - DCE,AO RETAIL LIMITED,318.99,0,318.99,Other Personal Needs,Household appliance stores
Buckinghamshire Council,30.11.2022,10.11.2022,Deputy Chief Executive,Communities - DCE,AO RETAIL LIMITED,308.99,0,308.99,Other Personal Needs,Household appliance stores
Buckinghamshire Council,30.11.2022,10.11.2022,Deputy Chief Executive,Communities - DCE,AO RETAIL LIMITED,818.99,0,818.99,Other Personal Needs,Household appliance stores
Buckinghamshire Council,30.11.2022,10.11.2022,Communities,Housing & Homelessness & Regulatory Comm,APEX FASTENERS LTD,79.97,0,79.97,Purchase of memorials,Hardware stores
Buckinghamshire Council,30.11.2022,10.11.2022,Communities,Partnerships - Communities,WWW.BUCKINGHAMSHIRE.GOV,18.6,0,18.6,Miscellaneous (Other)  Expenses,Government services
Buckinghamshire Council,30.11.2022,10.11.2022,Adults and Health,Health & Wellbeing - Adults & Health Dir,AMZNMKTPLACE,46.81,0,46.81,Other Supplies,Miscellaneous retail
Buckinghamshire Council,30.11.2022,10.11.2022,Communities,Culture & Leisure - Communities Dir,OCADO,168.66,0,168.66,Events Expenditure,Grocery stores
Buckinghamshire Council,30.11.2022,10.11.2022,Communities,Housing & Homelessness & Regulatory Comm,JOHN LEWIS,100,0,100,Car Allowances Mileage & Lump Sum,Department stores
Buckinghamshire Council,30.11.2022,10.11.2022,Communities,Climate Change & Environment - Community,PAYPAL,223.18,0,223.18,Waste Prevention costs,Publishing & printing services
Buckinghamshire Council,30.11.2022,10.11.2022,"Planning, Growth & Sustainability",AH&R - PGS Dir,EDMUNDSON ELECTRICAL,41.93,0,41.93,General Repairs & Maintenance,Electrical parts & equipment
Buckinghamshire Council,30.11.2022,10.11.2022,Deputy Chief Executive,Communities - DCE,RINGGO PARKING,1.55,0,1.55,Staff Travelling Expenses,Car parking & garages
Buckinghamshire Council,30.11.2022,10.11.2022,Communities,Culture & Leisure - Communities Dir,AMZNMKTPLACE,18.95,0,18.95,Events Expenditure,Miscellaneous retail
Buckinghamshire Council,30.11.2022,10.11.2022,Children's Services,Education & Childrens Services - CS Dir,AMAZON PRIME,8.99,0,8.99,Miscellaneous (Other)  Expenses,Continuous subscriptions
Buckinghamshire Council,30.11.2022,10.11.2022,Children's Services,Education & Childrens Services - CS Dir,NATIONAL TRUST MEM,53.35,0,53.35,Miscellaneous (Other)  Expenses,Charitable organisations
Buckinghamshire Council,30.11.2022,10.11.2022,Children's Services,Education & Childrens Services - CS Dir,TOOLSTATION UK,34.98,0,34.98,Miscellaneous (Other)  Expenses,Hardware stores
Buckinghamshire Council,30.11.2022,10.11.2022,Children's Services,Education & Childrens Services - CS Dir,WM MORRISONS STORE PICK,122.25,0,122.25,General Provisions (Food),Grocery stores
Buckinghamshire Council,30.11.2022,10.11.2022,Children's Services,Education & Childrens Services - CS Dir,UK CARS (HIGH WYCOMBE),200,40,240,Sec 17: Transport,Taxicabs & limousines
Buckinghamshire Council,30.11.2022,10.11.2022,Resources,AH&R - Res Dir,AMAZON.CO.UK,194.38,0,194.38,Stationery & Office Supplies,Direct sales companies
Buckinghamshire Council,30.11.2022,10.11.2022,Resources,AH&R - Res Dir,AMZNMKTPLACE,"1,003.75",0,"1,003.75",Computer Consumables,Miscellaneous retail
Buckinghamshire Council,30.11.2022,10.11.2022,Children's Services,Education & Childrens Services - CS Dir,AMZNMKTPLACE,29.88,0,29.88,Support for Foster Carers,Miscellaneous retail
Buckinghamshire Council,30.11.2022,10.11.2022,Children's Services,Education & Childrens Services - CS Dir,ASDA  STORES 4396,20.55,0,20.55,General Provisions (Food),Grocery stores
Buckinghamshire Council,30.11.2022,10.11.2022,Children's Services,Education & Childrens Services - CS Dir,TRAVELODGE GB0766,25.75,0,25.75,Sec 17: Financial Assistance,Travelodge
Buckinghamshire Council,30.11.2022,10.11.2022,Children's Services,Education & Childrens Services - CS Dir,TRAVELODGE GB0766,22.44,0,22.44,Sec 17: Financial Assistance,Travelodge
Buckinghamshire Council,30.11.2022,10.11.2022,Children's Services,Education & Childrens Services - CS Dir,43036170 COSTA COFFEE,16.6,0,16.6,"Exp of School, Club & College Activities",Fast food restaurants
Buckinghamshire Council,30.11.2022,10.11.2022,Communities,Culture & Leisure - Communities Dir,HOLLYWOOD BOWL,40.2,0,40.2,Miscellaneous (Other)  Expenses,"Member clubs, sport, recreation & golf"
Buckinghamshire Council,30.11.2022,10.11.2022,Communities,Partnerships - Communities,FULLERS,188.1,0,188.1,Staff Travelling Expenses,"Hotels, motels & resorts"
Buckinghamshire Council,30.11.2022,10.11.2022,Children's Services,Education & Childrens Services - CS Dir,ASDA SUPERSTORE,42.78,0,42.78,General Provisions (Food),Grocery stores
Buckinghamshire Council,30.11.2022,10.11.2022,"Planning, Growth & Sustainability",Planning & Regeneration - PGS,TRAINLINE,12,0,12,Other Employees Expenses,Passenger railways
Buckinghamshire Council,30.11.2022,10.11.2022,"Planning, Growth & Sustainability",Planning & Regeneration - PGS,AMZNMKTPLACE,57.59,0,57.59,Stationery & Office Supplies,Miscellaneous retail
Buckinghamshire Council,30.11.2022,10.11.2022,"Planning, Growth & Sustainability",Planning & Regeneration - PGS,UBR* PENDING.UBER.COM,14.56,0,14.56,Other Employees Expenses,Taxicabs & limousines
Buckinghamshire Council,30.11.2022,10.11.2022,Children's Services,Education & Childrens Services - CS Dir,NEALES TAXIS LTD,80,0,80,Sec 17: Financial Assistance,Taxicabs & limousines
Buckinghamshire Council,30.11.2022,10.11.2022,Resources,AH&R - Res Dir,TROPHYSTORE.CO.UK LIMITED,24,0,24,Events Expenditure,Trade contractors
Buckinghamshire Council,30.11.2022,10.11.2022,Children's Services,Education & Childrens Services - CS Dir,INSTROTECH LTD,28.78,0,28.78,Administrative Equipment & Tools,Electronics shops
Buckinghamshire Council,30.11.2022,10.11.2022,Resources,AH&R - Res Dir,WWW.BUCKINGHAMSHIRE.GOV,150,0,150,Miscellaneous (Other)  Expenses,Government services
Buckinghamshire Council,30.11.2022,10.11.2022,Resources,AH&R - Res Dir,BUCKINGHAMSHIRE COUN MOT,-150,0,-150,Miscellaneous (Other)  Expenses,Government services
Buckinghamshire Council,30.11.2022,10.11.2022,Children's Services,Education & Childrens Services - CS Dir,AMZNMktplace,20.33,0,20.33,Awaiting Coding,Miscellaneous retail
Buckinghamshire Council,30.11.2022,10.11.2022,Children's Services,Education & Childrens Services - CS Dir,AMZNMKTPLACE,104.99,0,104.99,Furniture,Miscellaneous retail
Buckinghamshire Council,30.11.2022,10.11.2022,Adults and Health,Health & Wellbeing - Adults & Health Dir,HIGH STREET VOUCHERS,40,0,40,General Office Expenses / Service Restructuring,Department stores
Buckinghamshire Council,30.11.2022,10.11.2022,Children's Services,Education & Childrens Services - CS Dir,TRAINLINE,56.19,0,56.19,Sec 20/31: Supp for Contact,Passenger railways
Buckinghamshire Council,30.11.2022,10.11.2022,Deputy Chief Executive,Communities - DCE,ARGOS LTD,348.95,0,348.95,Other Personal Needs,Discount stores
Buckinghamshire Council,30.11.2022,10.11.2022,Children's Services,Education & Childrens Services - CS Dir,PARADIGM HOUSING GROUP,508.26,0,508.26,Leaving Care - Higher Education Supp,Government services
Buckinghamshire Council,30.11.2022,09.11.2022,Communities,Culture & Leisure - Communities Dir,AMZNMKTPLACE,6.93,1.39,8.32,Events Expenditure,Miscellaneous retail
Buckinghamshire Council,30.11.2022,09.11.2022,Communities,Culture & Leisure - Communities Dir,AMZNMKTPLACE,13.32,2.67,15.99,Events Expenditure,Miscellaneous retail
Buckinghamshire Council,30.11.2022,09.11.2022,Deputy Chief Executive,Communities - DCE,AMZNMKTPLACE,34.43,0,34.43,Administrative Equipment & Tools,Miscellaneous retail
Buckinghamshire Council,30.11.2022,09.11.2022,Children's Services,Education & Childrens Services - CS Dir,HOTEL AT BOOKING.COM,129,0,129,Staff Travelling Expenses,"Hotels, motels & resorts"
Buckinghamshire Council,30.11.2022,09.11.2022,Children's Services,Education & Childrens Services - CS Dir,A1 TAXI SERVICE,96,0,96,Sec 20/31: Supp for Contact,Taxicabs & limousines
Buckinghamshire Council,30.11.2022,09.11.2022,Children's Services,Education & Childrens Services - CS Dir,BUCKINGHAMSHIRE COUN MOT,615,0,615,Sec 17: Transport,Government services
Buckinghamshire Council,30.11.2022,09.11.2022,Communities,Transport - Communities Dir,CROSS COUNTRY RAIL,118.5,0,118.5,Staff Travelling Expenses,Passenger railways
Buckinghamshire Council,30.11.2022,09.11.2022,"Planning, Growth & Sustainability",Climate Change & Environment - PGS,SCRIBE,26.35,0,26.35,Computer Consumables,Computer software stores
Buckinghamshire Council,30.11.2022,09.11.2022,"Planning, Growth & Sustainability",Climate Change & Environment - PGS,BCC CLEAN AIR ZONE,16,0,16,Staff Travelling Expenses,Government services
Buckinghamshire Council,30.11.2022,09.11.2022,Deputy Chief Executive,Leader - DCE,SAINSBURY S S/MKTS,15.3,0,15.3,General Provisions (Food),Grocery stores
Buckinghamshire Council,30.11.2022,09.11.2022,"Planning, Growth & Sustainability",AH&R - PGS Dir,LOCK & KEY CENTRE,16,0,16,Awaiting Coding,Shoe repairs
Buckinghamshire Council,30.11.2022,09.11.2022,Children's Services,Education & Childrens Services - CS Dir,BUCKINGHAMSHIRE CNCL,11,0,11,Sec 20/31: Specialist Services,Government services
Buckinghamshire Council,30.11.2022,09.11.2022,Deputy Chief Executive,Communities - DCE,AO RETAIL LIMITED,418.99,0,418.99,Other Personal Needs,Household appliance stores
Buckinghamshire Council,30.11.2022,09.11.2022,Communities,Housing & Homelessness & Regulatory Comm,WWW.TUDORENVIRONMENTAL,414.26,0,414.26,Miscellaneous (Other)  Expenses,Lawn & garden supply/nursery
Buckinghamshire Council,30.11.2022,09.11.2022,Adults and Health,Health & Wellbeing - Adults & Health Dir,AMZNMKTPLACE,12.37,0,12.37,Activities & General Recreation,Miscellaneous retail
Buckinghamshire Council,30.11.2022,09.11.2022,"Planning, Growth & Sustainability",Planning & Regeneration - PGS,SAINSBURY S S/MKTS,14,0,14,Miscellaneous (Other)  Expenses,Grocery stores
Buckinghamshire Council,30.11.2022,09.11.2022,Communities,Partnerships - Communities,NEW YORK DELI GATEHOUSE,5.2,0,5.2,Equipment,Restaurants
Buckinghamshire Council,30.11.2022,09.11.2022,Children's Services,Education & Childrens Services - CS Dir,OFSTED INTERNET,"3,792.00",0,"3,792.00",Professional Services (non curriculum) - External,Government services
Buckinghamshire Council,30.11.2022,09.11.2022,Children's Services,Education & Childrens Services - CS Dir,THE KEYBOARD COMPANY UK,51.6,0,51.6,Other Equipment and Materials,Miscellaneous retail
Buckinghamshire Council,30.11.2022,09.11.2022,"Planning, Growth & Sustainability",AH&R - PGS Dir,GATE CONTROL GEAR,135.7,0,135.7,Other Equipment and Materials,Timber & building supplies
Buckinghamshire Council,30.11.2022,09.11.2022,"Planning, Growth & Sustainability",AH&R - PGS Dir,SCREWFIX HIGH WYCOMBE CRE,100.92,0,100.92,General Repairs & Maintenance,Timber & building supplies
Buckinghamshire Council,30.11.2022,09.11.2022,"Planning, Growth & Sustainability",AH&R - PGS Dir,WWW.SCREWFIX.COM,75.66,0,75.66,General Repairs & Maintenance,Timber & building supplies
Buckinghamshire Council,30.11.2022,09.11.2022,Communities,Housing & Homelessness & Regulatory Comm,AMZNMKTPLACE,46.6,9.32,55.92,Purchase.of Refreshments and Food,Miscellaneous retail
Buckinghamshire Council,30.11.2022,09.11.2022,Communities,Housing & Homelessness & Regulatory Comm,AMZNMKTPLACE,0.04,0,0.04,Purchase.of Refreshments and Food,Miscellaneous retail
Buckinghamshire Council,30.11.2022,09.11.2022,Communities,Climate Change & Environment - Community,TWITTER ONLINE ADS,71.56,0,71.56,Waste Prevention costs,Advertising services
Buckinghamshire Council,30.11.2022,09.11.2022,Children's Services,Education & Childrens Services - CS Dir,LIDL GB  HIGH WYCOMBE,10.78,0,10.78,Cleaning Materials,Grocery stores
Buckinghamshire Council,30.11.2022,09.11.2022,Communities,Partnerships - Communities,MAILCHIMP,8.59,1.72,10.31,Miscellaneous (Other)  Expenses,
Buckinghamshire Council,30.11.2022,09.11.2022,Children's Services,Education & Childrens Services - CS Dir,AMZNMKTPLACE,160.6,0,160.6,Activities & General Recreation,Miscellaneous retail
Buckinghamshire Council,30.11.2022,09.11.2022,Children's Services,Education & Childrens Services - CS Dir,SAINSBURYS S/MKTS,16.6,0,16.6,Consumable Supplies,Grocery stores
Buckinghamshire Council,30.11.2022,09.11.2022,Communities,Culture & Leisure - Communities Dir,TIMPSON LTD,23,0,23,Awaiting Coding,Miscellaneous retail
Buckinghamshire Council,30.11.2022,09.11.2022,Adults and Health,Health & Wellbeing - Adults & Health Dir,AMZNMKTPLACE,74.98,15,89.98,Other General Office Expenses,Miscellaneous retail
Buckinghamshire Council,30.11.2022,09.11.2022,Children's Services,Education & Childrens Services - CS Dir,AMAZON.CO.UK,43.55,0,43.55,"Books, Records, Films & Oth Publications",Direct sales companies
Buckinghamshire Council,30.11.2022,09.11.2022,Children's Services,Education & Childrens Services - CS Dir,AMAZON.CO.UK,43.55,0,43.55,"Books, Records, Films & Oth Publications",Direct sales companies
Buckinghamshire Council,30.11.2022,09.11.2022,Children's Services,Education & Childrens Services - CS Dir,JERICHOS,75.6,0,75.6,"Rents, Wayleaves & Hire of Premises","Hotels, motels & resorts"
Buckinghamshire Council,30.11.2022,09.11.2022,Children's Services,Education & Childrens Services - CS Dir,SP FURNITUREFUL,359.99,0,359.99,Leaving Care - Grants for Care Leavers,Computer software stores
Buckinghamshire Council,30.11.2022,09.11.2022,Children's Services,Education & Childrens Services - CS Dir,TRAVELODGE GB0000,349.75,0,349.75,Sec 17: Financial Assistance,Travelodge
Buckinghamshire Council,30.11.2022,09.11.2022,Children's Services,Education & Childrens Services - CS Dir,NEALES TAXIS LTD,60,0,60,Leaving Care - Transport,Taxicabs & limousines
Buckinghamshire Council,30.11.2022,09.11.2022,Children's Services,Education & Childrens Services - CS Dir,REES FOUNDATION,60,0,60,Sec 20/31: Specialist Services,Charitable organisations
Buckinghamshire Council,30.11.2022,09.11.2022,Resources,AH&R - Res Dir,TOTAL MERCHANDISE,398.66,0,398.66,Events Expenditure,Misc. general merchandise
Buckinghamshire Council,30.11.2022,09.11.2022,Resources,AH&R - Res Dir,EVERYTHING BRANDED,518.4,0,518.4,Events Expenditure,Advertising services
Buckinghamshire Council,30.11.2022,09.11.2022,Resources,AH&R - Res Dir,TROPHYSTORE.CO.UK LIMITED,943.33,0,943.33,Events Expenditure,Trade contractors
Buckinghamshire Council,30.11.2022,09.11.2022,Communities,Climate Change & Environment - Community,WWW.CIWM.CO.UK,125.28,0,125.28,"Courses, Conference and Seminar Fees",Schools
Buckinghamshire Council,30.11.2022,09.11.2022,Children's Services,Education & Childrens Services - CS Dir,FIRECREST,145,0,145,Subsistence,Restaurants
Buckinghamshire Council,30.11.2022,09.11.2022,Communities,Climate Change & Environment - Community,LOGOSHACK,30,0,30,Professional Services (non curriculum) - External,Professional services
Buckinghamshire Council,30.11.2022,09.11.2022,Communities,Climate Change & Environment - Community,PARKING-EX ST,8,0,8,Staff Travelling Expenses,Car parking & garages
Buckinghamshire Council,30.11.2022,09.11.2022,Children's Services,Education & Childrens Services - CS Dir,AMFBOWLING.CO.UK,206.82,0,206.82,Activities & General Recreation,Bowling alleys
Buckinghamshire Council,30.11.2022,09.11.2022,Adults and Health,Health & Wellbeing - Adults & Health Dir,LIGHTBULBS2UCOM,21.42,0,21.42,Catering & Domestic Equipment,Hardware stores
Buckinghamshire Council,30.11.2022,09.11.2022,Children's Services,Education & Childrens Services - CS Dir,OXFORDSHIRE CC WEB1,11,0,11,Sec 20/31: Financial Assistance,Government services
Buckinghamshire Council,30.11.2022,09.11.2022,Children's Services,Education & Childrens Services - CS Dir,ASDA SUPERSTORE,21.3,0,21.3,Consumable Supplies,Grocery stores
Buckinghamshire Council,30.11.2022,09.11.2022,Adults and Health,Health & Wellbeing - Adults & Health Dir,SWAN HOTEL,300.83,60.17,361,Other Short Term Support,Restaurants
Buckinghamshire Council,30.11.2022,09.11.2022,Children's Services,Education & Childrens Services - CS Dir,TRAINLINE,117.7,0,117.7,Sec 20/31: Transport,Passenger railways
Buckinghamshire Council,30.11.2022,09.11.2022,"Planning, Growth & Sustainability",Partnership Climate Change & Envir - PGS,PREMIER INN,136.5,0,136.5,"Courses, Conference and Seminar Fees",Premier Inn
Buckinghamshire Council,30.11.2022,09.11.2022,Children's Services,Education & Childrens Services - CS Dir,ARGOS LTD,250,0,250,Equipment (including storage),Discount stores
Buckinghamshire Council,30.11.2022,09.11.2022,Children's Services,Education & Childrens Services - CS Dir,TRAINLINE,62.5,0,62.5,Leaving Care - Transport,Passenger railways
Buckinghamshire Council,30.11.2022,09.11.2022,Children's Services,Education & Childrens Services - CS Dir,TRAINLINE,56.3,0,56.3,Sec 17: Financial Assistance,Passenger railways
Buckinghamshire Council,30.11.2022,09.11.2022,Children's Services,Education & Childrens Services - CS Dir,HAMPTON BY HILTON HIGH,159,0,159,Sec 17: Financial Assistance,"Hotels, motels & resorts"
Buckinghamshire Council,30.11.2022,08.11.2022,Communities,Climate Change & Environment - Community,FACEBK K7TTKKBCM2,91.1,0,91.1,Waste Prevention costs,Advertising services
Buckinghamshire Council,30.11.2022,08.11.2022,Communities,Culture & Leisure - Communities Dir,MEDIAPORT SOLUTIONS LI,187.2,0,187.2,Printing & Stationery,Publishing & printing services
Buckinghamshire Council,30.11.2022,08.11.2022,"Planning, Growth & Sustainability",Housing & Homelessness & Regulatory PGS,LAND REGISTRY ECOM CCC,3,0,3,Homelessness,Government services
Buckinghamshire Council,30.11.2022,08.11.2022,"Planning, Growth & Sustainability",Housing & Homelessness & Regulatory PGS,LAND REGISTRY ECOM CCC,3,0,3,Homelessness,Government services
Buckinghamshire Council,30.11.2022,08.11.2022,"Planning, Growth & Sustainability",Housing & Homelessness & Regulatory PGS,LAND REGISTRY ECOM CCC,3,0,3,Homelessness,Government services
Buckinghamshire Council,30.11.2022,08.11.2022,Resources,AH&R - Res Dir,VSS Logistic Ltd,408,0,408,Equipment (including storage),"Haulage, removals & delivery"
Buckinghamshire Council,30.11.2022,08.11.2022,Children's Services,Education & Childrens Services - CS Dir,TICKETS 84723542,82.5,0,82.5,"Exp of School, Club & College Activities",Theatres and ticket agencies
Buckinghamshire Council,30.11.2022,08.11.2022,Children's Services,Education & Childrens Services - CS Dir,TRAINLINE.COM,91.49,0,91.49,Leaving Care - Transport,Passenger railways
Buckinghamshire Council,30.11.2022,08.11.2022,"Planning, Growth & Sustainability",Climate Change & Environment - PGS,ARRIVA UK BUS,103,0,103,Staff Travelling Expenses,"Buses, charter & tour"
Buckinghamshire Council,30.11.2022,08.11.2022,Children's Services,Education & Childrens Services - CS Dir,WWW.ANYVAN.COM,93,0,93,Sec 20/31: Specialist Services,"Haulage, removals & delivery"
Buckinghamshire Council,30.11.2022,08.11.2022,Children's Services,Education & Childrens Services - CS Dir,WWW.READING.GOV,11,0,11,Sec 20/31: Specialist Services,Government services
Buckinghamshire Council,30.11.2022,08.11.2022,Communities,Climate Change & Environment - Community,DVLA DRIVERS TACHOGRAPH W,19,0,19,Awaiting Coding,Government services
Buckinghamshire Council,30.11.2022,08.11.2022,Communities,Climate Change & Environment - Community,DVLA DRIVERS TACHOGRAPH W,32,0,32,Awaiting Coding,Government services
Buckinghamshire Council,30.11.2022,08.11.2022,Deputy Chief Executive,Communities - DCE,ARGOS LTD,248.95,0,248.95,Other Personal Needs,Discount stores
Buckinghamshire Council,30.11.2022,08.11.2022,Deputy Chief Executive,Communities - DCE,AO RETAIL LIMITED,787.99,0,787.99,Other Personal Needs,Household appliance stores
Buckinghamshire Council,30.11.2022,08.11.2022,Deputy Chief Executive,Communities - DCE,ARGOS LTD,378.95,0,378.95,Other Personal Needs,Discount stores
Buckinghamshire Council,30.11.2022,08.11.2022,Children's Services,Education & Childrens Services - CS Dir,TESCO GIFT CARD,30,0,30,Sec 17: Financial Assistance One Off,Grocery stores
Buckinghamshire Council,30.11.2022,08.11.2022,Communities,Transport - Communities Dir,LOCK & KEY CENTRE,257.5,0,257.5,Urgent Repairs & Maintenance,Shoe repairs
Buckinghamshire Council,30.11.2022,08.11.2022,Adults and Health,Health & Wellbeing - Adults & Health Dir,AMZNMKTPLACE,32.01,0,32.01,Activities & General Recreation,Miscellaneous retail
Buckinghamshire Council,30.11.2022,08.11.2022,Adults and Health,Health & Wellbeing - Adults & Health Dir,AMZNMKTPLACE,35.16,0,35.16,Activities & General Recreation,Miscellaneous retail
Buckinghamshire Council,30.11.2022,08.11.2022,Communities,Partnerships - Communities,ADOBE CREATIVE CLOUD,43.32,0,43.32,Miscellaneous (Other)  Expenses,
Buckinghamshire Council,30.11.2022,08.11.2022,Communities,Housing & Homelessness & Regulatory Comm,WWW.SUIGENERIS.CO.UK,73.03,0,73.03,Maintenance of Grounds,Misc Industrial supplies
Buckinghamshire Council,30.11.2022,08.11.2022,"Planning, Growth & Sustainability",AH&R - PGS Dir,LAMPS - THE ELECTRICAL W,78.78,0,78.78,General Repairs & Maintenance,Electrical parts & equipment
Buckinghamshire Council,30.11.2022,08.11.2022,Children's Services,Education & Childrens Services - CS Dir,POST OFFICE COUNTER,39.75,0,39.75,General Postage,Postal services
Buckinghamshire Council,30.11.2022,08.11.2022,Communities,Transport - Communities Dir,FLANNELS.COM,100,0,100,Miscellaneous (Other)  Expenses,Men & womens clothing shops
Buckinghamshire Council,30.11.2022,08.11.2022,Communities,Culture & Leisure - Communities Dir,AMZNMKTPLACE,10.82,2.17,12.99,Events Expenditure,Miscellaneous retail
Buckinghamshire Council,30.11.2022,08.11.2022,Children's Services,Education & Childrens Services - CS Dir,AMZNMKTPLACE,40.43,0,40.43,Printing & Stationery,Miscellaneous retail
Buckinghamshire Council,30.11.2022,08.11.2022,"Planning, Growth & Sustainability",AH&R - PGS Dir,LYRECO UK LTD,3.88,0.78,4.66,Stationery & Office Supplies,Stationery & office supplies
Buckinghamshire Council,30.11.2022,08.11.2022,Deputy Chief Executive,AH&R- DCE Dir,TAXIPAY,102,0,102,Staff Travelling Expenses,Taxicabs & limousines
Buckinghamshire Council,30.11.2022,08.11.2022,Deputy Chief Executive,AH&R- DCE Dir,TAXIPAY,102,0,102,Staff Travelling Expenses,Taxicabs & limousines
Buckinghamshire Council,30.11.2022,08.11.2022,Children's Services,Education & Childrens Services - CS Dir,AMAZON.CO.UK,15,0,15,Stationery & Office Supplies,Direct sales companies
Buckinghamshire Council,30.11.2022,08.11.2022,Children's Services,Education & Childrens Services - CS Dir,AMZNMKTPLACE,6.85,0,6.85,Equipment for Training and Mats for Ins.,Miscellaneous retail
Buckinghamshire Council,30.11.2022,08.11.2022,Deputy Chief Executive,Communities - DCE,NEW YORK DELI GATEHOUSE,8.6,0,8.6,General Provisions (Food),Restaurants
Buckinghamshire Council,30.11.2022,08.11.2022,Children's Services,Education & Childrens Services - CS Dir,TRAVELODGE GB0000,117.27,0,117.27,Sec 17: Financial Assistance,Travelodge
Buckinghamshire Council,30.11.2022,08.11.2022,Children's Services,Education & Childrens Services - CS Dir,ARGOS LTD,257.95,0,257.95,Equipment (including storage),Discount stores
Buckinghamshire Council,30.11.2022,08.11.2022,Communities,Culture & Leisure - Communities Dir,LIDL GB BUCKINGHAM,4.67,0,4.67,Miscellaneous (Other)  Expenses,Grocery stores
Buckinghamshire Council,30.11.2022,08.11.2022,Children's Services,Education & Childrens Services - CS Dir,HIGH WYCOMBE SSTP,36.8,0,36.8,Staff Travelling Expenses,Passenger railways
Buckinghamshire Council,30.11.2022,08.11.2022,Communities,Transport - Communities Dir,BRITISHPARKING.CO.UK,111.6,0,111.6,Subscriptions to National Bodies,Membership organisations
Buckinghamshire Council,30.11.2022,08.11.2022,Communities,Partnerships - Communities,AMZNMKTPLACE,259.98,0,259.98,Awaiting Coding,Miscellaneous retail
Buckinghamshire Council,30.11.2022,08.11.2022,Adults and Health,Communities - Adults & Health,PAYPAL,42.85,0,42.85,Project Work and Project Management Costs,Uniforms & commercial clothing
Buckinghamshire Council,30.11.2022,08.11.2022,Children's Services,Education & Childrens Services - CS Dir,POST OFFICE COUNTER,85,0,85,Sec 20/31: Financial Assistance,Postal services
Buckinghamshire Council,30.11.2022,08.11.2022,Children's Services,Education & Childrens Services - CS Dir,TRAINLINE.COM,70.99,0,70.99,Court Orders Sec 31: Supp. for Contact,Passenger railways
Buckinghamshire Council,30.11.2022,08.11.2022,Communities,Communities - Trust Accounts,TIMPSON LTD,12,0,12,General Repairs & Maintenance,Miscellaneous retail
Buckinghamshire Council,30.11.2022,08.11.2022,Children's Services,Education & Childrens Services - CS Dir,HOLLYWOOD BOWL,17.24,0,17.24,Activities & General Recreation,"Member clubs, sport, recreation & golf"
Buckinghamshire Council,30.11.2022,08.11.2022,Children's Services,Education & Childrens Services - CS Dir,PARENTPAY E-COM R,10,0,10,Other Personal Needs,Colleges & universities
Buckinghamshire Council,30.11.2022,08.11.2022,Children's Services,Education & Childrens Services - CS Dir,AMZNMKTPLACE,35.99,0,35.99,Furniture,Miscellaneous retail
Buckinghamshire Council,30.11.2022,08.11.2022,Communities,Climate Change & Environment - Community,WWW.CIWM.CO.UK,"1,015.50",0,"1,015.50","Courses, Conference and Seminar Fees",Schools
Buckinghamshire Council,30.11.2022,08.11.2022,Children's Services,Education & Childrens Services - CS Dir,WAITROSE,21.35,0,21.35,General Provisions (Food),Grocery stores
Buckinghamshire Council,30.11.2022,08.11.2022,Communities,Climate Change & Environment - Community,B&Q LTD,103.95,0,103.95,General Repairs & Maintenance,Timber & building supplies
Buckinghamshire Council,30.11.2022,08.11.2022,Children's Services,Education & Childrens Services - CS Dir,CARD FACTORY,22.95,0,22.95,Activities & General Recreation,"Gift, card & novelty shops"
Buckinghamshire Council,30.11.2022,08.11.2022,Children's Services,Education & Childrens Services - CS Dir,TRAINLINE,34.49,0,34.49,Sec 20/31: Supp for Contact,Passenger railways
Buckinghamshire Council,30.11.2022,08.11.2022,Children's Services,Education & Childrens Services - CS Dir,WWW.SAFARIMK.CO.UK,18.75,0,18.75,Sec 20/31: Supp for Contact,Misc. recreational services
Buckinghamshire Council,30.11.2022,08.11.2022,Children's Services,Education & Childrens Services - CS Dir,AMZNMKTPLACE,9.18,0,9.18,Consumable Supplies,Miscellaneous retail
Buckinghamshire Council,30.11.2022,08.11.2022,Adults and Health,Health & Wellbeing - Adults & Health Dir,AMZNMKTPLACE,18.3,3.66,21.96,Other General Office Expenses,Miscellaneous retail
Buckinghamshire Council,30.11.2022,08.11.2022,Adults and Health,Health & Wellbeing - Adults & Health Dir,AMZNMKTPLACE,0.03,0,0.03,Other General Office Expenses,Miscellaneous retail
Buckinghamshire Council,30.11.2022,08.11.2022,Communities,Partnerships - Communities,BT PLC BUSINESS MOTO BPAY,55.95,11.19,67.14,Telephones,Phone services
Buckinghamshire Council,30.11.2022,08.11.2022,Children's Services,Education & Childrens Services - CS Dir,ARGOS LTD,42,0,42,Sec 17: Transport,Discount stores
Buckinghamshire Council,30.11.2022,08.11.2022,Children's Services,Education & Childrens Services - CS Dir,PREMIER INN,-9.5,0,-9.5,"Courses, Conference and Seminar Fees",Premier Inn
Buckinghamshire Council,30.11.2022,07.11.2022,Children's Services,Education & Childrens Services - CS Dir,A1 TAXI SERVICE,60,0,60,Sec 20/31: Transport,Taxicabs & limousines
Buckinghamshire Council,30.11.2022,07.11.2022,"Planning, Growth & Sustainability",Housing & Homelessness & Regulatory PGS,B&Q MARKETPLACE,11.5,0,11.5,Administrative Equipment & Tools,Timber & building supplies
Buckinghamshire Council,30.11.2022,07.11.2022,Children's Services,Education & Childrens Services - CS Dir,TAXIPAY,25,5,30,Sec 17: Transport,Taxicabs & limousines
Buckinghamshire Council,30.11.2022,07.11.2022,Children's Services,Education & Childrens Services - CS Dir,WICKES AYLESBURY,10,0,10,Repair and Maintenance of Equipment,Timber & building supplies
Buckinghamshire Council,30.11.2022,07.11.2022,Children's Services,Education & Childrens Services - CS Dir,WWW.IPSEA.ORG.UK,648,0,648,"Courses, Conference and Seminar Fees",Schools
Buckinghamshire Council,30.11.2022,07.11.2022,Communities,Climate Change & Environment - Community,DVSA,257,0,257,Awaiting Coding,Government services
Buckinghamshire Council,30.11.2022,07.11.2022,"Planning, Growth & Sustainability",AH&R - PGS Dir,AMZ*KAP ENTERPRISE,-19.99,0,-19.99,Awaiting Coding,Miscellaneous retail
Buckinghamshire Council,30.11.2022,07.11.2022,Deputy Chief Executive,Communities - DCE,AO RETAIL LIMITED,430.99,0,430.99,Other Personal Needs,Household appliance stores
Buckinghamshire Council,30.11.2022,07.11.2022,Deputy Chief Executive,Communities - DCE,AO RETAIL LIMITED,891.99,0,891.99,Other Personal Needs,Household appliance stores
Buckinghamshire Council,30.11.2022,07.11.2022,Deputy Chief Executive,Communities - DCE,AO RETAIL LIMITED,308.99,0,308.99,Other Personal Needs,Household appliance stores
Buckinghamshire Council,30.11.2022,07.11.2022,Deputy Chief Executive,Communities - DCE,AO RETAIL LIMITED,"1,001.99",0,"1,001.99",Other Personal Needs,Household appliance stores
Buckinghamshire Council,30.11.2022,07.11.2022,Deputy Chief Executive,Communities - DCE,AO RETAIL LIMITED,707.99,0,707.99,Other Personal Needs,Household appliance stores
Buckinghamshire Council,30.11.2022,07.11.2022,Deputy Chief Executive,Communities - DCE,WWW.LOVELLFUELS.CO.UK,793.83,0,793.83,Other Personal Needs,Fuel dealers
Buckinghamshire Council,30.11.2022,07.11.2022,Deputy Chief Executive,Communities - DCE,ARGOS LTD,358.95,0,358.95,Other Personal Needs,Discount stores
Buckinghamshire Council,30.11.2022,07.11.2022,Adults and Health,Health & Wellbeing - Adults & Health Dir,AMAZON.CO.UK,40.95,0,40.95,Stationery & Office Supplies,Direct sales companies
Buckinghamshire Council,30.11.2022,07.11.2022,Adults and Health,Health & Wellbeing - Adults & Health Dir,TESCO STORES 5135,150.89,0,150.89,Purchase.of Refreshments and Food,Grocery stores
Buckinghamshire Council,30.11.2022,07.11.2022,Children's Services,Education & Childrens Services - CS Dir,GO APE,7,0,7,Sec 17: Financial Assistance,Misc. recreational services
Buckinghamshire Council,30.11.2022,07.11.2022,Communities,Partnerships - Communities,WM MORRISONS STORE,25.99,0,25.99,Equipment,Grocery stores
Buckinghamshire Council,30.11.2022,07.11.2022,Children's Services,Education & Childrens Services - CS Dir,CH MORGAN,19.49,0,19.49,Other Equipment and Materials,"Architectural, engineering & surveying"
Buckinghamshire Council,30.11.2022,07.11.2022,Adults and Health,Communities - Adults & Health,COLLECTION POT,122.75,0,122.75,Miscellaneous (Other)  Expenses,Charitable organisations
Buckinghamshire Council,30.11.2022,07.11.2022,"Planning, Growth & Sustainability",AH&R - PGS Dir,EDMUNDSON ELECTRICAL,27.12,0,27.12,General Repairs & Maintenance,Electrical parts & equipment
Buckinghamshire Council,30.11.2022,07.11.2022,"Planning, Growth & Sustainability",AH&R - PGS Dir,EDMUNDSON ELECTRICAL,58.75,0,58.75,General Repairs & Maintenance,Electrical parts & equipment
Buckinghamshire Council,30.11.2022,07.11.2022,Children's Services,Education & Childrens Services - CS Dir,AMAZON.CO.UK,7.99,0,7.99,Activities & General Recreation,Direct sales companies
Buckinghamshire Council,30.11.2022,07.11.2022,Resources,AH&R - Res Dir,ABRATAX - MTD,12,0,12,Computer Consumables,Computer software stores
Buckinghamshire Council,30.11.2022,07.11.2022,Communities,Culture & Leisure - Communities Dir,PAYPAL,60,0,60,Awaiting Coding,Sporting goods shops
Buckinghamshire Council,30.11.2022,07.11.2022,Communities,Culture & Leisure - Communities Dir,AMZNMKTPLACE,14.3,2.86,17.16,Events Expenditure,Miscellaneous retail
Buckinghamshire Council,30.11.2022,07.11.2022,Communities,Culture & Leisure - Communities Dir,AMZNMKTPLACE,0.02,0,0.02,Events Expenditure,Miscellaneous retail
Buckinghamshire Council,30.11.2022,07.11.2022,Children's Services,Education & Childrens Services - CS Dir,AMAZON.CO.UK,11.58,0,11.58,Printing & Stationery,Direct sales companies
Buckinghamshire Council,30.11.2022,07.11.2022,Adults and Health,Health & Wellbeing - Adults & Health Dir,BACK CARE SOLUTIONS,-303.6,0,-303.6,Stationery & Office Supplies,Misc. general merchandise
Buckinghamshire Council,30.11.2022,07.11.2022,Children's Services,Education & Childrens Services - CS Dir,AMAZON PRIME,-8.99,0,-8.99,Equipment (including storage),Continuous subscriptions
Buckinghamshire Council,30.11.2022,07.11.2022,Children's Services,Education & Childrens Services - CS Dir,BUCKINGHAMSHIRE CNCL,11,0,11,Sec 20/31: Financial Assistance,Government services
Buckinghamshire Council,30.11.2022,07.11.2022,Children's Services,Education & Childrens Services - CS Dir,TESCO STORES 2041,10.13,0,10.13,"Exp of School, Club & College Activities",Grocery stores
Buckinghamshire Council,30.11.2022,07.11.2022,Children's Services,Education & Childrens Services - CS Dir,HOBBYCRAFT,12,0,12,Printing & Stationery,Art & craft shops
Buckinghamshire Council,30.11.2022,07.11.2022,Children's Services,Education & Childrens Services - CS Dir,WILKO RETAIL LIMITED,19.2,0,19.2,Miscellaneous (Other)  Expenses,Misc. general merchandise
Buckinghamshire Council,30.11.2022,07.11.2022,Children's Services,Education & Childrens Services - CS Dir,POUNDLAND LTD 1301,11,0,11,Miscellaneous (Other)  Expenses,Discount stores
Buckinghamshire Council,30.11.2022,07.11.2022,Children's Services,Education & Childrens Services - CS Dir,CARD FACTORY,8.41,0,8.41,Miscellaneous (Other)  Expenses,"Gift, card & novelty shops"
Buckinghamshire Council,30.11.2022,07.11.2022,Children's Services,Education & Childrens Services - CS Dir,WM MORRISONS STORE,1.25,0,1.25,Miscellaneous (Other)  Expenses,Grocery stores
Buckinghamshire Council,30.11.2022,07.11.2022,Children's Services,Education & Childrens Services - CS Dir,THE WORKS,4,0,4,Miscellaneous (Other)  Expenses,Discount stores
Buckinghamshire Council,30.11.2022,07.11.2022,Communities,Culture & Leisure - Communities Dir,HOLLYWOOD BOWL,120.6,0,120.6,Miscellaneous (Other)  Expenses,"Member clubs, sport, recreation & golf"
Buckinghamshire Council,30.11.2022,07.11.2022,Communities,Transport - Communities Dir,THEIHE.ORG,720,0,720,General Repairs & Maintenance,Membership organisations
Buckinghamshire Council,30.11.2022,07.11.2022,Adults and Health,Communities - Adults & Health,WWW.SCREWFIX.COM,18.48,0,18.48,Project Work and Project Management Costs,Timber & building supplies
Buckinghamshire Council,30.11.2022,07.11.2022,Adults and Health,Communities - Adults & Health,SPORTSDIRECT.COM,112.96,0,112.96,Project Work and Project Management Costs,Sports & riding apparel shops
Buckinghamshire Council,30.11.2022,07.11.2022,Children's Services,Education & Childrens Services - CS Dir,A1 TAXI SERVICE,264,0,264,Sec 20/31: Transport,Taxicabs & limousines
Buckinghamshire Council,30.11.2022,07.11.2022,Children's Services,Education & Childrens Services - CS Dir,ASDA  STORES 4396,1.1,0,1.1,Other Equipment and Materials,Grocery stores
